{"text_format":"1","workbook":"xlsx","n_sheets":7,"sheets":["ENTREGABLES OT","FASES-CODIGO JIRA","ESTIMACION","REAL","ESTIMACION vs REAL","CM OT-HORAS","CM OT-HBS"],"not_rendered":{"charts":10,"images":1,"macros":1,"external_links":0,"defined_names":0,"comments":4,"pivot_tables":6},"unopened":[],"bounds":{"document_bytes":16777216,"sheet_cells":100000,"rows_first":2000,"rows_last":500,"rows_between":2000,"halvings":0,"cell_chars":16384,"cell_head_chars":4096},"cells_cut":0,"cells_raw":0,"read":"whole","date_system":"1900"}

{"sheet":"ENTREGABLES OT","index":0,"n_rows":52,"n_cols":2,"rows_kept":52,"cut":false,"hidden":false,"merged":[]}
[]
[]
[null,"OTR"]
[null,"FICHERO EAP"]
[null,"  -  Objetivos"]
[null,"  -  Requisitos"]
[null,"  -  Matriz Objetivos vs Requisitos"]
[null,"DOCUMENTO DE ESPECIFICACIÓN DE REQUISITOS"]
[]
[null,"OTA"]
[null,"FICHERO EAP"]
[null,"  -  Casos de Uso"]
[null,"  -  Diagrama BPMN"]
[null,"  -  Catálogo de Actores"]
[null,"  -  Casos de Uso de Test"]
[null,"  -  Especificación de UI"]
[null,"  -  Matriz Requisito vs CU"]
[null,"  -  Matriz Caso Prueba vs CU"]
[null,"  -  Modelo de Dominio"]
[null,"DOCUMENTO DE ANÁLISIS DE SISTEMA"]
[null,"PROTOTIPOS"]
[null,"PLAN DE PRUEBAS FUNCIONALES"]
[null,"DOCUMENTO ANÁLISIS SOA"]
[null,"DOCUMENTO ENTORNO TECNOLÓGICO"]
[]
[null,"OTD"]
[null,"FICHERO EAP"]
[null,"  -  Modelo de Clases"]
[null,"  -  Modelo de Físico de Datos"]
[null,"  -  Arquitectura Lógica del Sistema"]
[null,"DOCUMENTO DE DISEÑO DEL SISTEMA"]
[null,"PLAN DE PRUEBAS DE SISTEMA"]
[]
[null,"OTC"]
[null,"PAQUETE DE CÓDIGO (SVN)"]
[null,"PLAN DE PRUEBAS FUNCIONALES DETALLADO (PPF)"]
[null,"GUÍA DE MIGRACIÓN"]
[null,"GUÍA DE PARAMETRIZACIÓN"]
[null,"DEFINICIÓN DEL ALCANCE DE LA MIGRACIÓN"]
[null,"REGISTRO DE EJECUCIÓN DEL PPF"]
[null,"HERRAMIENTA DE MIGRACIÓN"]
[null,"MANUAL DE USUARIO"]
[null,"CONSTRUCCIÓN DE FUNCIONALIDADES/COMPONENTES"]
[null,"PRUEBAS"]
[null,"VALIDACIÓN DEL ALCANCE"]
[null,"OTRAS ACTIVIDADES DE CONSTRUCCIÓN Y PRUEBAS"]
[]
[null,"OTIMPL"]
[null,"PLAN DE FORMACIÓN"]
[null,"PID"]
[null,"INSTALABLE SW"]
[null,"GESTIÓN DE LA IMPLANTACIÓN EN FARO"]

{"sheet":"FASES-CODIGO JIRA","index":1,"n_rows":31,"n_cols":1,"rows_kept":31,"cut":false,"hidden":false,"merged":[]}
["FASES-TAREAS OT"]
["EE v3.4 F0.Jefe de Proyecto: Gestión de riesgos, conflictos y de recursos materiales escalados por el referente o AP"]
["EE v3.4 F0.Jefe de Proyecto: Gestión del equipo"]
["EE v3.4 F0.jefe de Proyecto: Preparación y asistencia a reuniones"]
["EE v3.4 F0.Jefe de Proyecto: Registrar y asegurar la calidad de las imputaciones de los evolutivos, control y seguimiento de la planificación, OT/s, RFC/s, PL/s"]
["EE v3.4 F0.Referente: Soporte a dudas de otros equipos"]
["EE v3.4 F0.Referente: Soporte funcional a especialista técnico/funcional"]
["EE v3.4 F1.Requisitos: Análisis de la información obtenida y tareas adicionales (peticiones/consulta a otros grupos, etc) incluye Refinamiento"]
["EE v3.4 F1.Requisitos: Entrega EAP (y documentación adicional que se requiera)"]
["EE v3.4 F2.Análisis: Casos de test. Incluye Refinamiento"]
["EE v3.4 F2.Análisis: Entrega EAP (y documentación adicional que se requiera). Incluye refinamiento"]
["EE v3.4 F2.Análisis: Plan de Pruebas Funcionales (PPF), incluye Refinamiento"]
["EE v3.4 F3.Diseño: Ajustes de revisión por parte de arquitectura"]
["EE v3.4 F3.Diseño: Entrega EAP (y documentación adicional que se requiera)"]
["EE v3.4 F3.Diseño: Modelo de Clases y Diagrama UML"]
["EE v3.4 F3.Diseño: Modelo Físico de Datos"]
["EE v3.4 F4.Construcción: Construcción del paquete y entrega PL (revisión sónar, compilación y prueba del compilado, etc.)"]
["EE v3.4 F4.Construcción: Entrega EAP (y documentación adicional que se requiera)"]
["EE v3.4 F4.Construcción: Pruebas/Ejecución interna del PPF"]
["EE v3.4 F4.Construcción-Desarrollo: ECC-XXXX. YYYYYY"]
["EE v3.4 F4.Construcción-Desarrollo: Mejora indicadores Calidad de Integración Continua (Sónar, etc)"]
["EE v3.4 F4.Construcción-Desarrollo: Pruebas de Sistemas"]
["EE v3.4 F4.Construcción-Desarrollo: Pruebas del desarrollo"]
["EE v3.4 F5.Despliegue y Validación Entornos anteriores PRO : Análisis de resultados y candidatos a 'incidencias' (discriminación entre problemas en el entorno, problemas de solapamiento de operaciones con otros validadores, etc.)"]
["EE v3.4 F5.Despliegue y Validación Entornos anteriores PRO : Control previo del entorno: Preparación de juego de datos, usuarios, revisión del estado del entorno, etc, previo y durante los días acordados"]
["EE v3.4 F5.Despliegue y Validación Entornos anteriores PRO : GF: LLamadas de control diarias, resolución de dudas y revisión de correos/documentos con los funcionales, etc"]
["EE v3.4 F5.Despliegue y Validación Entornos anteriores PRO : Hospital: LLamadas de control diarias, resolución de dudas y revisión de correos/documentos con los funcionales, etc"]
["EE v3.4 F5.Despliegue y Validación Entornos anteriores PRO : OCA: LLamadas de control diarias, resolución de dudas y revisión de correos/documentos con los funcionales, etc"]
["EE v3.4 F5.Despliegue y Validación Entornos anteriores PRO : Parametrización y validación de entorno (revisión  de BD, logs de Weblogic y aplicación, aplicaciones desplegadas, etc."]
["EE v3.4 F6.Implantación-PRO: Apoyo a soporte a producción"]
["EE v3.4 F6.Implantación-PRO: Soporte a despliegue y validación de entorno (revisión  de BD, logs de Weblogic y aplicación, aplicaciones desplegadas, etc."]

{"sheet":"ESTIMACION","index":2,"n_rows":201,"n_cols":17,"rows_kept":201,"cut":false,"hidden":false,"merged":[]}
[]
[null,null,null,null,null,null,null,null,null,null,null,null,null,null,null,null,"SVT"]
[null,null,null,null,null,null,null,null,null,null,null,null,"Incurrido de la Orden de Trabajo",null,null,null,"OTEVS"]
[null,null,null,null,null,null,null,null,null,null,null,null,null,null,null,null,"OTR"]
[null,null,null,null,null,"ESTIMACIÓN",null,null,null,null,null,"TIPO DE OT","OTA",null,null,null,"OTInm"]
[null,null,null,null,null,null,null,null,null,null,null,"Incurrido de la OT (HBS): ",{"$f":"K17","v":337.5},null,null,null,"OTEquipo"]
[null,"Fecha de inicio: ","22/22/2222",null,null,null,null,null,null,null,null,null,null,null,null,null,"PST"]
[null,"Fecha de entrega: ","22/22/2222",null,null,null,null,null,null,null,null,"REF JIRA","APLICATIVO_1-2345",null,null,null,"OTA"]
[null,null,null,null,null,null,null,null,null,null,null,null,null,null,null,null,"OTD"]
[null,"ENTREGABLES",null,null,null,null,null,null,"HORAS","MULTP","HBS",null,null,null,null,null,"OTC"]
[null,"PAQUETE DE CÓDIGO (SVN)",null,null,null,null,null,"CO",{"$f":"SUMIF(ESTIMACION[PERFIL],H11,ESTIMACION[HORAS])","v":72},2,{"$f":"SUMIF(ESTIMACION[PERFIL],H11,ESTIMACION[HBS])","v":144},null,null,null,null,null,"OTAD"]
[null,"PLAN DE PRUEBAS FUNCIONALES DETALLADO (PPF)",null,null,null,null,null,"AF",{"$f":"SUMIF(ESTIMACION[PERFIL],H12,ESTIMACION[HORAS])","v":80},1.75,{"$f":"SUMIF(ESTIMACION[PERFIL],H12,ESTIMACION[HBS])","v":140},null,null,null,null,null,"OTADC"]
[null,"GUÍA DE MIGRACIÓN",null,null,null,null,null,"AP",{"$f":"SUMIF(ESTIMACION[PERFIL],H13,ESTIMACION[HORAS])","v":0},1.5,{"$f":"SUMIF(ESTIMACION[PERFIL],H13,ESTIMACION[HBS])","v":0},null,null,null,null,null,"OTImpl"]
[null,"GUÍA DE PARAMETRIZACIÓN",null,null,null,null,null,"PR",{"$f":"SUMIF(ESTIMACION[PERFIL],H14,ESTIMACION[HORAS])","v":34},1.25,{"$f":"SUMIF(ESTIMACION[PERFIL],H14,ESTIMACION[HBS])","v":42.5},null,null,null,null,null,"OTAgil"]
[null,"DEFINICIÓN DEL ALCANCE DE LA MIGRACIÓN",null,null,null,null,null,"PJ",{"$f":"SUMIF(ESTIMACION[PERFIL],H15,ESTIMACION[HORAS])","v":11},1,{"$f":"SUMIF(ESTIMACION[PERFIL],H15,ESTIMACION[HBS])","v":11}]
[null,"REGISTRO DE EJECUCIÓN DEL PPF",null,null,null,null,null,"H.EXTENDIDO",null,1.5,null,null,null,null,null,null,"PRODUCCION"]
[null,"HERRAMIENTA DE MIGRACIÓN",null,null,null,null,null,"TOTAL OT",{"$f":"SUM(I11:I15)","v":197},null,{"$f":"SUM(K11:K15)","v":337.5},null,null,null,null,null,"GESTION"]
[null,"MANUAL DE USUARIO",null,null,null,null,null,null,null,null,null,null,null,null,null,null,"REUNION"]
[null,"CONSTRUCCIÓN DE FUNCIONALIDADES/COMPONENTES",null,null,null,null,null,null,"HORAS","HBS"]
[null,"PRUEBAS",null,null,null,null,null,"PRODUCCION",{"$f":"SUMIF(ESTIMACION[TIPO DE ACTIVIDAD],H20,ESTIMACION[HORAS])","v":114},{"$f":"SUMIF(ESTIMACION[TIPO DE ACTIVIDAD],H20,ESTIMACION[HBS])","v":184.25}]
[null,"VALIDACIÓN DEL ALCANCE",null,null,null,null,null,"GESTION",{"$f":"SUMIF(ESTIMACION[TIPO DE ACTIVIDAD],H21,ESTIMACION[HORAS])","v":22},{"$f":"SUMIF(ESTIMACION[TIPO DE ACTIVIDAD],H21,ESTIMACION[HBS])","v":34}]
[null,"OTRAS ACTIVIDADES DE CONSTRUCCIÓN Y PRUEBAS",null,null,null,null,null,"REUNION",{"$f":"SUMIF(ESTIMACION[TIPO DE ACTIVIDAD],H22,ESTIMACION[HORAS])","v":61},{"$f":"SUMIF(ESTIMACION[TIPO DE ACTIVIDAD],H22,ESTIMACION[HBS])","v":119.25}]
[]
[null,null,null,null,null,null,null,null,{"$f":"SUM(ESTIMACION[HORAS])","v":197},null,null,{"$f":"SUM(ESTIMACION[HBS])","v":337.5}]
[null,"USUARIO","FECHA","TAREA","FASE PROYECTO\n/ COD. JIRA","COMPONENTE\nVERSION","TIPO DE ACTIVIDAD","PERFIL","HORAS","MULTP","HORARIO EXTENDIDO","HBS","COMENTARIOS"]
[null,"Analista Funcional 2",null,"v3.1 Análisis y validación funcional en desa","MEJORA-1235","APLICATIVO_1 3.1","PRODUCCION","AF",6,{"$f":"+IFERROR(VLOOKUP(ESTIMACION[[#This Row],[PERFIL]],$H$11:$J$16,3,FALSE),0)","v":1.75},"NO",10.5]
[null,"Analista Funcional 1",null,"CS- análisis  3.1 ","MEJORA-1235","APLICATIVO_1 3.1","REUNION","AF",3,{"$f":"+IFERROR(VLOOKUP(ESTIMACION[[#This Row],[PERFIL]],$H$11:$J$16,3,FALSE),0)","v":1.75},"NO",5.25]
[null,"Analista Funcional 2",null,"v3.1 Análisis y validación funcional en desa","MEJORA-1235","CLICSALUD 3.1","GESTION","AF",5,{"$f":"+IFERROR(VLOOKUP(ESTIMACION[[#This Row],[PERFIL]],$H$11:$J$16,3,FALSE),0)","v":1.75},"NO",8.75]
[null,"Programador 1",null,"ClicSalud 3.1 - Mejoras EIDAS","INCIDENCIA-1125","CLICSALUD 3.1","PRODUCCION","PR",4,{"$f":"+IFERROR(VLOOKUP(ESTIMACION[[#This Row],[PERFIL]],$H$11:$J$16,3,FALSE),0)","v":1.25},"NO",5]
[null,"Programador 1",null,"ClicSalud 3.1 - Mejoras EIDAS","INCIDENCIA-1125","CLICSALUD 3.1","GESTION","PR",9,{"$f":"+IFERROR(VLOOKUP(ESTIMACION[[#This Row],[PERFIL]],$H$11:$J$16,3,FALSE),0)","v":1.25},"NO",11.25]
[null,"Analista Funcional 2",null,"v3.1 Análisis y validación funcional en desa","INCIDENCIA-1125","CLICSALUD 3.1","PRODUCCION","AF",5,{"$f":"+IFERROR(VLOOKUP(ESTIMACION[[#This Row],[PERFIL]],$H$11:$J$16,3,FALSE),0)","v":1.75},"NO",8.75]
[null,"Programador Junior 2",null,"ClicSalud 3.1 - Mejoras EIDAS","MEJORA-1426","CLICSALUD 3.1","PRODUCCION","PJ",3,{"$f":"+IFERROR(VLOOKUP(ESTIMACION[[#This Row],[PERFIL]],$H$11:$J$16,3,FALSE),0)","v":1},"NO",3]
[null,"Analista Funcional 2",null,"v3.1 Análisis y validación funcional en desa","MEJORA-1426","CLICSALUD 3.1","GESTION","AF",8,{"$f":"+IFERROR(VLOOKUP(ESTIMACION[[#This Row],[PERFIL]],$H$11:$J$16,3,FALSE),0)","v":1.75},"NO",14]
[null,"Analista Funcional 1",null,"CS- análisis  3.1 ","INCIDENCIA-1125","CLICSALUD 3.1","PRODUCCION","AF",9,{"$f":"+IFERROR(VLOOKUP(ESTIMACION[[#This Row],[PERFIL]],$H$11:$J$16,3,FALSE),0)","v":1.75},"NO",15.75]
[null,"Programador 1",null,"ClicSalud 3.1 - Mejoras EIDAS","INCIDENCIA-1125","CLICSALUD 3.1","PRODUCCION","PR",3,{"$f":"+IFERROR(VLOOKUP(ESTIMACION[[#This Row],[PERFIL]],$H$11:$J$16,3,FALSE),0)","v":1.25},"NO",3.75]
[null,"Analista Funcional 2",null,"v3.1 Análisis y validación funcional en desa","MEJORA-1235","CLICSALUD 3.1","REUNION","AF",8,{"$f":"+IFERROR(VLOOKUP(ESTIMACION[[#This Row],[PERFIL]],$H$11:$J$16,3,FALSE),0)","v":1.75},"NO",14]
[null,"Analista Funcional 1",null,"CS- análisis  3.2.1","INCI3ENCIALU-1125","CLICSALUD 3.2.1","PRODUCCION","AF",7,{"$f":"+IFERROR(VLOOKUP(ESTIMACION[[#This Row],[PERFIL]],$H$11:$J$16,3,FALSE),0)","v":1.75},"NO",12.25]
[null,"Analista Funcional 2",null,"v3.2.1 Análisis y validación funcional en desa","INCI3ENCIALU-1125","CLICSALUD 3.2.1","PRODUCCION","AF",6.5,{"$f":"+IFERROR(VLOOKUP(ESTIMACION[[#This Row],[PERFIL]],$H$11:$J$16,3,FALSE),0)","v":1.75},"NO",11.375]
[null,"Programador Junior 2",null,"CS 3.2.1 - Cambios en EIDAS","MEJORA-2426","CLICSALUD 3.2.1","PRODUCCION","PJ",5,{"$f":"+IFERROR(VLOOKUP(ESTIMACION[[#This Row],[PERFIL]],$H$11:$J$16,3,FALSE),0)","v":1},"NO",5]
[null,"Analista Funcional 2",null,"v3.2.1 Análisis y validación funcional en desa","MEJORALU-1426","CLICSALUD 3.2.1","PRODUCCION","AF",3,{"$f":"+IFERROR(VLOOKUP(ESTIMACION[[#This Row],[PERFIL]],$H$11:$J$16,3,FALSE),0)","v":1.75},"NO",5.25]
[null,"Programador 1",null,"ClicSalud 3.2.1 - Mejoras EIDAS","INCI3ENCIALU-1125","CLICSALUD 3.2.1","PRODUCCION","PR",5,{"$f":"+IFERROR(VLOOKUP(ESTIMACION[[#This Row],[PERFIL]],$H$11:$J$16,3,FALSE),0)","v":1.25},"NO",6.25]
[null,"Equipo Calidad",null,"CLICSALUD v3.1.0.1 Instalaciones en Calidad y entrega a Cliente","MEJORALU-1426","CLICSALUD 3.1","PRODUCCION","CO",6,{"$f":"+IFERROR(VLOOKUP(ESTIMACION[[#This Row],[PERFIL]],$H$11:$J$16,3,FALSE),0)","v":2},"NO",12]
[null,"Equipo Desarrollo 2",null,"CS 3.1 - Cambios en EIDAS","INCIDENCIA-1125","CLICSALUD 3.1","PRODUCCION","PR",8,{"$f":"+IFERROR(VLOOKUP(ESTIMACION[[#This Row],[PERFIL]],$H$11:$J$16,3,FALSE),0)","v":1.25},"NO",10]
[null,"Jefe de Proyecto",null,"Gestión","MEJORALU-1426","CLICSALUD 3.1","PRODUCCION","CO",8,{"$f":"+IFERROR(VLOOKUP(ESTIMACION[[#This Row],[PERFIL]],$H$11:$J$16,3,FALSE),0)","v":2},"NO",16]
[null,"Analista Funcional 2",null,"Validación funcional CS+ v3.1 PRE","INCIDENCIA-1125","CLICSALUD 3.1","PRODUCCION","AF",4.5,{"$f":"+IFERROR(VLOOKUP(ESTIMACION[[#This Row],[PERFIL]],$H$11:$J$16,3,FALSE),0)","v":1.75},"NO",7.875]
[null,"Analista Funcional 2",null,"v3.1 Análisis y validación funcional en desa","MEJORA-1235","CLICSALUD 3.1","PRODUCCION","AF",6,{"$f":"+IFERROR(VLOOKUP(ESTIMACION[[#This Row],[PERFIL]],$H$11:$J$16,3,FALSE),0)","v":1.75},"NO",10.5]
[null,"Equipo Desarrollo 2",null,"v3.1 Cambios EIDAS Implantación PRO","INCIDENCIA-1125","CLICSALUD 3.1","PRODUCCION","PR",5,{"$f":"+IFERROR(VLOOKUP(ESTIMACION[[#This Row],[PERFIL]],$H$11:$J$16,3,FALSE),0)","v":1.25},"NO",6.25]
[null,"Jefe de Proyecto",null,"Gestión","MEJORA-2426","CLICSALUD 3.1","PRODUCCION","CO",8,{"$f":"+IFERROR(VLOOKUP(ESTIMACION[[#This Row],[PERFIL]],$H$11:$J$16,3,FALSE),0)","v":2},"NO",16]
[null,"Analista Funcional 2",null,"v3.1 Análisis y validación funcional en desa","INCIDENCIA-1125","CLICSALUD 3.1","PRODUCCION","AF",5,{"$f":"+IFERROR(VLOOKUP(ESTIMACION[[#This Row],[PERFIL]],$H$11:$J$16,3,FALSE),0)","v":1.75},"NO",8.75]
[null,"Analista Funcional 2",null,"v3.1 Análisis y validación funcional en desa","INCIDENCIA-1125","CLICSALUD 3.1","PRODUCCION","AF",2,{"$f":"+IFERROR(VLOOKUP(ESTIMACION[[#This Row],[PERFIL]],$H$11:$J$16,3,FALSE),0)","v":1.75},"NO",3.5]
[null,"Analista Funcional 1",null,"CS- análisis  3.1 ","MEJORA-1235","CLICSALUD 3.1","PRODUCCION","AF",2,{"$f":"+IFERROR(VLOOKUP(ESTIMACION[[#This Row],[PERFIL]],$H$11:$J$16,3,FALSE),0)","v":1.75},"NO",3.5]
[null,"Analista Funcional 2",null,"v3.1 Análisis y validación funcional en desa","MEJORA-1235","CLICSALUD 3.1","PRODUCCION","PJ",3,{"$f":"+IFERROR(VLOOKUP(ESTIMACION[[#This Row],[PERFIL]],$H$11:$J$16,3,FALSE),0)","v":1},"NO",3]
[null,null,null,"v3.2 Análisis y validación funcional en desa","MEJORA-2426","CLICSALUD 4.0","REUNION","CO",50,{"$f":"+IFERROR(VLOOKUP(ESTIMACION[[#This Row],[PERFIL]],$H$11:$J$16,3,FALSE),0)","v":2},"NO",100]
[null,null,null,null,null,null,null,null,null,{"$f":"+IFERROR(VLOOKUP(ESTIMACION[[#This Row],[PERFIL]],$H$11:$J$16,3,FALSE),0)","v":0},null,{"$f":"+ESTIMACION[[#This Row],[HORAS]]*ESTIMACION[[#This Row],[MULTP]]*ESTIMACION[[#This Row],[HORARIO EXTENDIDO]]","v":0}]
[null,null,null,null,null,null,null,null,null,{"$f":"+IFERROR(VLOOKUP(ESTIMACION[[#This Row],[PERFIL]],$H$11:$J$16,3,FALSE),0)","v":0},null,{"$f":"+ESTIMACION[[#This Row],[HORAS]]*ESTIMACION[[#This Row],[MULTP]]*ESTIMACION[[#This Row],[HORARIO EXTENDIDO]]","v":0}]
[null,null,null,null,null,null,null,null,null,{"$f":"+IFERROR(VLOOKUP(ESTIMACION[[#This Row],[PERFIL]],$H$11:$J$16,3,FALSE),0)","v":0},null,{"$f":"+ESTIMACION[[#This Row],[HORAS]]*ESTIMACION[[#This Row],[MULTP]]*ESTIMACION[[#This Row],[HORARIO EXTENDIDO]]","v":0}]
[null,null,null,null,null,null,null,null,null,{"$f":"+IFERROR(VLOOKUP(ESTIMACION[[#This Row],[PERFIL]],$H$11:$J$16,3,FALSE),0)","v":0},null,{"$f":"+ESTIMACION[[#This Row],[HORAS]]*ESTIMACION[[#This Row],[MULTP]]*ESTIMACION[[#This Row],[HORARIO EXTENDIDO]]","v":0}]
[null,null,null,null,null,null,null,null,null,{"$f":"+IFERROR(VLOOKUP(ESTIMACION[[#This Row],[PERFIL]],$H$11:$J$16,3,FALSE),0)","v":0},null,{"$f":"+ESTIMACION[[#This Row],[HORAS]]*ESTIMACION[[#This Row],[MULTP]]*ESTIMACION[[#This Row],[HORARIO EXTENDIDO]]","v":0}]
[null,null,null,null,null,null,null,null,null,{"$f":"+IFERROR(VLOOKUP(ESTIMACION[[#This Row],[PERFIL]],$H$11:$J$16,3,FALSE),0)","v":0},null,{"$f":"+ESTIMACION[[#This Row],[HORAS]]*ESTIMACION[[#This Row],[MULTP]]*ESTIMACION[[#This Row],[HORARIO EXTENDIDO]]","v":0}]
[null,null,null,null,null,null,null,null,null,{"$f":"+IFERROR(VLOOKUP(ESTIMACION[[#This Row],[PERFIL]],$H$11:$J$16,3,FALSE),0)","v":0},null,{"$f":"+ESTIMACION[[#This Row],[HORAS]]*ESTIMACION[[#This Row],[MULTP]]*ESTIMACION[[#This Row],[HORARIO EXTENDIDO]]","v":0}]
[null,null,null,null,null,null,null,null,null,{"$f":"+IFERROR(VLOOKUP(ESTIMACION[[#This Row],[PERFIL]],$H$11:$J$16,3,FALSE),0)","v":0},null,{"$f":"+ESTIMACION[[#This Row],[HORAS]]*ESTIMACION[[#This Row],[MULTP]]*ESTIMACION[[#This Row],[HORARIO EXTENDIDO]]","v":0}]
[null,null,null,null,null,null,null,null,null,{"$f":"+IFERROR(VLOOKUP(ESTIMACION[[#This Row],[PERFIL]],$H$11:$J$16,3,FALSE),0)","v":0},null,{"$f":"+ESTIMACION[[#This Row],[HORAS]]*ESTIMACION[[#This Row],[MULTP]]*ESTIMACION[[#This Row],[HORARIO EXTENDIDO]]","v":0}]
[null,null,null,null,null,null,null,null,null,{"$f":"+IFERROR(VLOOKUP(ESTIMACION[[#This Row],[PERFIL]],$H$11:$J$16,3,FALSE),0)","v":0},null,{"$f":"+ESTIMACION[[#This Row],[HORAS]]*ESTIMACION[[#This Row],[MULTP]]*ESTIMACION[[#This Row],[HORARIO EXTENDIDO]]","v":0}]
[null,null,null,null,null,null,null,null,null,{"$f":"+IFERROR(VLOOKUP(ESTIMACION[[#This Row],[PERFIL]],$H$11:$J$16,3,FALSE),0)","v":0},null,{"$f":"+ESTIMACION[[#This Row],[HORAS]]*ESTIMACION[[#This Row],[MULTP]]*ESTIMACION[[#This Row],[HORARIO EXTENDIDO]]","v":0}]
[null,null,null,null,null,null,null,null,null,{"$f":"+IFERROR(VLOOKUP(ESTIMACION[[#This Row],[PERFIL]],$H$11:$J$16,3,FALSE),0)","v":0},null,{"$f":"+ESTIMACION[[#This Row],[HORAS]]*ESTIMACION[[#This Row],[MULTP]]*ESTIMACION[[#This Row],[HORARIO EXTENDIDO]]","v":0}]
[null,null,null,null,null,null,null,null,null,{"$f":"+IFERROR(VLOOKUP(ESTIMACION[[#This Row],[PERFIL]],$H$11:$J$16,3,FALSE),0)","v":0},null,{"$f":"+ESTIMACION[[#This Row],[HORAS]]*ESTIMACION[[#This Row],[MULTP]]*ESTIMACION[[#This Row],[HORARIO EXTENDIDO]]","v":0}]
[null,null,null,null,null,null,null,null,null,{"$f":"+IFERROR(VLOOKUP(ESTIMACION[[#This Row],[PERFIL]],$H$11:$J$16,3,FALSE),0)","v":0},null,{"$f":"+ESTIMACION[[#This Row],[HORAS]]*ESTIMACION[[#This Row],[MULTP]]*ESTIMACION[[#This Row],[HORARIO EXTENDIDO]]","v":0}]
[null,null,null,null,null,null,null,null,null,{"$f":"+IFERROR(VLOOKUP(ESTIMACION[[#This Row],[PERFIL]],$H$11:$J$16,3,FALSE),0)","v":0},null,{"$f":"+ESTIMACION[[#This Row],[HORAS]]*ESTIMACION[[#This Row],[MULTP]]*ESTIMACION[[#This Row],[HORARIO EXTENDIDO]]","v":0}]
[null,null,null,null,null,null,null,null,null,{"$f":"+IFERROR(VLOOKUP(ESTIMACION[[#This Row],[PERFIL]],$H$11:$J$16,3,FALSE),0)","v":0},null,{"$f":"+ESTIMACION[[#This Row],[HORAS]]*ESTIMACION[[#This Row],[MULTP]]*ESTIMACION[[#This Row],[HORARIO EXTENDIDO]]","v":0}]
[null,null,null,null,null,null,null,null,null,{"$f":"+IFERROR(VLOOKUP(ESTIMACION[[#This Row],[PERFIL]],$H$11:$J$16,3,FALSE),0)","v":0},null,{"$f":"+ESTIMACION[[#This Row],[HORAS]]*ESTIMACION[[#This Row],[MULTP]]*ESTIMACION[[#This Row],[HORARIO EXTENDIDO]]","v":0}]
[null,null,null,null,null,null,null,null,null,{"$f":"+IFERROR(VLOOKUP(ESTIMACION[[#This Row],[PERFIL]],$H$11:$J$16,3,FALSE),0)","v":0},null,{"$f":"+ESTIMACION[[#This Row],[HORAS]]*ESTIMACION[[#This Row],[MULTP]]*ESTIMACION[[#This Row],[HORARIO EXTENDIDO]]","v":0}]
[null,null,null,null,null,null,null,null,null,{"$f":"+IFERROR(VLOOKUP(ESTIMACION[[#This Row],[PERFIL]],$H$11:$J$16,3,FALSE),0)","v":0},null,{"$f":"+ESTIMACION[[#This Row],[HORAS]]*ESTIMACION[[#This Row],[MULTP]]*ESTIMACION[[#This Row],[HORARIO EXTENDIDO]]","v":0}]
[null,null,null,null,null,null,null,null,null,{"$f":"+IFERROR(VLOOKUP(ESTIMACION[[#This Row],[PERFIL]],$H$11:$J$16,3,FALSE),0)","v":0},null,{"$f":"+ESTIMACION[[#This Row],[HORAS]]*ESTIMACION[[#This Row],[MULTP]]*ESTIMACION[[#This Row],[HORARIO EXTENDIDO]]","v":0}]
[null,null,null,null,null,null,null,null,null,{"$f":"+IFERROR(VLOOKUP(ESTIMACION[[#This Row],[PERFIL]],$H$11:$J$16,3,FALSE),0)","v":0},null,{"$f":"+ESTIMACION[[#This Row],[HORAS]]*ESTIMACION[[#This Row],[MULTP]]*ESTIMACION[[#This Row],[HORARIO EXTENDIDO]]","v":0}]
[null,null,null,null,null,null,null,null,null,{"$f":"+IFERROR(VLOOKUP(ESTIMACION[[#This Row],[PERFIL]],$H$11:$J$16,3,FALSE),0)","v":0},null,{"$f":"+ESTIMACION[[#This Row],[HORAS]]*ESTIMACION[[#This Row],[MULTP]]*ESTIMACION[[#This Row],[HORARIO EXTENDIDO]]","v":0}]
[null,null,null,null,null,null,null,null,null,{"$f":"+IFERROR(VLOOKUP(ESTIMACION[[#This Row],[PERFIL]],$H$11:$J$16,3,FALSE),0)","v":0},null,{"$f":"+ESTIMACION[[#This Row],[HORAS]]*ESTIMACION[[#This Row],[MULTP]]*ESTIMACION[[#This Row],[HORARIO EXTENDIDO]]","v":0}]
[null,null,null,null,null,null,null,null,null,{"$f":"+IFERROR(VLOOKUP(ESTIMACION[[#This Row],[PERFIL]],$H$11:$J$16,3,FALSE),0)","v":0},null,{"$f":"+ESTIMACION[[#This Row],[HORAS]]*ESTIMACION[[#This Row],[MULTP]]*ESTIMACION[[#This Row],[HORARIO EXTENDIDO]]","v":0}]
[null,null,null,null,null,null,null,null,null,{"$f":"+IFERROR(VLOOKUP(ESTIMACION[[#This Row],[PERFIL]],$H$11:$J$16,3,FALSE),0)","v":0},null,{"$f":"+ESTIMACION[[#This Row],[HORAS]]*ESTIMACION[[#This Row],[MULTP]]*ESTIMACION[[#This Row],[HORARIO EXTENDIDO]]","v":0}]
[null,null,null,null,null,null,null,null,null,{"$f":"+IFERROR(VLOOKUP(ESTIMACION[[#This Row],[PERFIL]],$H$11:$J$16,3,FALSE),0)","v":0},null,{"$f":"+ESTIMACION[[#This Row],[HORAS]]*ESTIMACION[[#This Row],[MULTP]]*ESTIMACION[[#This Row],[HORARIO EXTENDIDO]]","v":0}]
[null,null,null,null,null,null,null,null,null,{"$f":"+IFERROR(VLOOKUP(ESTIMACION[[#This Row],[PERFIL]],$H$11:$J$16,3,FALSE),0)","v":0},null,{"$f":"+ESTIMACION[[#This Row],[HORAS]]*ESTIMACION[[#This Row],[MULTP]]*ESTIMACION[[#This Row],[HORARIO EXTENDIDO]]","v":0}]
[null,null,null,null,null,null,null,null,null,{"$f":"+IFERROR(VLOOKUP(ESTIMACION[[#This Row],[PERFIL]],$H$11:$J$16,3,FALSE),0)","v":0},null,{"$f":"+ESTIMACION[[#This Row],[HORAS]]*ESTIMACION[[#This Row],[MULTP]]*ESTIMACION[[#This Row],[HORARIO EXTENDIDO]]","v":0}]
[null,null,null,null,null,null,null,null,null,{"$f":"+IFERROR(VLOOKUP(ESTIMACION[[#This Row],[PERFIL]],$H$11:$J$16,3,FALSE),0)","v":0},null,{"$f":"+ESTIMACION[[#This Row],[HORAS]]*ESTIMACION[[#This Row],[MULTP]]*ESTIMACION[[#This Row],[HORARIO EXTENDIDO]]","v":0}]
[null,null,null,null,null,null,null,null,null,{"$f":"+IFERROR(VLOOKUP(ESTIMACION[[#This Row],[PERFIL]],$H$11:$J$16,3,FALSE),0)","v":0},null,{"$f":"+ESTIMACION[[#This Row],[HORAS]]*ESTIMACION[[#This Row],[MULTP]]*ESTIMACION[[#This Row],[HORARIO EXTENDIDO]]","v":0}]
[null,null,null,null,null,null,null,null,null,{"$f":"+IFERROR(VLOOKUP(ESTIMACION[[#This Row],[PERFIL]],$H$11:$J$16,3,FALSE),0)","v":0},null,{"$f":"+ESTIMACION[[#This Row],[HORAS]]*ESTIMACION[[#This Row],[MULTP]]*ESTIMACION[[#This Row],[HORARIO EXTENDIDO]]","v":0}]
[null,null,null,null,null,null,null,null,null,{"$f":"+IFERROR(VLOOKUP(ESTIMACION[[#This Row],[PERFIL]],$H$11:$J$16,3,FALSE),0)","v":0},null,{"$f":"+ESTIMACION[[#This Row],[HORAS]]*ESTIMACION[[#This Row],[MULTP]]*ESTIMACION[[#This Row],[HORARIO EXTENDIDO]]","v":0}]
[null,null,null,null,null,null,null,null,null,{"$f":"+IFERROR(VLOOKUP(ESTIMACION[[#This Row],[PERFIL]],$H$11:$J$16,3,FALSE),0)","v":0},null,{"$f":"+ESTIMACION[[#This Row],[HORAS]]*ESTIMACION[[#This Row],[MULTP]]*ESTIMACION[[#This Row],[HORARIO EXTENDIDO]]","v":0}]
[null,null,null,null,null,null,null,null,null,{"$f":"+IFERROR(VLOOKUP(ESTIMACION[[#This Row],[PERFIL]],$H$11:$J$16,3,FALSE),0)","v":0},null,{"$f":"+ESTIMACION[[#This Row],[HORAS]]*ESTIMACION[[#This Row],[MULTP]]*ESTIMACION[[#This Row],[HORARIO EXTENDIDO]]","v":0}]
[null,null,null,null,null,null,null,null,null,{"$f":"+IFERROR(VLOOKUP(ESTIMACION[[#This Row],[PERFIL]],$H$11:$J$16,3,FALSE),0)","v":0},null,{"$f":"+ESTIMACION[[#This Row],[HORAS]]*ESTIMACION[[#This Row],[MULTP]]*ESTIMACION[[#This Row],[HORARIO EXTENDIDO]]","v":0}]
[null,null,null,null,null,null,null,null,null,{"$f":"+IFERROR(VLOOKUP(ESTIMACION[[#This Row],[PERFIL]],$H$11:$J$16,3,FALSE),0)","v":0},null,{"$f":"+ESTIMACION[[#This Row],[HORAS]]*ESTIMACION[[#This Row],[MULTP]]*ESTIMACION[[#This Row],[HORARIO EXTENDIDO]]","v":0}]
[null,null,null,null,null,null,null,null,null,{"$f":"+IFERROR(VLOOKUP(ESTIMACION[[#This Row],[PERFIL]],$H$11:$J$16,3,FALSE),0)","v":0},null,{"$f":"+ESTIMACION[[#This Row],[HORAS]]*ESTIMACION[[#This Row],[MULTP]]*ESTIMACION[[#This Row],[HORARIO EXTENDIDO]]","v":0}]
[null,null,null,null,null,null,null,null,null,{"$f":"+IFERROR(VLOOKUP(ESTIMACION[[#This Row],[PERFIL]],$H$11:$J$16,3,FALSE),0)","v":0},null,{"$f":"+ESTIMACION[[#This Row],[HORAS]]*ESTIMACION[[#This Row],[MULTP]]*ESTIMACION[[#This Row],[HORARIO EXTENDIDO]]","v":0}]
[null,null,null,null,null,null,null,null,null,{"$f":"+IFERROR(VLOOKUP(ESTIMACION[[#This Row],[PERFIL]],$H$11:$J$16,3,FALSE),0)","v":0},null,{"$f":"+ESTIMACION[[#This Row],[HORAS]]*ESTIMACION[[#This Row],[MULTP]]*ESTIMACION[[#This Row],[HORARIO EXTENDIDO]]","v":0}]
[null,null,null,null,null,null,null,null,null,{"$f":"+IFERROR(VLOOKUP(ESTIMACION[[#This Row],[PERFIL]],$H$11:$J$16,3,FALSE),0)","v":0},null,{"$f":"+ESTIMACION[[#This Row],[HORAS]]*ESTIMACION[[#This Row],[MULTP]]*ESTIMACION[[#This Row],[HORARIO EXTENDIDO]]","v":0}]
[null,null,null,null,null,null,null,null,null,{"$f":"+IFERROR(VLOOKUP(ESTIMACION[[#This Row],[PERFIL]],$H$11:$J$16,3,FALSE),0)","v":0},null,{"$f":"+ESTIMACION[[#This Row],[HORAS]]*ESTIMACION[[#This Row],[MULTP]]*ESTIMACION[[#This Row],[HORARIO EXTENDIDO]]","v":0}]
[null,null,null,null,null,null,null,null,null,{"$f":"+IFERROR(VLOOKUP(ESTIMACION[[#This Row],[PERFIL]],$H$11:$J$16,3,FALSE),0)","v":0},null,{"$f":"+ESTIMACION[[#This Row],[HORAS]]*ESTIMACION[[#This Row],[MULTP]]*ESTIMACION[[#This Row],[HORARIO EXTENDIDO]]","v":0}]
[null,null,null,null,null,null,null,null,null,{"$f":"+IFERROR(VLOOKUP(ESTIMACION[[#This Row],[PERFIL]],$H$11:$J$16,3,FALSE),0)","v":0},null,{"$f":"+ESTIMACION[[#This Row],[HORAS]]*ESTIMACION[[#This Row],[MULTP]]*ESTIMACION[[#This Row],[HORARIO EXTENDIDO]]","v":0}]
[null,null,null,null,null,null,null,null,null,{"$f":"+IFERROR(VLOOKUP(ESTIMACION[[#This Row],[PERFIL]],$H$11:$J$16,3,FALSE),0)","v":0},null,{"$f":"+ESTIMACION[[#This Row],[HORAS]]*ESTIMACION[[#This Row],[MULTP]]*ESTIMACION[[#This Row],[HORARIO EXTENDIDO]]","v":0}]
[null,null,null,null,null,null,null,null,null,{"$f":"+IFERROR(VLOOKUP(ESTIMACION[[#This Row],[PERFIL]],$H$11:$J$16,3,FALSE),0)","v":0},null,{"$f":"+ESTIMACION[[#This Row],[HORAS]]*ESTIMACION[[#This Row],[MULTP]]*ESTIMACION[[#This Row],[HORARIO EXTENDIDO]]","v":0}]
[null,null,null,null,null,null,null,null,null,{"$f":"+IFERROR(VLOOKUP(ESTIMACION[[#This Row],[PERFIL]],$H$11:$J$16,3,FALSE),0)","v":0},null,{"$f":"+ESTIMACION[[#This Row],[HORAS]]*ESTIMACION[[#This Row],[MULTP]]*ESTIMACION[[#This Row],[HORARIO EXTENDIDO]]","v":0}]
[null,null,null,null,null,null,null,null,null,{"$f":"+IFERROR(VLOOKUP(ESTIMACION[[#This Row],[PERFIL]],$H$11:$J$16,3,FALSE),0)","v":0},null,{"$f":"+ESTIMACION[[#This Row],[HORAS]]*ESTIMACION[[#This Row],[MULTP]]*ESTIMACION[[#This Row],[HORARIO EXTENDIDO]]","v":0}]
[null,null,null,null,null,null,null,null,null,{"$f":"+IFERROR(VLOOKUP(ESTIMACION[[#This Row],[PERFIL]],$H$11:$J$16,3,FALSE),0)","v":0},null,{"$f":"+ESTIMACION[[#This Row],[HORAS]]*ESTIMACION[[#This Row],[MULTP]]*ESTIMACION[[#This Row],[HORARIO EXTENDIDO]]","v":0}]
[null,null,null,null,null,null,null,null,null,{"$f":"+IFERROR(VLOOKUP(ESTIMACION[[#This Row],[PERFIL]],$H$11:$J$16,3,FALSE),0)","v":0},null,{"$f":"+ESTIMACION[[#This Row],[HORAS]]*ESTIMACION[[#This Row],[MULTP]]*ESTIMACION[[#This Row],[HORARIO EXTENDIDO]]","v":0}]
[null,null,null,null,null,null,null,null,null,{"$f":"+IFERROR(VLOOKUP(ESTIMACION[[#This Row],[PERFIL]],$H$11:$J$16,3,FALSE),0)","v":0},null,{"$f":"+ESTIMACION[[#This Row],[HORAS]]*ESTIMACION[[#This Row],[MULTP]]*ESTIMACION[[#This Row],[HORARIO EXTENDIDO]]","v":0}]
[null,null,null,null,null,null,null,null,null,{"$f":"+IFERROR(VLOOKUP(ESTIMACION[[#This Row],[PERFIL]],$H$11:$J$16,3,FALSE),0)","v":0},null,{"$f":"+ESTIMACION[[#This Row],[HORAS]]*ESTIMACION[[#This Row],[MULTP]]*ESTIMACION[[#This Row],[HORARIO EXTENDIDO]]","v":0}]
[null,null,null,null,null,null,null,null,null,{"$f":"+IFERROR(VLOOKUP(ESTIMACION[[#This Row],[PERFIL]],$H$11:$J$16,3,FALSE),0)","v":0},null,{"$f":"+ESTIMACION[[#This Row],[HORAS]]*ESTIMACION[[#This Row],[MULTP]]*ESTIMACION[[#This Row],[HORARIO EXTENDIDO]]","v":0}]
[null,null,null,null,null,null,null,null,null,{"$f":"+IFERROR(VLOOKUP(ESTIMACION[[#This Row],[PERFIL]],$H$11:$J$16,3,FALSE),0)","v":0},null,{"$f":"+ESTIMACION[[#This Row],[HORAS]]*ESTIMACION[[#This Row],[MULTP]]*ESTIMACION[[#This Row],[HORARIO EXTENDIDO]]","v":0}]
[null,null,null,null,null,null,null,null,null,{"$f":"+IFERROR(VLOOKUP(ESTIMACION[[#This Row],[PERFIL]],$H$11:$J$16,3,FALSE),0)","v":0},null,{"$f":"+ESTIMACION[[#This Row],[HORAS]]*ESTIMACION[[#This Row],[MULTP]]*ESTIMACION[[#This Row],[HORARIO EXTENDIDO]]","v":0}]
[null,null,null,null,null,null,null,null,null,{"$f":"+IFERROR(VLOOKUP(ESTIMACION[[#This Row],[PERFIL]],$H$11:$J$16,3,FALSE),0)","v":0},null,{"$f":"+ESTIMACION[[#This Row],[HORAS]]*ESTIMACION[[#This Row],[MULTP]]*ESTIMACION[[#This Row],[HORARIO EXTENDIDO]]","v":0}]
[null,null,null,null,null,null,null,null,null,{"$f":"+IFERROR(VLOOKUP(ESTIMACION[[#This Row],[PERFIL]],$H$11:$J$16,3,FALSE),0)","v":0},null,{"$f":"+ESTIMACION[[#This Row],[HORAS]]*ESTIMACION[[#This Row],[MULTP]]*ESTIMACION[[#This Row],[HORARIO EXTENDIDO]]","v":0}]
[null,null,null,null,null,null,null,null,null,{"$f":"+IFERROR(VLOOKUP(ESTIMACION[[#This Row],[PERFIL]],$H$11:$J$16,3,FALSE),0)","v":0},null,{"$f":"+ESTIMACION[[#This Row],[HORAS]]*ESTIMACION[[#This Row],[MULTP]]*ESTIMACION[[#This Row],[HORARIO EXTENDIDO]]","v":0}]
[null,null,null,null,null,null,null,null,null,{"$f":"+IFERROR(VLOOKUP(ESTIMACION[[#This Row],[PERFIL]],$H$11:$J$16,3,FALSE),0)","v":0},null,{"$f":"+ESTIMACION[[#This Row],[HORAS]]*ESTIMACION[[#This Row],[MULTP]]*ESTIMACION[[#This Row],[HORARIO EXTENDIDO]]","v":0}]
[null,null,null,null,null,null,null,null,null,{"$f":"+IFERROR(VLOOKUP(ESTIMACION[[#This Row],[PERFIL]],$H$11:$J$16,3,FALSE),0)","v":0},null,{"$f":"+ESTIMACION[[#This Row],[HORAS]]*ESTIMACION[[#This Row],[MULTP]]*ESTIMACION[[#This Row],[HORARIO EXTENDIDO]]","v":0}]
[null,null,null,null,null,null,null,null,null,{"$f":"+IFERROR(VLOOKUP(ESTIMACION[[#This Row],[PERFIL]],$H$11:$J$16,3,FALSE),0)","v":0},null,{"$f":"+ESTIMACION[[#This Row],[HORAS]]*ESTIMACION[[#This Row],[MULTP]]*ESTIMACION[[#This Row],[HORARIO EXTENDIDO]]","v":0}]
[null,null,null,null,null,null,null,null,null,{"$f":"+IFERROR(VLOOKUP(ESTIMACION[[#This Row],[PERFIL]],$H$11:$J$16,3,FALSE),0)","v":0},null,{"$f":"+ESTIMACION[[#This Row],[HORAS]]*ESTIMACION[[#This Row],[MULTP]]*ESTIMACION[[#This Row],[HORARIO EXTENDIDO]]","v":0}]
[null,null,null,null,null,null,null,null,null,{"$f":"+IFERROR(VLOOKUP(ESTIMACION[[#This Row],[PERFIL]],$H$11:$J$16,3,FALSE),0)","v":0},null,{"$f":"+ESTIMACION[[#This Row],[HORAS]]*ESTIMACION[[#This Row],[MULTP]]*ESTIMACION[[#This Row],[HORARIO EXTENDIDO]]","v":0}]
[null,null,null,null,null,null,null,null,null,{"$f":"+IFERROR(VLOOKUP(ESTIMACION[[#This Row],[PERFIL]],$H$11:$J$16,3,FALSE),0)","v":0},null,{"$f":"+ESTIMACION[[#This Row],[HORAS]]*ESTIMACION[[#This Row],[MULTP]]*ESTIMACION[[#This Row],[HORARIO EXTENDIDO]]","v":0}]
[null,null,null,null,null,null,null,null,null,{"$f":"+IFERROR(VLOOKUP(ESTIMACION[[#This Row],[PERFIL]],$H$11:$J$16,3,FALSE),0)","v":0},null,{"$f":"+ESTIMACION[[#This Row],[HORAS]]*ESTIMACION[[#This Row],[MULTP]]*ESTIMACION[[#This Row],[HORARIO EXTENDIDO]]","v":0}]
[null,null,null,null,null,null,null,null,null,{"$f":"+IFERROR(VLOOKUP(ESTIMACION[[#This Row],[PERFIL]],$H$11:$J$16,3,FALSE),0)","v":0},null,{"$f":"+ESTIMACION[[#This Row],[HORAS]]*ESTIMACION[[#This Row],[MULTP]]*ESTIMACION[[#This Row],[HORARIO EXTENDIDO]]","v":0}]
[null,null,null,null,null,null,null,null,null,{"$f":"+IFERROR(VLOOKUP(ESTIMACION[[#This Row],[PERFIL]],$H$11:$J$16,3,FALSE),0)","v":0},null,{"$f":"+ESTIMACION[[#This Row],[HORAS]]*ESTIMACION[[#This Row],[MULTP]]*ESTIMACION[[#This Row],[HORARIO EXTENDIDO]]","v":0}]
[null,null,null,null,null,null,null,null,null,{"$f":"+IFERROR(VLOOKUP(ESTIMACION[[#This Row],[PERFIL]],$H$11:$J$16,3,FALSE),0)","v":0},null,{"$f":"+ESTIMACION[[#This Row],[HORAS]]*ESTIMACION[[#This Row],[MULTP]]*ESTIMACION[[#This Row],[HORARIO EXTENDIDO]]","v":0}]
[null,null,null,null,null,null,null,null,null,{"$f":"+IFERROR(VLOOKUP(ESTIMACION[[#This Row],[PERFIL]],$H$11:$J$16,3,FALSE),0)","v":0},null,{"$f":"+ESTIMACION[[#This Row],[HORAS]]*ESTIMACION[[#This Row],[MULTP]]*ESTIMACION[[#This Row],[HORARIO EXTENDIDO]]","v":0}]
[null,null,null,null,null,null,null,null,null,{"$f":"+IFERROR(VLOOKUP(ESTIMACION[[#This Row],[PERFIL]],$H$11:$J$16,3,FALSE),0)","v":0},null,{"$f":"+ESTIMACION[[#This Row],[HORAS]]*ESTIMACION[[#This Row],[MULTP]]*ESTIMACION[[#This Row],[HORARIO EXTENDIDO]]","v":0}]
[null,null,null,null,null,null,null,null,null,{"$f":"+IFERROR(VLOOKUP(ESTIMACION[[#This Row],[PERFIL]],$H$11:$J$16,3,FALSE),0)","v":0},null,{"$f":"+ESTIMACION[[#This Row],[HORAS]]*ESTIMACION[[#This Row],[MULTP]]*ESTIMACION[[#This Row],[HORARIO EXTENDIDO]]","v":0}]
[null,null,null,null,null,null,null,null,null,{"$f":"+IFERROR(VLOOKUP(ESTIMACION[[#This Row],[PERFIL]],$H$11:$J$16,3,FALSE),0)","v":0},null,{"$f":"+ESTIMACION[[#This Row],[HORAS]]*ESTIMACION[[#This Row],[MULTP]]*ESTIMACION[[#This Row],[HORARIO EXTENDIDO]]","v":0}]
[null,null,null,null,null,null,null,null,null,{"$f":"+IFERROR(VLOOKUP(ESTIMACION[[#This Row],[PERFIL]],$H$11:$J$16,3,FALSE),0)","v":0},null,{"$f":"+ESTIMACION[[#This Row],[HORAS]]*ESTIMACION[[#This Row],[MULTP]]*ESTIMACION[[#This Row],[HORARIO EXTENDIDO]]","v":0}]
[null,null,null,null,null,null,null,null,null,{"$f":"+IFERROR(VLOOKUP(ESTIMACION[[#This Row],[PERFIL]],$H$11:$J$16,3,FALSE),0)","v":0},null,{"$f":"+ESTIMACION[[#This Row],[HORAS]]*ESTIMACION[[#This Row],[MULTP]]*ESTIMACION[[#This Row],[HORARIO EXTENDIDO]]","v":0}]
[null,null,null,null,null,null,null,null,null,{"$f":"+IFERROR(VLOOKUP(ESTIMACION[[#This Row],[PERFIL]],$H$11:$J$16,3,FALSE),0)","v":0},null,{"$f":"+ESTIMACION[[#This Row],[HORAS]]*ESTIMACION[[#This Row],[MULTP]]*ESTIMACION[[#This Row],[HORARIO EXTENDIDO]]","v":0}]
[null,null,null,null,null,null,null,null,null,{"$f":"+IFERROR(VLOOKUP(ESTIMACION[[#This Row],[PERFIL]],$H$11:$J$16,3,FALSE),0)","v":0},null,{"$f":"+ESTIMACION[[#This Row],[HORAS]]*ESTIMACION[[#This Row],[MULTP]]*ESTIMACION[[#This Row],[HORARIO EXTENDIDO]]","v":0}]
[null,null,null,null,null,null,null,null,null,{"$f":"+IFERROR(VLOOKUP(ESTIMACION[[#This Row],[PERFIL]],$H$11:$J$16,3,FALSE),0)","v":0},null,{"$f":"+ESTIMACION[[#This Row],[HORAS]]*ESTIMACION[[#This Row],[MULTP]]*ESTIMACION[[#This Row],[HORARIO EXTENDIDO]]","v":0}]
[null,null,null,null,null,null,null,null,null,{"$f":"+IFERROR(VLOOKUP(ESTIMACION[[#This Row],[PERFIL]],$H$11:$J$16,3,FALSE),0)","v":0},null,{"$f":"+ESTIMACION[[#This Row],[HORAS]]*ESTIMACION[[#This Row],[MULTP]]*ESTIMACION[[#This Row],[HORARIO EXTENDIDO]]","v":0}]
[null,null,null,null,null,null,null,null,null,{"$f":"+IFERROR(VLOOKUP(ESTIMACION[[#This Row],[PERFIL]],$H$11:$J$16,3,FALSE),0)","v":0},null,{"$f":"+ESTIMACION[[#This Row],[HORAS]]*ESTIMACION[[#This Row],[MULTP]]*ESTIMACION[[#This Row],[HORARIO EXTENDIDO]]","v":0}]
[null,null,null,null,null,null,null,null,null,{"$f":"+IFERROR(VLOOKUP(ESTIMACION[[#This Row],[PERFIL]],$H$11:$J$16,3,FALSE),0)","v":0},null,{"$f":"+ESTIMACION[[#This Row],[HORAS]]*ESTIMACION[[#This Row],[MULTP]]*ESTIMACION[[#This Row],[HORARIO EXTENDIDO]]","v":0}]
[null,null,null,null,null,null,null,null,null,{"$f":"+IFERROR(VLOOKUP(ESTIMACION[[#This Row],[PERFIL]],$H$11:$J$16,3,FALSE),0)","v":0},null,{"$f":"+ESTIMACION[[#This Row],[HORAS]]*ESTIMACION[[#This Row],[MULTP]]*ESTIMACION[[#This Row],[HORARIO EXTENDIDO]]","v":0}]
[null,null,null,null,null,null,null,null,null,{"$f":"+IFERROR(VLOOKUP(ESTIMACION[[#This Row],[PERFIL]],$H$11:$J$16,3,FALSE),0)","v":0},null,{"$f":"+ESTIMACION[[#This Row],[HORAS]]*ESTIMACION[[#This Row],[MULTP]]*ESTIMACION[[#This Row],[HORARIO EXTENDIDO]]","v":0}]
[null,null,null,null,null,null,null,null,null,{"$f":"+IFERROR(VLOOKUP(ESTIMACION[[#This Row],[PERFIL]],$H$11:$J$16,3,FALSE),0)","v":0},null,{"$f":"+ESTIMACION[[#This Row],[HORAS]]*ESTIMACION[[#This Row],[MULTP]]*ESTIMACION[[#This Row],[HORARIO EXTENDIDO]]","v":0}]
[null,null,null,null,null,null,null,null,null,{"$f":"+IFERROR(VLOOKUP(ESTIMACION[[#This Row],[PERFIL]],$H$11:$J$16,3,FALSE),0)","v":0},null,{"$f":"+ESTIMACION[[#This Row],[HORAS]]*ESTIMACION[[#This Row],[MULTP]]*ESTIMACION[[#This Row],[HORARIO EXTENDIDO]]","v":0}]
[null,null,null,null,null,null,null,null,null,{"$f":"+IFERROR(VLOOKUP(ESTIMACION[[#This Row],[PERFIL]],$H$11:$J$16,3,FALSE),0)","v":0},null,{"$f":"+ESTIMACION[[#This Row],[HORAS]]*ESTIMACION[[#This Row],[MULTP]]*ESTIMACION[[#This Row],[HORARIO EXTENDIDO]]","v":0}]
[null,null,null,null,null,null,null,null,null,{"$f":"+IFERROR(VLOOKUP(ESTIMACION[[#This Row],[PERFIL]],$H$11:$J$16,3,FALSE),0)","v":0},null,{"$f":"+ESTIMACION[[#This Row],[HORAS]]*ESTIMACION[[#This Row],[MULTP]]*ESTIMACION[[#This Row],[HORARIO EXTENDIDO]]","v":0}]
[null,null,null,null,null,null,null,null,null,{"$f":"+IFERROR(VLOOKUP(ESTIMACION[[#This Row],[PERFIL]],$H$11:$J$16,3,FALSE),0)","v":0},null,{"$f":"+ESTIMACION[[#This Row],[HORAS]]*ESTIMACION[[#This Row],[MULTP]]*ESTIMACION[[#This Row],[HORARIO EXTENDIDO]]","v":0}]
[null,null,null,null,null,null,null,null,null,{"$f":"+IFERROR(VLOOKUP(ESTIMACION[[#This Row],[PERFIL]],$H$11:$J$16,3,FALSE),0)","v":0},null,{"$f":"+ESTIMACION[[#This Row],[HORAS]]*ESTIMACION[[#This Row],[MULTP]]*ESTIMACION[[#This Row],[HORARIO EXTENDIDO]]","v":0}]
[null,null,null,null,null,null,null,null,null,{"$f":"+IFERROR(VLOOKUP(ESTIMACION[[#This Row],[PERFIL]],$H$11:$J$16,3,FALSE),0)","v":0},null,{"$f":"+ESTIMACION[[#This Row],[HORAS]]*ESTIMACION[[#This Row],[MULTP]]*ESTIMACION[[#This Row],[HORARIO EXTENDIDO]]","v":0}]
[null,null,null,null,null,null,null,null,null,{"$f":"+IFERROR(VLOOKUP(ESTIMACION[[#This Row],[PERFIL]],$H$11:$J$16,3,FALSE),0)","v":0},null,{"$f":"+ESTIMACION[[#This Row],[HORAS]]*ESTIMACION[[#This Row],[MULTP]]*ESTIMACION[[#This Row],[HORARIO EXTENDIDO]]","v":0}]
[null,null,null,null,null,null,null,null,null,{"$f":"+IFERROR(VLOOKUP(ESTIMACION[[#This Row],[PERFIL]],$H$11:$J$16,3,FALSE),0)","v":0},null,{"$f":"+ESTIMACION[[#This Row],[HORAS]]*ESTIMACION[[#This Row],[MULTP]]*ESTIMACION[[#This Row],[HORARIO EXTENDIDO]]","v":0}]
[null,null,null,null,null,null,null,null,null,{"$f":"+IFERROR(VLOOKUP(ESTIMACION[[#This Row],[PERFIL]],$H$11:$J$16,3,FALSE),0)","v":0},null,{"$f":"+ESTIMACION[[#This Row],[HORAS]]*ESTIMACION[[#This Row],[MULTP]]*ESTIMACION[[#This Row],[HORARIO EXTENDIDO]]","v":0}]
[null,null,null,null,null,null,null,null,null,{"$f":"+IFERROR(VLOOKUP(ESTIMACION[[#This Row],[PERFIL]],$H$11:$J$16,3,FALSE),0)","v":0},null,{"$f":"+ESTIMACION[[#This Row],[HORAS]]*ESTIMACION[[#This Row],[MULTP]]*ESTIMACION[[#This Row],[HORARIO EXTENDIDO]]","v":0}]
[null,null,null,null,null,null,null,null,null,{"$f":"+IFERROR(VLOOKUP(ESTIMACION[[#This Row],[PERFIL]],$H$11:$J$16,3,FALSE),0)","v":0},null,{"$f":"+ESTIMACION[[#This Row],[HORAS]]*ESTIMACION[[#This Row],[MULTP]]*ESTIMACION[[#This Row],[HORARIO EXTENDIDO]]","v":0}]
[null,null,null,null,null,null,null,null,null,{"$f":"+IFERROR(VLOOKUP(ESTIMACION[[#This Row],[PERFIL]],$H$11:$J$16,3,FALSE),0)","v":0},null,{"$f":"+ESTIMACION[[#This Row],[HORAS]]*ESTIMACION[[#This Row],[MULTP]]*ESTIMACION[[#This Row],[HORARIO EXTENDIDO]]","v":0}]
[null,null,null,null,null,null,null,null,null,{"$f":"+IFERROR(VLOOKUP(ESTIMACION[[#This Row],[PERFIL]],$H$11:$J$16,3,FALSE),0)","v":0},null,{"$f":"+ESTIMACION[[#This Row],[HORAS]]*ESTIMACION[[#This Row],[MULTP]]*ESTIMACION[[#This Row],[HORARIO EXTENDIDO]]","v":0}]
[null,null,null,null,null,null,null,null,null,{"$f":"+IFERROR(VLOOKUP(ESTIMACION[[#This Row],[PERFIL]],$H$11:$J$16,3,FALSE),0)","v":0},null,{"$f":"+ESTIMACION[[#This Row],[HORAS]]*ESTIMACION[[#This Row],[MULTP]]*ESTIMACION[[#This Row],[HORARIO EXTENDIDO]]","v":0}]
[null,null,null,null,null,null,null,null,null,{"$f":"+IFERROR(VLOOKUP(ESTIMACION[[#This Row],[PERFIL]],$H$11:$J$16,3,FALSE),0)","v":0},null,{"$f":"+ESTIMACION[[#This Row],[HORAS]]*ESTIMACION[[#This Row],[MULTP]]*ESTIMACION[[#This Row],[HORARIO EXTENDIDO]]","v":0}]
[null,null,null,null,null,null,null,null,null,{"$f":"+IFERROR(VLOOKUP(ESTIMACION[[#This Row],[PERFIL]],$H$11:$J$16,3,FALSE),0)","v":0},null,{"$f":"+ESTIMACION[[#This Row],[HORAS]]*ESTIMACION[[#This Row],[MULTP]]*ESTIMACION[[#This Row],[HORARIO EXTENDIDO]]","v":0}]
[null,null,null,null,null,null,null,null,null,{"$f":"+IFERROR(VLOOKUP(ESTIMACION[[#This Row],[PERFIL]],$H$11:$J$16,3,FALSE),0)","v":0},null,{"$f":"+ESTIMACION[[#This Row],[HORAS]]*ESTIMACION[[#This Row],[MULTP]]*ESTIMACION[[#This Row],[HORARIO EXTENDIDO]]","v":0}]
[null,null,null,null,null,null,null,null,null,{"$f":"+IFERROR(VLOOKUP(ESTIMACION[[#This Row],[PERFIL]],$H$11:$J$16,3,FALSE),0)","v":0},null,{"$f":"+ESTIMACION[[#This Row],[HORAS]]*ESTIMACION[[#This Row],[MULTP]]*ESTIMACION[[#This Row],[HORARIO EXTENDIDO]]","v":0}]
[null,null,null,null,null,null,null,null,null,{"$f":"+IFERROR(VLOOKUP(ESTIMACION[[#This Row],[PERFIL]],$H$11:$J$16,3,FALSE),0)","v":0},null,{"$f":"+ESTIMACION[[#This Row],[HORAS]]*ESTIMACION[[#This Row],[MULTP]]*ESTIMACION[[#This Row],[HORARIO EXTENDIDO]]","v":0}]
[null,null,null,null,null,null,null,null,null,{"$f":"+IFERROR(VLOOKUP(ESTIMACION[[#This Row],[PERFIL]],$H$11:$J$16,3,FALSE),0)","v":0},null,{"$f":"+ESTIMACION[[#This Row],[HORAS]]*ESTIMACION[[#This Row],[MULTP]]*ESTIMACION[[#This Row],[HORARIO EXTENDIDO]]","v":0}]
[null,null,null,null,null,null,null,null,null,{"$f":"+IFERROR(VLOOKUP(ESTIMACION[[#This Row],[PERFIL]],$H$11:$J$16,3,FALSE),0)","v":0},null,{"$f":"+ESTIMACION[[#This Row],[HORAS]]*ESTIMACION[[#This Row],[MULTP]]*ESTIMACION[[#This Row],[HORARIO EXTENDIDO]]","v":0}]
[null,null,null,null,null,null,null,null,null,{"$f":"+IFERROR(VLOOKUP(ESTIMACION[[#This Row],[PERFIL]],$H$11:$J$16,3,FALSE),0)","v":0},null,{"$f":"+ESTIMACION[[#This Row],[HORAS]]*ESTIMACION[[#This Row],[MULTP]]*ESTIMACION[[#This Row],[HORARIO EXTENDIDO]]","v":0}]
[null,null,null,null,null,null,null,null,null,{"$f":"+IFERROR(VLOOKUP(ESTIMACION[[#This Row],[PERFIL]],$H$11:$J$16,3,FALSE),0)","v":0},null,{"$f":"+ESTIMACION[[#This Row],[HORAS]]*ESTIMACION[[#This Row],[MULTP]]*ESTIMACION[[#This Row],[HORARIO EXTENDIDO]]","v":0}]
[null,null,null,null,null,null,null,null,null,{"$f":"+IFERROR(VLOOKUP(ESTIMACION[[#This Row],[PERFIL]],$H$11:$J$16,3,FALSE),0)","v":0},null,{"$f":"+ESTIMACION[[#This Row],[HORAS]]*ESTIMACION[[#This Row],[MULTP]]*ESTIMACION[[#This Row],[HORARIO EXTENDIDO]]","v":0}]
[null,null,null,null,null,null,null,null,null,{"$f":"+IFERROR(VLOOKUP(ESTIMACION[[#This Row],[PERFIL]],$H$11:$J$16,3,FALSE),0)","v":0},null,{"$f":"+ESTIMACION[[#This Row],[HORAS]]*ESTIMACION[[#This Row],[MULTP]]*ESTIMACION[[#This Row],[HORARIO EXTENDIDO]]","v":0}]
[null,null,null,null,null,null,null,null,null,{"$f":"+IFERROR(VLOOKUP(ESTIMACION[[#This Row],[PERFIL]],$H$11:$J$16,3,FALSE),0)","v":0},null,{"$f":"+ESTIMACION[[#This Row],[HORAS]]*ESTIMACION[[#This Row],[MULTP]]*ESTIMACION[[#This Row],[HORARIO EXTENDIDO]]","v":0}]
[null,null,null,null,null,null,null,null,null,{"$f":"+IFERROR(VLOOKUP(ESTIMACION[[#This Row],[PERFIL]],$H$11:$J$16,3,FALSE),0)","v":0},null,{"$f":"+ESTIMACION[[#This Row],[HORAS]]*ESTIMACION[[#This Row],[MULTP]]*ESTIMACION[[#This Row],[HORARIO EXTENDIDO]]","v":0}]
[null,null,null,null,null,null,null,null,null,{"$f":"+IFERROR(VLOOKUP(ESTIMACION[[#This Row],[PERFIL]],$H$11:$J$16,3,FALSE),0)","v":0},null,{"$f":"+ESTIMACION[[#This Row],[HORAS]]*ESTIMACION[[#This Row],[MULTP]]*ESTIMACION[[#This Row],[HORARIO EXTENDIDO]]","v":0}]
[null,null,null,null,null,null,null,null,null,{"$f":"+IFERROR(VLOOKUP(ESTIMACION[[#This Row],[PERFIL]],$H$11:$J$16,3,FALSE),0)","v":0},null,{"$f":"+ESTIMACION[[#This Row],[HORAS]]*ESTIMACION[[#This Row],[MULTP]]*ESTIMACION[[#This Row],[HORARIO EXTENDIDO]]","v":0}]
[null,null,null,null,null,null,null,null,null,{"$f":"+IFERROR(VLOOKUP(ESTIMACION[[#This Row],[PERFIL]],$H$11:$J$16,3,FALSE),0)","v":0},null,{"$f":"+ESTIMACION[[#This Row],[HORAS]]*ESTIMACION[[#This Row],[MULTP]]*ESTIMACION[[#This Row],[HORARIO EXTENDIDO]]","v":0}]
[null,null,null,null,null,null,null,null,null,{"$f":"+IFERROR(VLOOKUP(ESTIMACION[[#This Row],[PERFIL]],$H$11:$J$16,3,FALSE),0)","v":0},null,{"$f":"+ESTIMACION[[#This Row],[HORAS]]*ESTIMACION[[#This Row],[MULTP]]*ESTIMACION[[#This Row],[HORARIO EXTENDIDO]]","v":0}]
[null,null,null,null,null,null,null,null,null,{"$f":"+IFERROR(VLOOKUP(ESTIMACION[[#This Row],[PERFIL]],$H$11:$J$16,3,FALSE),0)","v":0},null,{"$f":"+ESTIMACION[[#This Row],[HORAS]]*ESTIMACION[[#This Row],[MULTP]]*ESTIMACION[[#This Row],[HORARIO EXTENDIDO]]","v":0}]
[null,null,null,null,null,null,null,null,null,{"$f":"+IFERROR(VLOOKUP(ESTIMACION[[#This Row],[PERFIL]],$H$11:$J$16,3,FALSE),0)","v":0},null,{"$f":"+ESTIMACION[[#This Row],[HORAS]]*ESTIMACION[[#This Row],[MULTP]]*ESTIMACION[[#This Row],[HORARIO EXTENDIDO]]","v":0}]
[null,null,null,null,null,null,null,null,null,{"$f":"+IFERROR(VLOOKUP(ESTIMACION[[#This Row],[PERFIL]],$H$11:$J$16,3,FALSE),0)","v":0},null,{"$f":"+ESTIMACION[[#This Row],[HORAS]]*ESTIMACION[[#This Row],[MULTP]]*ESTIMACION[[#This Row],[HORARIO EXTENDIDO]]","v":0}]
[null,null,null,null,null,null,null,null,null,{"$f":"+IFERROR(VLOOKUP(ESTIMACION[[#This Row],[PERFIL]],$H$11:$J$16,3,FALSE),0)","v":0},null,{"$f":"+ESTIMACION[[#This Row],[HORAS]]*ESTIMACION[[#This Row],[MULTP]]*ESTIMACION[[#This Row],[HORARIO EXTENDIDO]]","v":0}]
[null,null,null,null,null,null,null,null,null,{"$f":"+IFERROR(VLOOKUP(ESTIMACION[[#This Row],[PERFIL]],$H$11:$J$16,3,FALSE),0)","v":0},null,{"$f":"+ESTIMACION[[#This Row],[HORAS]]*ESTIMACION[[#This Row],[MULTP]]*ESTIMACION[[#This Row],[HORARIO EXTENDIDO]]","v":0}]
[null,null,null,null,null,null,null,null,null,{"$f":"+IFERROR(VLOOKUP(ESTIMACION[[#This Row],[PERFIL]],$H$11:$J$16,3,FALSE),0)","v":0},null,{"$f":"+ESTIMACION[[#This Row],[HORAS]]*ESTIMACION[[#This Row],[MULTP]]*ESTIMACION[[#This Row],[HORARIO EXTENDIDO]]","v":0}]
[null,null,null,null,null,null,null,null,null,{"$f":"+IFERROR(VLOOKUP(ESTIMACION[[#This Row],[PERFIL]],$H$11:$J$16,3,FALSE),0)","v":0},null,{"$f":"+ESTIMACION[[#This Row],[HORAS]]*ESTIMACION[[#This Row],[MULTP]]*ESTIMACION[[#This Row],[HORARIO EXTENDIDO]]","v":0}]
[null,null,null,null,null,null,null,null,null,{"$f":"+IFERROR(VLOOKUP(ESTIMACION[[#This Row],[PERFIL]],$H$11:$J$16,3,FALSE),0)","v":0},null,{"$f":"+ESTIMACION[[#This Row],[HORAS]]*ESTIMACION[[#This Row],[MULTP]]*ESTIMACION[[#This Row],[HORARIO EXTENDIDO]]","v":0}]
[null,null,null,null,null,null,null,null,null,{"$f":"+IFERROR(VLOOKUP(ESTIMACION[[#This Row],[PERFIL]],$H$11:$J$16,3,FALSE),0)","v":0},null,{"$f":"+ESTIMACION[[#This Row],[HORAS]]*ESTIMACION[[#This Row],[MULTP]]*ESTIMACION[[#This Row],[HORARIO EXTENDIDO]]","v":0}]
[null,null,null,null,null,null,null,null,null,{"$f":"+IFERROR(VLOOKUP(ESTIMACION[[#This Row],[PERFIL]],$H$11:$J$16,3,FALSE),0)","v":0},null,{"$f":"+ESTIMACION[[#This Row],[HORAS]]*ESTIMACION[[#This Row],[MULTP]]*ESTIMACION[[#This Row],[HORARIO EXTENDIDO]]","v":0}]
[null,null,null,null,null,null,null,null,null,{"$f":"+IFERROR(VLOOKUP(ESTIMACION[[#This Row],[PERFIL]],$H$11:$J$16,3,FALSE),0)","v":0},null,{"$f":"+ESTIMACION[[#This Row],[HORAS]]*ESTIMACION[[#This Row],[MULTP]]*ESTIMACION[[#This Row],[HORARIO EXTENDIDO]]","v":0}]
[null,null,null,null,null,null,null,null,null,{"$f":"+IFERROR(VLOOKUP(ESTIMACION[[#This Row],[PERFIL]],$H$11:$J$16,3,FALSE),0)","v":0},null,{"$f":"+ESTIMACION[[#This Row],[HORAS]]*ESTIMACION[[#This Row],[MULTP]]*ESTIMACION[[#This Row],[HORARIO EXTENDIDO]]","v":0}]
[null,null,null,null,null,null,null,null,null,{"$f":"+IFERROR(VLOOKUP(ESTIMACION[[#This Row],[PERFIL]],$H$11:$J$16,3,FALSE),0)","v":0},null,{"$f":"+ESTIMACION[[#This Row],[HORAS]]*ESTIMACION[[#This Row],[MULTP]]*ESTIMACION[[#This Row],[HORARIO EXTENDIDO]]","v":0}]
[null,null,null,null,null,null,null,null,null,{"$f":"+IFERROR(VLOOKUP(ESTIMACION[[#This Row],[PERFIL]],$H$11:$J$16,3,FALSE),0)","v":0},null,{"$f":"+ESTIMACION[[#This Row],[HORAS]]*ESTIMACION[[#This Row],[MULTP]]*ESTIMACION[[#This Row],[HORARIO EXTENDIDO]]","v":0}]
[null,null,null,null,null,null,null,null,null,{"$f":"+IFERROR(VLOOKUP(ESTIMACION[[#This Row],[PERFIL]],$H$11:$J$16,3,FALSE),0)","v":0},null,{"$f":"+ESTIMACION[[#This Row],[HORAS]]*ESTIMACION[[#This Row],[MULTP]]*ESTIMACION[[#This Row],[HORARIO EXTENDIDO]]","v":0}]
[null,null,null,null,null,null,null,null,null,{"$f":"+IFERROR(VLOOKUP(ESTIMACION[[#This Row],[PERFIL]],$H$11:$J$16,3,FALSE),0)","v":0},null,{"$f":"+ESTIMACION[[#This Row],[HORAS]]*ESTIMACION[[#This Row],[MULTP]]*ESTIMACION[[#This Row],[HORARIO EXTENDIDO]]","v":0}]
[null,null,null,null,null,null,null,null,null,{"$f":"+IFERROR(VLOOKUP(ESTIMACION[[#This Row],[PERFIL]],$H$11:$J$16,3,FALSE),0)","v":0},null,{"$f":"+ESTIMACION[[#This Row],[HORAS]]*ESTIMACION[[#This Row],[MULTP]]*ESTIMACION[[#This Row],[HORARIO EXTENDIDO]]","v":0}]
[null,null,null,null,null,null,null,null,null,{"$f":"+IFERROR(VLOOKUP(ESTIMACION[[#This Row],[PERFIL]],$H$11:$J$16,3,FALSE),0)","v":0},null,{"$f":"+ESTIMACION[[#This Row],[HORAS]]*ESTIMACION[[#This Row],[MULTP]]*ESTIMACION[[#This Row],[HORARIO EXTENDIDO]]","v":0}]
[null,null,null,null,null,null,null,null,null,{"$f":"+IFERROR(VLOOKUP(ESTIMACION[[#This Row],[PERFIL]],$H$11:$J$16,3,FALSE),0)","v":0},null,{"$f":"+ESTIMACION[[#This Row],[HORAS]]*ESTIMACION[[#This Row],[MULTP]]*ESTIMACION[[#This Row],[HORARIO EXTENDIDO]]","v":0}]
[null,null,null,null,null,null,null,null,null,{"$f":"+IFERROR(VLOOKUP(ESTIMACION[[#This Row],[PERFIL]],$H$11:$J$16,3,FALSE),0)","v":0},null,{"$f":"+ESTIMACION[[#This Row],[HORAS]]*ESTIMACION[[#This Row],[MULTP]]*ESTIMACION[[#This Row],[HORARIO EXTENDIDO]]","v":0}]
[null,null,null,null,null,null,null,null,null,{"$f":"+IFERROR(VLOOKUP(ESTIMACION[[#This Row],[PERFIL]],$H$11:$J$16,3,FALSE),0)","v":0},null,{"$f":"+ESTIMACION[[#This Row],[HORAS]]*ESTIMACION[[#This Row],[MULTP]]*ESTIMACION[[#This Row],[HORARIO EXTENDIDO]]","v":0}]
[null,null,null,null,null,null,null,null,null,{"$f":"+IFERROR(VLOOKUP(ESTIMACION[[#This Row],[PERFIL]],$H$11:$J$16,3,FALSE),0)","v":0},null,{"$f":"+ESTIMACION[[#This Row],[HORAS]]*ESTIMACION[[#This Row],[MULTP]]*ESTIMACION[[#This Row],[HORARIO EXTENDIDO]]","v":0}]
[null,null,null,null,null,null,null,null,null,{"$f":"+IFERROR(VLOOKUP(ESTIMACION[[#This Row],[PERFIL]],$H$11:$J$16,3,FALSE),0)","v":0},null,{"$f":"+ESTIMACION[[#This Row],[HORAS]]*ESTIMACION[[#This Row],[MULTP]]*ESTIMACION[[#This Row],[HORARIO EXTENDIDO]]","v":0}]
[null,null,null,null,null,null,null,null,null,{"$f":"+IFERROR(VLOOKUP(ESTIMACION[[#This Row],[PERFIL]],$H$11:$J$16,3,FALSE),0)","v":0},null,{"$f":"+ESTIMACION[[#This Row],[HORAS]]*ESTIMACION[[#This Row],[MULTP]]*ESTIMACION[[#This Row],[HORARIO EXTENDIDO]]","v":0}]
[null,null,null,null,null,null,null,null,null,{"$f":"+IFERROR(VLOOKUP(ESTIMACION[[#This Row],[PERFIL]],$H$11:$J$16,3,FALSE),0)","v":0},null,{"$f":"+ESTIMACION[[#This Row],[HORAS]]*ESTIMACION[[#This Row],[MULTP]]*ESTIMACION[[#This Row],[HORARIO EXTENDIDO]]","v":0}]
[null,null,null,null,null,null,null,null,null,{"$f":"+IFERROR(VLOOKUP(ESTIMACION[[#This Row],[PERFIL]],$H$11:$J$16,3,FALSE),0)","v":0},null,{"$f":"+ESTIMACION[[#This Row],[HORAS]]*ESTIMACION[[#This Row],[MULTP]]*ESTIMACION[[#This Row],[HORARIO EXTENDIDO]]","v":0}]
[null,null,null,null,null,null,null,null,null,{"$f":"+IFERROR(VLOOKUP(ESTIMACION[[#This Row],[PERFIL]],$H$11:$J$16,3,FALSE),0)","v":0},null,{"$f":"+ESTIMACION[[#This Row],[HORAS]]*ESTIMACION[[#This Row],[MULTP]]*ESTIMACION[[#This Row],[HORARIO EXTENDIDO]]","v":0}]
[null,null,null,null,null,null,null,null,null,{"$f":"+IFERROR(VLOOKUP(ESTIMACION[[#This Row],[PERFIL]],$H$11:$J$16,3,FALSE),0)","v":0},null,{"$f":"+ESTIMACION[[#This Row],[HORAS]]*ESTIMACION[[#This Row],[MULTP]]*ESTIMACION[[#This Row],[HORARIO EXTENDIDO]]","v":0}]
[null,null,null,null,null,null,null,null,null,{"$f":"+IFERROR(VLOOKUP(ESTIMACION[[#This Row],[PERFIL]],$H$11:$J$16,3,FALSE),0)","v":0},null,{"$f":"+ESTIMACION[[#This Row],[HORAS]]*ESTIMACION[[#This Row],[MULTP]]*ESTIMACION[[#This Row],[HORARIO EXTENDIDO]]","v":0}]
[null,null,null,null,null,null,null,null,null,{"$f":"+IFERROR(VLOOKUP(ESTIMACION[[#This Row],[PERFIL]],$H$11:$J$16,3,FALSE),0)","v":0},null,{"$f":"+ESTIMACION[[#This Row],[HORAS]]*ESTIMACION[[#This Row],[MULTP]]*ESTIMACION[[#This Row],[HORARIO EXTENDIDO]]","v":0}]
[null,null,null,null,null,null,null,null,null,{"$f":"+IFERROR(VLOOKUP(ESTIMACION[[#This Row],[PERFIL]],$H$11:$J$16,3,FALSE),0)","v":0},null,{"$f":"+ESTIMACION[[#This Row],[HORAS]]*ESTIMACION[[#This Row],[MULTP]]*ESTIMACION[[#This Row],[HORARIO EXTENDIDO]]","v":0}]
[null,null,null,null,null,null,null,null,null,{"$f":"+IFERROR(VLOOKUP(ESTIMACION[[#This Row],[PERFIL]],$H$11:$J$16,3,FALSE),0)","v":0},null,{"$f":"+ESTIMACION[[#This Row],[HORAS]]*ESTIMACION[[#This Row],[MULTP]]*ESTIMACION[[#This Row],[HORARIO EXTENDIDO]]","v":0}]
[null,null,null,null,null,null,null,null,null,{"$f":"+IFERROR(VLOOKUP(ESTIMACION[[#This Row],[PERFIL]],$H$11:$J$16,3,FALSE),0)","v":0},null,{"$f":"+ESTIMACION[[#This Row],[HORAS]]*ESTIMACION[[#This Row],[MULTP]]*ESTIMACION[[#This Row],[HORARIO EXTENDIDO]]","v":0}]
[null,null,null,null,null,null,null,null,null,{"$f":"+IFERROR(VLOOKUP(ESTIMACION[[#This Row],[PERFIL]],$H$11:$J$16,3,FALSE),0)","v":0},null,{"$f":"+ESTIMACION[[#This Row],[HORAS]]*ESTIMACION[[#This Row],[MULTP]]*ESTIMACION[[#This Row],[HORARIO EXTENDIDO]]","v":0}]
[null,null,null,null,null,null,null,null,null,{"$f":"+IFERROR(VLOOKUP(ESTIMACION[[#This Row],[PERFIL]],$H$11:$J$16,3,FALSE),0)","v":0},null,{"$f":"+ESTIMACION[[#This Row],[HORAS]]*ESTIMACION[[#This Row],[MULTP]]*ESTIMACION[[#This Row],[HORARIO EXTENDIDO]]","v":0}]

{"sheet":"REAL","index":3,"n_rows":200,"n_cols":17,"rows_kept":200,"cut":false,"hidden":false,"merged":[]}
[]
[null,null,null,null,null,null,null,null,null,null,null,null,null,null,null,null,"SVT"]
[null,null,null,null,null,null,null,null,null,null,null,null,"Incurrido de la Orden de Trabajo",null,null,null,"OTEVS"]
[null,null,null,null,null,null,null,null,null,null,null,null,null,null,null,null,"OTR"]
[null,null,null,null,"REAL",null,null,null,null,null,null,"TIPO DE OT","OTAD",null,null,null,"OTInm"]
[null,null,null,null,null,null,null,null,null,null,null,"Incurrido de la OT (HBS): ",{"$f":"K17","v":425.4375},null,null,null,"OTEquipo"]
[null,"Fecha de inicio: ","2021-11-15",null,null,null,null,null,null,null,null,null,null,null,null,null,"PST"]
[null,"Fecha de entrega: ","2021-12-10",null,null,null,null,null,null,null,null,"REF JIRA","APLICATIVO_1-2345",null,null,null,"OTA"]
[null,null,null,null,null,null,null,null,null,null,null,null,null,null,null,null,"OTD"]
[null,"ENTREGABLES",null,null,null,null,null,null,"HORAS","MULTP","HBS",null,null,null,null,null,"OTC"]
[null,"PAQUETE DE CÓDIGO (SVN)",null,null,null,null,null,"CO",{"$f":"SUMIF(REAL[PERFIL],H11,REAL[HORAS])","v":123},2,{"$f":"SUMIF(REAL[PERFIL],H11,REAL[HBS])","v":246},null,null,null,null,null,"OTAD"]
[null,"PLAN DE PRUEBAS FUNCIONALES DETALLADO (PPF)",null,null,null,null,null,"AF",{"$f":"SUMIF(REAL[PERFIL],H12,REAL[HORAS])","v":68.25},1.75,{"$f":"SUMIF(REAL[PERFIL],H12,REAL[HBS])","v":119.4375},null,null,null,null,null,"OTADC"]
[null,"GUÍA DE MIGRACIÓN",null,null,null,null,null,"AP",{"$f":"SUMIF(REAL[PERFIL],H13,REAL[HORAS])","v":0},1.5,{"$f":"SUMIF(REAL[PERFIL],H13,REAL[HBS])","v":0},null,null,null,null,null,"OTImpl"]
[null,"GUÍA DE PARAMETRIZACIÓN",null,null,null,null,null,"PR",{"$f":"SUMIF(REAL[PERFIL],H14,REAL[HORAS])","v":36},1.25,{"$f":"SUMIF(REAL[PERFIL],H14,REAL[HBS])","v":45},null,null,null,null,null,"OTAgil"]
[null,"DEFINICIÓN DEL ALCANCE DE LA MIGRACIÓN",null,null,null,null,null,"PJ",{"$f":"SUMIF(REAL[PERFIL],H15,REAL[HORAS])","v":15},1,{"$f":"SUMIF(REAL[PERFIL],H15,REAL[HBS])","v":15}]
[null,"REGISTRO DE EJECUCIÓN DEL PPF",null,null,null,null,null,"H.EXTENDIDO",null,1.5,null,null,null,null,null,null,"PRODUCCION"]
[null,"HERRAMIENTA DE MIGRACIÓN",null,null,null,null,null,"TOTAL OT",{"$f":"SUM(I11:I15)","v":242.25},null,{"$f":"SUM(K11:K15)","v":425.4375},null,null,null,null,null,"GESTION"]
[null,"MANUAL DE USUARIO",null,null,null,null,null,null,null,null,null,null,null,null,null,null,"REUNION"]
[null,"CONSTRUCCIÓN DE FUNCIONALIDADES/COMPONENTES",null,null,null,null,null,null,"HORAS","HBS"]
[null,"PRUEBAS",null,null,null,null,null,"PRODUCCION",{"$f":"SUMIF(REAL[TIPO DE ACTIVIDAD],H20,REAL[HORAS])","v":116.75},{"$f":"SUMIF(REAL[TIPO DE ACTIVIDAD],H20,REAL[HBS])","v":184.8125}]
[null,"VALIDACIÓN DEL ALCANCE",null,null,null,null,null,"GESTION",{"$f":"SUMIF(REAL[TIPO DE ACTIVIDAD],H21,REAL[HORAS])","v":18.5},{"$f":"SUMIF(REAL[TIPO DE ACTIVIDAD],H21,REAL[HBS])","v":28.375}]
[null,"OTRAS ACTIVIDADES DE CONSTRUCCIÓN Y PRUEBAS",null,null,null,null,null,"REUNION",{"$f":"SUMIF(REAL[TIPO DE ACTIVIDAD],H22,REAL[HORAS])","v":107},{"$f":"SUMIF(REAL[TIPO DE ACTIVIDAD],H22,REAL[HBS])","v":212.25}]
[]
[null,null,null,null,null,null,null,null,{"$f":"SUM(REAL[HORAS])","v":242.25},null,null,{"$f":"SUM(REAL[HBS])","v":425.4375}]
[null,"USUARIO","FECHA","TAREA","FASE PROYECTO\n/ COD. JIRA","COMPONENTE\nVERSION","TIPO DE ACTIVIDAD","PERFIL","HORAS","MULTP","HORARIO EXTENDIDO","HBS","COMENTARIOS"]
[null,"Analista Funcional 2","02/11/2021","v3.1 Análisis y validación funcional en desa","MEJORA-1235","APLICATIVO_1 3.1","PRODUCCION","AF",5,{"$f":"+IFERROR(VLOOKUP(REAL[[#This Row],[PERFIL]],$H$11:$J$16,3,FALSE),0)","v":1.75},1,8.75," - Lectura y análisis de la documentación para la versión 3.1.\n- Reunión funcional para resolución de dudas sobre la versión 3.1 y explicación sobre el circuito funcional.\n- Lectura de correos sobre la información de la versión."]
[null,"Analista Funcional 1","02/11/2021","CS- análisis  3.1 ","MEJORA-1235","APLICATIVO_1 3.1","REUNION","AF",2.5,{"$f":"+IFERROR(VLOOKUP(REAL[[#This Row],[PERFIL]],$H$11:$J$16,3,FALSE),0)","v":1.75},"NO",4.375,"Revisión doc . Explicación a otra funcional"]
[null,"Analista Funcional 2","03/11/2021","v3.1 Análisis y validación funcional en desa","MEJORA-1235","CLICSALUD 3.1","GESTION","AF",7,{"$f":"+IFERROR(VLOOKUP(REAL[[#This Row],[PERFIL]],$H$11:$J$16,3,FALSE),0)","v":1.75},"NO",12.25,"- Repaso de la documentación para la versión 3.1.\n- Lectura de correos sobre la información de la versión.\n- Creación del Team Review de la versión 3.1.\n- Creación de la carpeta de objetivos, objetivos de la versión y diagrama correspondiente."]
[null,"Programador 1","03/11/2021","ClicSalud 3.1 - Mejoras EIDAS","INCIDENCIA-1125","CLICSALUD 3.1","PRODUCCION","PR",8,{"$f":"+IFERROR(VLOOKUP(REAL[[#This Row],[PERFIL]],$H$11:$J$16,3,FALSE),0)","v":1.25},"NO",10,"Mejoras EIDAS Control correo y campo PersonalIdentifier"]
[null,"Programador 1","04/11/2021","ClicSalud 3.1 - Mejoras EIDAS","INCIDENCIA-1125","CLICSALUD 3.1","GESTION","PR",8,{"$f":"+IFERROR(VLOOKUP(REAL[[#This Row],[PERFIL]],$H$11:$J$16,3,FALSE),0)","v":1.25},"NO",10,"Mejoras EIDAS Combo tipos Documentos"]
[null,"Analista Funcional 2","04/11/2021","v3.1 Análisis y validación funcional en desa","INCIDENCIA-1125","CLICSALUD 3.1","PRODUCCION","AF",3.25,{"$f":"+IFERROR(VLOOKUP(REAL[[#This Row],[PERFIL]],$H$11:$J$16,3,FALSE),0)","v":1.75},"NO",5.6875,"- Revisión y validación del acceso con clave a CS+ en el entorno de PRE, e informarlo al equipo funcional del resultado.\n- Lectura de hilos de correos sobre el desarrollo de la versión."]
[null,"Programador Junior 2","05/11/2021","ClicSalud 3.1 - Mejoras EIDAS","MEJORA-1426","CLICSALUD 3.1","PRODUCCION","PJ",3,{"$f":"+IFERROR(VLOOKUP(REAL[[#This Row],[PERFIL]],$H$11:$J$16,3,FALSE),0)","v":1},"NO",3,"pruebas cambios eidas"]
[null,"Analista Funcional 2","05/11/2021","v3.1 Análisis y validación funcional en desa","MEJORA-1426","CLICSALUD 3.1","GESTION","AF",3.5,{"$f":"+IFERROR(VLOOKUP(REAL[[#This Row],[PERFIL]],$H$11:$J$16,3,FALSE),0)","v":1.75},"NO",6.125,"- Comunicación con el equipo funcional para organizar la validación de la versión en el entorno de desarrollo y puesta al día del análisis del EA v3.1.\n- Lectura de hilos de correos sobre el desarrollo de la versión de cara a la validación en desarrollo.\n- Validación funcional en el entorno de desarrollo de la versión 3.1 y resolución de dudas con el equipo de desarrollo."]
[null,"Analista Funcional 1","05/11/2021","CS- análisis  3.1 ","INCIDENCIA-1125","CLICSALUD 3.1","PRODUCCION","AF",4.5,{"$f":"+IFERROR(VLOOKUP(REAL[[#This Row],[PERFIL]],$H$11:$J$16,3,FALSE),0)","v":1.75},"NO",7.875,"Validación EIDAS "]
[null,"Programador 1","08/11/2021","ClicSalud 3.1 - Mejoras EIDAS","INCIDENCIA-1125","CLICSALUD 3.1","PRODUCCION","PR",5,{"$f":"+IFERROR(VLOOKUP(REAL[[#This Row],[PERFIL]],$H$11:$J$16,3,FALSE),0)","v":1.25},"NO",6.25,"cambios errores eidas develop"]
[null,"Analista Funcional 2","08/11/2021","v3.1 Análisis y validación funcional en desa","MEJORA-1235","CLICSALUD 3.1","REUNION","AF",4.5,{"$f":"+IFERROR(VLOOKUP(REAL[[#This Row],[PERFIL]],$H$11:$J$16,3,FALSE),0)","v":1.75},"NO",7.875,"Reunión funcional sobre la validación de la versión v3.1 de CS+."]
[null,"Analista Funcional 1","08/11/2021","CS- análisis  3.2.1","INCI3ENCIALU-1125","CLICSALUD 3.2.1","PRODUCCION","AF",2.5,{"$f":"+IFERROR(VLOOKUP(REAL[[#This Row],[PERFIL]],$H$11:$J$16,3,FALSE),0)","v":1.75},"NO",4.375,"Analysis"]
[null,"Analista Funcional 2","09/11/2021","v3.2.1 Análisis y validación funcional en desa","INCI3ENCIALU-1125","CLICSALUD 3.2.1","PRODUCCION","AF",6.5,{"$f":"+IFERROR(VLOOKUP(REAL[[#This Row],[PERFIL]],$H$11:$J$16,3,FALSE),0)","v":1.75},"NO",11.375,"- Creación de casos de prueba, objetivos y requisitos de la versión 3.1.\n- resolución de dudas funcionales."]
[null,"Programador Junior 2","09/11/2021","CS 3.2.1 - Cambios en EIDAS","MEJORA-2426","CLICSALUD 3.2.1","PRODUCCION","PJ",9,{"$f":"+IFERROR(VLOOKUP(REAL[[#This Row],[PERFIL]],$H$11:$J$16,3,FALSE),0)","v":1},"NO",9,"Construction and Unit Tests"]
[null,"Analista Funcional 2","10/11/2021","v3.2.1 Análisis y validación funcional en desa","MEJORALU-1426","CLICSALUD 3.2.1","PRODUCCION","AF",9,{"$f":"+IFERROR(VLOOKUP(REAL[[#This Row],[PERFIL]],$H$11:$J$16,3,FALSE),0)","v":1.75},"NO",15.75,"- Validación funcional v3.1 en el entorno de desarrollo y comunicación de incidencias por correo al equipo de desarrollo.\n- Se actualizan requisitos funcionales, requisitos de integración, Interfaz, caso de uso, casos de prueba y diagramas correspondientes en el EA v.3.1."]
[null,"Programador 1","10/11/2021","ClicSalud 3.2.1 - Mejoras EIDAS","INCI3ENCIALU-1125","CLICSALUD 3.2.1","PRODUCCION","PR",3,{"$f":"+IFERROR(VLOOKUP(REAL[[#This Row],[PERFIL]],$H$11:$J$16,3,FALSE),0)","v":1.25},"NO",3.75,"problemas Clave en PRE, preparación envio versión cambios EIDAS"]
[null,"Equipo Calidad","10/11/2021","CLICSALUD v3.1.0.1 Instalaciones en Calidad y entrega a Cliente","MEJORALU-1426","CLICSALUD 3.1","PRODUCCION","CO",5,{"$f":"+IFERROR(VLOOKUP(REAL[[#This Row],[PERFIL]],$H$11:$J$16,3,FALSE),0)","v":2},"NO",10,"Instalaciones y revisiones en Entorno de Calidad. "]
[null,"Equipo Desarrollo 2","10/11/2021","CS 3.1 - Cambios en EIDAS","INCIDENCIA-1125","CLICSALUD 3.1","PRODUCCION","PR",9,{"$f":"+IFERROR(VLOOKUP(REAL[[#This Row],[PERFIL]],$H$11:$J$16,3,FALSE),0)","v":1.25},"NO",11.25,"Construction and Unit Tests"]
[null,"Jefe de Proyecto","10/11/2021","Gestión","MEJORALU-1426","CLICSALUD 3.1","PRODUCCION","CO",9,{"$f":"+IFERROR(VLOOKUP(REAL[[#This Row],[PERFIL]],$H$11:$J$16,3,FALSE),0)","v":2},"NO",18,"Management"]
[null,"Analista Funcional 2","11/11/2021","Validación funcional CS+ v3.1 PRE","INCIDENCIA-1125","CLICSALUD 3.1","PRODUCCION","AF",3.5,{"$f":"+IFERROR(VLOOKUP(REAL[[#This Row],[PERFIL]],$H$11:$J$16,3,FALSE),0)","v":1.75},"NO",6.125,"- Validación funcional de la instalación de CS  v3.1 en entorno de PRE.\n- Revisión de las no conformidades detectadas con el equipo de desarrollo."]
[null,"Analista Funcional 2","11/11/2021","v3.1 Análisis y validación funcional en desa","MEJORA-1235","CLICSALUD 3.1","PRODUCCION","AF",5,{"$f":"+IFERROR(VLOOKUP(REAL[[#This Row],[PERFIL]],$H$11:$J$16,3,FALSE),0)","v":1.75},"NO",8.75,"creación casos de prueba de la versión 3.1 en el EA y esquema de las posibles casuísticas.\nrevisión de la documentación de análisis de eIDAS y correos de la versión."]
[null,"Equipo Desarrollo 2","11/11/2021","v3.1 Cambios EIDAS Implantación PRO","INCIDENCIA-1125","CLICSALUD 3.1","PRODUCCION","PR",3,{"$f":"+IFERROR(VLOOKUP(REAL[[#This Row],[PERFIL]],$H$11:$J$16,3,FALSE),0)","v":1.25},"NO",3.75,"Puesta en producción"]
[null,"Jefe de Proyecto","11/11/2021","Gestión","MEJORA-2426","CLICSALUD 3.1","PRODUCCION","CO",9,{"$f":"+IFERROR(VLOOKUP(REAL[[#This Row],[PERFIL]],$H$11:$J$16,3,FALSE),0)","v":2},"NO",18,"Management"]
[null,"Analista Funcional 2","12/11/2021","v3.1 Análisis y validación funcional en desa","INCIDENCIA-1125","CLICSALUD 3.1","PRODUCCION","AF",4.5,{"$f":"+IFERROR(VLOOKUP(REAL[[#This Row],[PERFIL]],$H$11:$J$16,3,FALSE),0)","v":1.75},"NO",7.875,"modificación de caso de prueba de versión anterior para adaptarlo a la versión actual y añadir casuísticas que incluye la versión."]
[null,"Analista Funcional 2","15/11/2021","v3.1 Análisis y validación funcional en desa","INCIDENCIA-1125","CLICSALUD 3.1","PRODUCCION","AF",3,{"$f":"+IFERROR(VLOOKUP(REAL[[#This Row],[PERFIL]],$H$11:$J$16,3,FALSE),0)","v":1.75},"NO",5.25,"- revisión del EA v3.1\n- reunión equipo funcional para revisar EA v3.1 y resolución de dudas."]
[null,"Analista Funcional 1","15/11/2021","CS- análisis  3.1 ","MEJORA-1235","CLICSALUD 3.1","PRODUCCION","AF",4,{"$f":"+IFERROR(VLOOKUP(REAL[[#This Row],[PERFIL]],$H$11:$J$16,3,FALSE),0)","v":1.75},"NO",7,"revisión EA  e incluisón de relaciones , refinamiento casos de prueba . Creación baseline "]
[null,"Analista Funcional 2","16/11/2021","v3.1 Análisis y validación funcional en desa","MEJORA-1235","CLICSALUD 3.1","PRODUCCION","PJ",3,{"$f":"+IFERROR(VLOOKUP(REAL[[#This Row],[PERFIL]],$H$11:$J$16,3,FALSE),0)","v":1},"NO",3,"- Revisión del EA v3.1\n- reunión equipo funcional para revisar EA v3.1 y resolución de dudas.\n- Generación del EA y PPF v3.1.\n- envío de correo de la documentación generada.\n- subida de la documentación a los repositorios documentales: GDOP y Confluence."]
[null,null,"2021-11-17","v3.2 Análisis y validación funcional en desa","MEJORA-2426","CLICSALUD 4.0","REUNION","CO",100,{"$f":"+IFERROR(VLOOKUP(REAL[[#This Row],[PERFIL]],$H$11:$J$16,3,FALSE),0)","v":2},"NO",200]
[null,null,null,null,null,null,null,null,null,{"$f":"+IFERROR(VLOOKUP(REAL[[#This Row],[PERFIL]],$H$11:$J$16,3,FALSE),0)","v":0},null,{"$f":"+REAL[[#This Row],[HORAS]]*REAL[[#This Row],[MULTP]]*REAL[[#This Row],[HORARIO EXTENDIDO]]","v":0}]
[null,null,null,null,null,null,null,null,null,{"$f":"+IFERROR(VLOOKUP(REAL[[#This Row],[PERFIL]],$H$11:$J$16,3,FALSE),0)","v":0},null,{"$f":"+REAL[[#This Row],[HORAS]]*REAL[[#This Row],[MULTP]]*REAL[[#This Row],[HORARIO EXTENDIDO]]","v":0}]
[null,null,null,null,null,null,null,null,null,{"$f":"+IFERROR(VLOOKUP(REAL[[#This Row],[PERFIL]],$H$11:$J$16,3,FALSE),0)","v":0},null,{"$f":"+REAL[[#This Row],[HORAS]]*REAL[[#This Row],[MULTP]]*REAL[[#This Row],[HORARIO EXTENDIDO]]","v":0}]
[null,null,null,null,null,null,null,null,null,{"$f":"+IFERROR(VLOOKUP(REAL[[#This Row],[PERFIL]],$H$11:$J$16,3,FALSE),0)","v":0},null,{"$f":"+REAL[[#This Row],[HORAS]]*REAL[[#This Row],[MULTP]]*REAL[[#This Row],[HORARIO EXTENDIDO]]","v":0}]
[null,null,null,null,null,null,null,null,null,{"$f":"+IFERROR(VLOOKUP(REAL[[#This Row],[PERFIL]],$H$11:$J$16,3,FALSE),0)","v":0},null,{"$f":"+REAL[[#This Row],[HORAS]]*REAL[[#This Row],[MULTP]]*REAL[[#This Row],[HORARIO EXTENDIDO]]","v":0}]
[null,null,null,null,null,null,null,null,null,{"$f":"+IFERROR(VLOOKUP(REAL[[#This Row],[PERFIL]],$H$11:$J$16,3,FALSE),0)","v":0},null,{"$f":"+REAL[[#This Row],[HORAS]]*REAL[[#This Row],[MULTP]]*REAL[[#This Row],[HORARIO EXTENDIDO]]","v":0}]
[null,null,null,null,null,null,null,null,null,{"$f":"+IFERROR(VLOOKUP(REAL[[#This Row],[PERFIL]],$H$11:$J$16,3,FALSE),0)","v":0},null,{"$f":"+REAL[[#This Row],[HORAS]]*REAL[[#This Row],[MULTP]]*REAL[[#This Row],[HORARIO EXTENDIDO]]","v":0}]
[null,null,null,null,null,null,null,null,null,{"$f":"+IFERROR(VLOOKUP(REAL[[#This Row],[PERFIL]],$H$11:$J$16,3,FALSE),0)","v":0},null,{"$f":"+REAL[[#This Row],[HORAS]]*REAL[[#This Row],[MULTP]]*REAL[[#This Row],[HORARIO EXTENDIDO]]","v":0}]
[null,null,null,null,null,null,null,null,null,{"$f":"+IFERROR(VLOOKUP(REAL[[#This Row],[PERFIL]],$H$11:$J$16,3,FALSE),0)","v":0},null,{"$f":"+REAL[[#This Row],[HORAS]]*REAL[[#This Row],[MULTP]]*REAL[[#This Row],[HORARIO EXTENDIDO]]","v":0}]
[null,null,null,null,null,null,null,null,null,{"$f":"+IFERROR(VLOOKUP(REAL[[#This Row],[PERFIL]],$H$11:$J$16,3,FALSE),0)","v":0},null,{"$f":"+REAL[[#This Row],[HORAS]]*REAL[[#This Row],[MULTP]]*REAL[[#This Row],[HORARIO EXTENDIDO]]","v":0}]
[null,null,null,null,null,null,null,null,null,{"$f":"+IFERROR(VLOOKUP(REAL[[#This Row],[PERFIL]],$H$11:$J$16,3,FALSE),0)","v":0},null,{"$f":"+REAL[[#This Row],[HORAS]]*REAL[[#This Row],[MULTP]]*REAL[[#This Row],[HORARIO EXTENDIDO]]","v":0}]
[null,null,null,null,null,null,null,null,null,{"$f":"+IFERROR(VLOOKUP(REAL[[#This Row],[PERFIL]],$H$11:$J$16,3,FALSE),0)","v":0},null,{"$f":"+REAL[[#This Row],[HORAS]]*REAL[[#This Row],[MULTP]]*REAL[[#This Row],[HORARIO EXTENDIDO]]","v":0}]
[null,null,null,null,null,null,null,null,null,{"$f":"+IFERROR(VLOOKUP(REAL[[#This Row],[PERFIL]],$H$11:$J$16,3,FALSE),0)","v":0},null,{"$f":"+REAL[[#This Row],[HORAS]]*REAL[[#This Row],[MULTP]]*REAL[[#This Row],[HORARIO EXTENDIDO]]","v":0}]
[null,null,null,null,null,null,null,null,null,{"$f":"+IFERROR(VLOOKUP(REAL[[#This Row],[PERFIL]],$H$11:$J$16,3,FALSE),0)","v":0},null,{"$f":"+REAL[[#This Row],[HORAS]]*REAL[[#This Row],[MULTP]]*REAL[[#This Row],[HORARIO EXTENDIDO]]","v":0}]
[null,null,null,null,null,null,null,null,null,{"$f":"+IFERROR(VLOOKUP(REAL[[#This Row],[PERFIL]],$H$11:$J$16,3,FALSE),0)","v":0},null,{"$f":"+REAL[[#This Row],[HORAS]]*REAL[[#This Row],[MULTP]]*REAL[[#This Row],[HORARIO EXTENDIDO]]","v":0}]
[null,null,null,null,null,null,null,null,null,{"$f":"+IFERROR(VLOOKUP(REAL[[#This Row],[PERFIL]],$H$11:$J$16,3,FALSE),0)","v":0},null,{"$f":"+REAL[[#This Row],[HORAS]]*REAL[[#This Row],[MULTP]]*REAL[[#This Row],[HORARIO EXTENDIDO]]","v":0}]
[null,null,null,null,null,null,null,null,null,{"$f":"+IFERROR(VLOOKUP(REAL[[#This Row],[PERFIL]],$H$11:$J$16,3,FALSE),0)","v":0},null,{"$f":"+REAL[[#This Row],[HORAS]]*REAL[[#This Row],[MULTP]]*REAL[[#This Row],[HORARIO EXTENDIDO]]","v":0}]
[null,null,null,null,null,null,null,null,null,{"$f":"+IFERROR(VLOOKUP(REAL[[#This Row],[PERFIL]],$H$11:$J$16,3,FALSE),0)","v":0},null,{"$f":"+REAL[[#This Row],[HORAS]]*REAL[[#This Row],[MULTP]]*REAL[[#This Row],[HORARIO EXTENDIDO]]","v":0}]
[null,null,null,null,null,null,null,null,null,{"$f":"+IFERROR(VLOOKUP(REAL[[#This Row],[PERFIL]],$H$11:$J$16,3,FALSE),0)","v":0},null,{"$f":"+REAL[[#This Row],[HORAS]]*REAL[[#This Row],[MULTP]]*REAL[[#This Row],[HORARIO EXTENDIDO]]","v":0}]
[null,null,null,null,null,null,null,null,null,{"$f":"+IFERROR(VLOOKUP(REAL[[#This Row],[PERFIL]],$H$11:$J$16,3,FALSE),0)","v":0},null,{"$f":"+REAL[[#This Row],[HORAS]]*REAL[[#This Row],[MULTP]]*REAL[[#This Row],[HORARIO EXTENDIDO]]","v":0}]
[null,null,null,null,null,null,null,null,null,{"$f":"+IFERROR(VLOOKUP(REAL[[#This Row],[PERFIL]],$H$11:$J$16,3,FALSE),0)","v":0},null,{"$f":"+REAL[[#This Row],[HORAS]]*REAL[[#This Row],[MULTP]]*REAL[[#This Row],[HORARIO EXTENDIDO]]","v":0}]
[null,null,null,null,null,null,null,null,null,{"$f":"+IFERROR(VLOOKUP(REAL[[#This Row],[PERFIL]],$H$11:$J$16,3,FALSE),0)","v":0},null,{"$f":"+REAL[[#This Row],[HORAS]]*REAL[[#This Row],[MULTP]]*REAL[[#This Row],[HORARIO EXTENDIDO]]","v":0}]
[null,null,null,null,null,null,null,null,null,{"$f":"+IFERROR(VLOOKUP(REAL[[#This Row],[PERFIL]],$H$11:$J$16,3,FALSE),0)","v":0},null,{"$f":"+REAL[[#This Row],[HORAS]]*REAL[[#This Row],[MULTP]]*REAL[[#This Row],[HORARIO EXTENDIDO]]","v":0}]
[null,null,null,null,null,null,null,null,null,{"$f":"+IFERROR(VLOOKUP(REAL[[#This Row],[PERFIL]],$H$11:$J$16,3,FALSE),0)","v":0},null,{"$f":"+REAL[[#This Row],[HORAS]]*REAL[[#This Row],[MULTP]]*REAL[[#This Row],[HORARIO EXTENDIDO]]","v":0}]
[null,null,null,null,null,null,null,null,null,{"$f":"+IFERROR(VLOOKUP(REAL[[#This Row],[PERFIL]],$H$11:$J$16,3,FALSE),0)","v":0},null,{"$f":"+REAL[[#This Row],[HORAS]]*REAL[[#This Row],[MULTP]]*REAL[[#This Row],[HORARIO EXTENDIDO]]","v":0}]
[null,null,null,null,null,null,null,null,null,{"$f":"+IFERROR(VLOOKUP(REAL[[#This Row],[PERFIL]],$H$11:$J$16,3,FALSE),0)","v":0},null,{"$f":"+REAL[[#This Row],[HORAS]]*REAL[[#This Row],[MULTP]]*REAL[[#This Row],[HORARIO EXTENDIDO]]","v":0}]
[null,null,null,null,null,null,null,null,null,{"$f":"+IFERROR(VLOOKUP(REAL[[#This Row],[PERFIL]],$H$11:$J$16,3,FALSE),0)","v":0},null,{"$f":"+REAL[[#This Row],[HORAS]]*REAL[[#This Row],[MULTP]]*REAL[[#This Row],[HORARIO EXTENDIDO]]","v":0}]
[null,null,null,null,null,null,null,null,null,{"$f":"+IFERROR(VLOOKUP(REAL[[#This Row],[PERFIL]],$H$11:$J$16,3,FALSE),0)","v":0},null,{"$f":"+REAL[[#This Row],[HORAS]]*REAL[[#This Row],[MULTP]]*REAL[[#This Row],[HORARIO EXTENDIDO]]","v":0}]
[null,null,null,null,null,null,null,null,null,{"$f":"+IFERROR(VLOOKUP(REAL[[#This Row],[PERFIL]],$H$11:$J$16,3,FALSE),0)","v":0},null,{"$f":"+REAL[[#This Row],[HORAS]]*REAL[[#This Row],[MULTP]]*REAL[[#This Row],[HORARIO EXTENDIDO]]","v":0}]
[null,null,null,null,null,null,null,null,null,{"$f":"+IFERROR(VLOOKUP(REAL[[#This Row],[PERFIL]],$H$11:$J$16,3,FALSE),0)","v":0},null,{"$f":"+REAL[[#This Row],[HORAS]]*REAL[[#This Row],[MULTP]]*REAL[[#This Row],[HORARIO EXTENDIDO]]","v":0}]
[null,null,null,null,null,null,null,null,null,{"$f":"+IFERROR(VLOOKUP(REAL[[#This Row],[PERFIL]],$H$11:$J$16,3,FALSE),0)","v":0},null,{"$f":"+REAL[[#This Row],[HORAS]]*REAL[[#This Row],[MULTP]]*REAL[[#This Row],[HORARIO EXTENDIDO]]","v":0}]
[null,null,null,null,null,null,null,null,null,{"$f":"+IFERROR(VLOOKUP(REAL[[#This Row],[PERFIL]],$H$11:$J$16,3,FALSE),0)","v":0},null,{"$f":"+REAL[[#This Row],[HORAS]]*REAL[[#This Row],[MULTP]]*REAL[[#This Row],[HORARIO EXTENDIDO]]","v":0}]
[null,null,null,null,null,null,null,null,null,{"$f":"+IFERROR(VLOOKUP(REAL[[#This Row],[PERFIL]],$H$11:$J$16,3,FALSE),0)","v":0},null,{"$f":"+REAL[[#This Row],[HORAS]]*REAL[[#This Row],[MULTP]]*REAL[[#This Row],[HORARIO EXTENDIDO]]","v":0}]
[null,null,null,null,null,null,null,null,null,{"$f":"+IFERROR(VLOOKUP(REAL[[#This Row],[PERFIL]],$H$11:$J$16,3,FALSE),0)","v":0},null,{"$f":"+REAL[[#This Row],[HORAS]]*REAL[[#This Row],[MULTP]]*REAL[[#This Row],[HORARIO EXTENDIDO]]","v":0}]
[null,null,null,null,null,null,null,null,null,{"$f":"+IFERROR(VLOOKUP(REAL[[#This Row],[PERFIL]],$H$11:$J$16,3,FALSE),0)","v":0},null,{"$f":"+REAL[[#This Row],[HORAS]]*REAL[[#This Row],[MULTP]]*REAL[[#This Row],[HORARIO EXTENDIDO]]","v":0}]
[null,null,null,null,null,null,null,null,null,{"$f":"+IFERROR(VLOOKUP(REAL[[#This Row],[PERFIL]],$H$11:$J$16,3,FALSE),0)","v":0},null,{"$f":"+REAL[[#This Row],[HORAS]]*REAL[[#This Row],[MULTP]]*REAL[[#This Row],[HORARIO EXTENDIDO]]","v":0}]
[null,null,null,null,null,null,null,null,null,{"$f":"+IFERROR(VLOOKUP(REAL[[#This Row],[PERFIL]],$H$11:$J$16,3,FALSE),0)","v":0},null,{"$f":"+REAL[[#This Row],[HORAS]]*REAL[[#This Row],[MULTP]]*REAL[[#This Row],[HORARIO EXTENDIDO]]","v":0}]
[null,null,null,null,null,null,null,null,null,{"$f":"+IFERROR(VLOOKUP(REAL[[#This Row],[PERFIL]],$H$11:$J$16,3,FALSE),0)","v":0},null,{"$f":"+REAL[[#This Row],[HORAS]]*REAL[[#This Row],[MULTP]]*REAL[[#This Row],[HORARIO EXTENDIDO]]","v":0}]
[null,null,null,null,null,null,null,null,null,{"$f":"+IFERROR(VLOOKUP(REAL[[#This Row],[PERFIL]],$H$11:$J$16,3,FALSE),0)","v":0},null,{"$f":"+REAL[[#This Row],[HORAS]]*REAL[[#This Row],[MULTP]]*REAL[[#This Row],[HORARIO EXTENDIDO]]","v":0}]
[null,null,null,null,null,null,null,null,null,{"$f":"+IFERROR(VLOOKUP(REAL[[#This Row],[PERFIL]],$H$11:$J$16,3,FALSE),0)","v":0},null,{"$f":"+REAL[[#This Row],[HORAS]]*REAL[[#This Row],[MULTP]]*REAL[[#This Row],[HORARIO EXTENDIDO]]","v":0}]
[null,null,null,null,null,null,null,null,null,{"$f":"+IFERROR(VLOOKUP(REAL[[#This Row],[PERFIL]],$H$11:$J$16,3,FALSE),0)","v":0},null,{"$f":"+REAL[[#This Row],[HORAS]]*REAL[[#This Row],[MULTP]]*REAL[[#This Row],[HORARIO EXTENDIDO]]","v":0}]
[null,null,null,null,null,null,null,null,null,{"$f":"+IFERROR(VLOOKUP(REAL[[#This Row],[PERFIL]],$H$11:$J$16,3,FALSE),0)","v":0},null,{"$f":"+REAL[[#This Row],[HORAS]]*REAL[[#This Row],[MULTP]]*REAL[[#This Row],[HORARIO EXTENDIDO]]","v":0}]
[null,null,null,null,null,null,null,null,null,{"$f":"+IFERROR(VLOOKUP(REAL[[#This Row],[PERFIL]],$H$11:$J$16,3,FALSE),0)","v":0},null,{"$f":"+REAL[[#This Row],[HORAS]]*REAL[[#This Row],[MULTP]]*REAL[[#This Row],[HORARIO EXTENDIDO]]","v":0}]
[null,null,null,null,null,null,null,null,null,{"$f":"+IFERROR(VLOOKUP(REAL[[#This Row],[PERFIL]],$H$11:$J$16,3,FALSE),0)","v":0},null,{"$f":"+REAL[[#This Row],[HORAS]]*REAL[[#This Row],[MULTP]]*REAL[[#This Row],[HORARIO EXTENDIDO]]","v":0}]
[null,null,null,null,null,null,null,null,null,{"$f":"+IFERROR(VLOOKUP(REAL[[#This Row],[PERFIL]],$H$11:$J$16,3,FALSE),0)","v":0},null,{"$f":"+REAL[[#This Row],[HORAS]]*REAL[[#This Row],[MULTP]]*REAL[[#This Row],[HORARIO EXTENDIDO]]","v":0}]
[null,null,null,null,null,null,null,null,null,{"$f":"+IFERROR(VLOOKUP(REAL[[#This Row],[PERFIL]],$H$11:$J$16,3,FALSE),0)","v":0},null,{"$f":"+REAL[[#This Row],[HORAS]]*REAL[[#This Row],[MULTP]]*REAL[[#This Row],[HORARIO EXTENDIDO]]","v":0}]
[null,null,null,null,null,null,null,null,null,{"$f":"+IFERROR(VLOOKUP(REAL[[#This Row],[PERFIL]],$H$11:$J$16,3,FALSE),0)","v":0},null,{"$f":"+REAL[[#This Row],[HORAS]]*REAL[[#This Row],[MULTP]]*REAL[[#This Row],[HORARIO EXTENDIDO]]","v":0}]
[null,null,null,null,null,null,null,null,null,{"$f":"+IFERROR(VLOOKUP(REAL[[#This Row],[PERFIL]],$H$11:$J$16,3,FALSE),0)","v":0},null,{"$f":"+REAL[[#This Row],[HORAS]]*REAL[[#This Row],[MULTP]]*REAL[[#This Row],[HORARIO EXTENDIDO]]","v":0}]
[null,null,null,null,null,null,null,null,null,{"$f":"+IFERROR(VLOOKUP(REAL[[#This Row],[PERFIL]],$H$11:$J$16,3,FALSE),0)","v":0},null,{"$f":"+REAL[[#This Row],[HORAS]]*REAL[[#This Row],[MULTP]]*REAL[[#This Row],[HORARIO EXTENDIDO]]","v":0}]
[null,null,null,null,null,null,null,null,null,{"$f":"+IFERROR(VLOOKUP(REAL[[#This Row],[PERFIL]],$H$11:$J$16,3,FALSE),0)","v":0},null,{"$f":"+REAL[[#This Row],[HORAS]]*REAL[[#This Row],[MULTP]]*REAL[[#This Row],[HORARIO EXTENDIDO]]","v":0}]
[null,null,null,null,null,null,null,null,null,{"$f":"+IFERROR(VLOOKUP(REAL[[#This Row],[PERFIL]],$H$11:$J$16,3,FALSE),0)","v":0},null,{"$f":"+REAL[[#This Row],[HORAS]]*REAL[[#This Row],[MULTP]]*REAL[[#This Row],[HORARIO EXTENDIDO]]","v":0}]
[null,null,null,null,null,null,null,null,null,{"$f":"+IFERROR(VLOOKUP(REAL[[#This Row],[PERFIL]],$H$11:$J$16,3,FALSE),0)","v":0},null,{"$f":"+REAL[[#This Row],[HORAS]]*REAL[[#This Row],[MULTP]]*REAL[[#This Row],[HORARIO EXTENDIDO]]","v":0}]
[null,null,null,null,null,null,null,null,null,{"$f":"+IFERROR(VLOOKUP(REAL[[#This Row],[PERFIL]],$H$11:$J$16,3,FALSE),0)","v":0},null,{"$f":"+REAL[[#This Row],[HORAS]]*REAL[[#This Row],[MULTP]]*REAL[[#This Row],[HORARIO EXTENDIDO]]","v":0}]
[null,null,null,null,null,null,null,null,null,{"$f":"+IFERROR(VLOOKUP(REAL[[#This Row],[PERFIL]],$H$11:$J$16,3,FALSE),0)","v":0},null,{"$f":"+REAL[[#This Row],[HORAS]]*REAL[[#This Row],[MULTP]]*REAL[[#This Row],[HORARIO EXTENDIDO]]","v":0}]
[null,null,null,null,null,null,null,null,null,{"$f":"+IFERROR(VLOOKUP(REAL[[#This Row],[PERFIL]],$H$11:$J$16,3,FALSE),0)","v":0},null,{"$f":"+REAL[[#This Row],[HORAS]]*REAL[[#This Row],[MULTP]]*REAL[[#This Row],[HORARIO EXTENDIDO]]","v":0}]
[null,null,null,null,null,null,null,null,null,{"$f":"+IFERROR(VLOOKUP(REAL[[#This Row],[PERFIL]],$H$11:$J$16,3,FALSE),0)","v":0},null,{"$f":"+REAL[[#This Row],[HORAS]]*REAL[[#This Row],[MULTP]]*REAL[[#This Row],[HORARIO EXTENDIDO]]","v":0}]
[null,null,null,null,null,null,null,null,null,{"$f":"+IFERROR(VLOOKUP(REAL[[#This Row],[PERFIL]],$H$11:$J$16,3,FALSE),0)","v":0},null,{"$f":"+REAL[[#This Row],[HORAS]]*REAL[[#This Row],[MULTP]]*REAL[[#This Row],[HORARIO EXTENDIDO]]","v":0}]
[null,null,null,null,null,null,null,null,null,{"$f":"+IFERROR(VLOOKUP(REAL[[#This Row],[PERFIL]],$H$11:$J$16,3,FALSE),0)","v":0},null,{"$f":"+REAL[[#This Row],[HORAS]]*REAL[[#This Row],[MULTP]]*REAL[[#This Row],[HORARIO EXTENDIDO]]","v":0}]
[null,null,null,null,null,null,null,null,null,{"$f":"+IFERROR(VLOOKUP(REAL[[#This Row],[PERFIL]],$H$11:$J$16,3,FALSE),0)","v":0},null,{"$f":"+REAL[[#This Row],[HORAS]]*REAL[[#This Row],[MULTP]]*REAL[[#This Row],[HORARIO EXTENDIDO]]","v":0}]
[null,null,null,null,null,null,null,null,null,{"$f":"+IFERROR(VLOOKUP(REAL[[#This Row],[PERFIL]],$H$11:$J$16,3,FALSE),0)","v":0},null,{"$f":"+REAL[[#This Row],[HORAS]]*REAL[[#This Row],[MULTP]]*REAL[[#This Row],[HORARIO EXTENDIDO]]","v":0}]
[null,null,null,null,null,null,null,null,null,{"$f":"+IFERROR(VLOOKUP(REAL[[#This Row],[PERFIL]],$H$11:$J$16,3,FALSE),0)","v":0},null,{"$f":"+REAL[[#This Row],[HORAS]]*REAL[[#This Row],[MULTP]]*REAL[[#This Row],[HORARIO EXTENDIDO]]","v":0}]
[null,null,null,null,null,null,null,null,null,{"$f":"+IFERROR(VLOOKUP(REAL[[#This Row],[PERFIL]],$H$11:$J$16,3,FALSE),0)","v":0},null,{"$f":"+REAL[[#This Row],[HORAS]]*REAL[[#This Row],[MULTP]]*REAL[[#This Row],[HORARIO EXTENDIDO]]","v":0}]
[null,null,null,null,null,null,null,null,null,{"$f":"+IFERROR(VLOOKUP(REAL[[#This Row],[PERFIL]],$H$11:$J$16,3,FALSE),0)","v":0},null,{"$f":"+REAL[[#This Row],[HORAS]]*REAL[[#This Row],[MULTP]]*REAL[[#This Row],[HORARIO EXTENDIDO]]","v":0}]
[null,null,null,null,null,null,null,null,null,{"$f":"+IFERROR(VLOOKUP(REAL[[#This Row],[PERFIL]],$H$11:$J$16,3,FALSE),0)","v":0},null,{"$f":"+REAL[[#This Row],[HORAS]]*REAL[[#This Row],[MULTP]]*REAL[[#This Row],[HORARIO EXTENDIDO]]","v":0}]
[null,null,null,null,null,null,null,null,null,{"$f":"+IFERROR(VLOOKUP(REAL[[#This Row],[PERFIL]],$H$11:$J$16,3,FALSE),0)","v":0},null,{"$f":"+REAL[[#This Row],[HORAS]]*REAL[[#This Row],[MULTP]]*REAL[[#This Row],[HORARIO EXTENDIDO]]","v":0}]
[null,null,null,null,null,null,null,null,null,{"$f":"+IFERROR(VLOOKUP(REAL[[#This Row],[PERFIL]],$H$11:$J$16,3,FALSE),0)","v":0},null,{"$f":"+REAL[[#This Row],[HORAS]]*REAL[[#This Row],[MULTP]]*REAL[[#This Row],[HORARIO EXTENDIDO]]","v":0}]
[null,null,null,null,null,null,null,null,null,{"$f":"+IFERROR(VLOOKUP(REAL[[#This Row],[PERFIL]],$H$11:$J$16,3,FALSE),0)","v":0},null,{"$f":"+REAL[[#This Row],[HORAS]]*REAL[[#This Row],[MULTP]]*REAL[[#This Row],[HORARIO EXTENDIDO]]","v":0}]
[null,null,null,null,null,null,null,null,null,{"$f":"+IFERROR(VLOOKUP(REAL[[#This Row],[PERFIL]],$H$11:$J$16,3,FALSE),0)","v":0},null,{"$f":"+REAL[[#This Row],[HORAS]]*REAL[[#This Row],[MULTP]]*REAL[[#This Row],[HORARIO EXTENDIDO]]","v":0}]
[null,null,null,null,null,null,null,null,null,{"$f":"+IFERROR(VLOOKUP(REAL[[#This Row],[PERFIL]],$H$11:$J$16,3,FALSE),0)","v":0},null,{"$f":"+REAL[[#This Row],[HORAS]]*REAL[[#This Row],[MULTP]]*REAL[[#This Row],[HORARIO EXTENDIDO]]","v":0}]
[null,null,null,null,null,null,null,null,null,{"$f":"+IFERROR(VLOOKUP(REAL[[#This Row],[PERFIL]],$H$11:$J$16,3,FALSE),0)","v":0},null,{"$f":"+REAL[[#This Row],[HORAS]]*REAL[[#This Row],[MULTP]]*REAL[[#This Row],[HORARIO EXTENDIDO]]","v":0}]
[null,null,null,null,null,null,null,null,null,{"$f":"+IFERROR(VLOOKUP(REAL[[#This Row],[PERFIL]],$H$11:$J$16,3,FALSE),0)","v":0},null,{"$f":"+REAL[[#This Row],[HORAS]]*REAL[[#This Row],[MULTP]]*REAL[[#This Row],[HORARIO EXTENDIDO]]","v":0}]
[null,null,null,null,null,null,null,null,null,{"$f":"+IFERROR(VLOOKUP(REAL[[#This Row],[PERFIL]],$H$11:$J$16,3,FALSE),0)","v":0},null,{"$f":"+REAL[[#This Row],[HORAS]]*REAL[[#This Row],[MULTP]]*REAL[[#This Row],[HORARIO EXTENDIDO]]","v":0}]
[null,null,null,null,null,null,null,null,null,{"$f":"+IFERROR(VLOOKUP(REAL[[#This Row],[PERFIL]],$H$11:$J$16,3,FALSE),0)","v":0},null,{"$f":"+REAL[[#This Row],[HORAS]]*REAL[[#This Row],[MULTP]]*REAL[[#This Row],[HORARIO EXTENDIDO]]","v":0}]
[null,null,null,null,null,null,null,null,null,{"$f":"+IFERROR(VLOOKUP(REAL[[#This Row],[PERFIL]],$H$11:$J$16,3,FALSE),0)","v":0},null,{"$f":"+REAL[[#This Row],[HORAS]]*REAL[[#This Row],[MULTP]]*REAL[[#This Row],[HORARIO EXTENDIDO]]","v":0}]
[null,null,null,null,null,null,null,null,null,{"$f":"+IFERROR(VLOOKUP(REAL[[#This Row],[PERFIL]],$H$11:$J$16,3,FALSE),0)","v":0},null,{"$f":"+REAL[[#This Row],[HORAS]]*REAL[[#This Row],[MULTP]]*REAL[[#This Row],[HORARIO EXTENDIDO]]","v":0}]
[null,null,null,null,null,null,null,null,null,{"$f":"+IFERROR(VLOOKUP(REAL[[#This Row],[PERFIL]],$H$11:$J$16,3,FALSE),0)","v":0},null,{"$f":"+REAL[[#This Row],[HORAS]]*REAL[[#This Row],[MULTP]]*REAL[[#This Row],[HORARIO EXTENDIDO]]","v":0}]
[null,null,null,null,null,null,null,null,null,{"$f":"+IFERROR(VLOOKUP(REAL[[#This Row],[PERFIL]],$H$11:$J$16,3,FALSE),0)","v":0},null,{"$f":"+REAL[[#This Row],[HORAS]]*REAL[[#This Row],[MULTP]]*REAL[[#This Row],[HORARIO EXTENDIDO]]","v":0}]
[null,null,null,null,null,null,null,null,null,{"$f":"+IFERROR(VLOOKUP(REAL[[#This Row],[PERFIL]],$H$11:$J$16,3,FALSE),0)","v":0},null,{"$f":"+REAL[[#This Row],[HORAS]]*REAL[[#This Row],[MULTP]]*REAL[[#This Row],[HORARIO EXTENDIDO]]","v":0}]
[null,null,null,null,null,null,null,null,null,{"$f":"+IFERROR(VLOOKUP(REAL[[#This Row],[PERFIL]],$H$11:$J$16,3,FALSE),0)","v":0},null,{"$f":"+REAL[[#This Row],[HORAS]]*REAL[[#This Row],[MULTP]]*REAL[[#This Row],[HORARIO EXTENDIDO]]","v":0}]
[null,null,null,null,null,null,null,null,null,{"$f":"+IFERROR(VLOOKUP(REAL[[#This Row],[PERFIL]],$H$11:$J$16,3,FALSE),0)","v":0},null,{"$f":"+REAL[[#This Row],[HORAS]]*REAL[[#This Row],[MULTP]]*REAL[[#This Row],[HORARIO EXTENDIDO]]","v":0}]
[null,null,null,null,null,null,null,null,null,{"$f":"+IFERROR(VLOOKUP(REAL[[#This Row],[PERFIL]],$H$11:$J$16,3,FALSE),0)","v":0},null,{"$f":"+REAL[[#This Row],[HORAS]]*REAL[[#This Row],[MULTP]]*REAL[[#This Row],[HORARIO EXTENDIDO]]","v":0}]
[null,null,null,null,null,null,null,null,null,{"$f":"+IFERROR(VLOOKUP(REAL[[#This Row],[PERFIL]],$H$11:$J$16,3,FALSE),0)","v":0},null,{"$f":"+REAL[[#This Row],[HORAS]]*REAL[[#This Row],[MULTP]]*REAL[[#This Row],[HORARIO EXTENDIDO]]","v":0}]
[null,null,null,null,null,null,null,null,null,{"$f":"+IFERROR(VLOOKUP(REAL[[#This Row],[PERFIL]],$H$11:$J$16,3,FALSE),0)","v":0},null,{"$f":"+REAL[[#This Row],[HORAS]]*REAL[[#This Row],[MULTP]]*REAL[[#This Row],[HORARIO EXTENDIDO]]","v":0}]
[null,null,null,null,null,null,null,null,null,{"$f":"+IFERROR(VLOOKUP(REAL[[#This Row],[PERFIL]],$H$11:$J$16,3,FALSE),0)","v":0},null,{"$f":"+REAL[[#This Row],[HORAS]]*REAL[[#This Row],[MULTP]]*REAL[[#This Row],[HORARIO EXTENDIDO]]","v":0}]
[null,null,null,null,null,null,null,null,null,{"$f":"+IFERROR(VLOOKUP(REAL[[#This Row],[PERFIL]],$H$11:$J$16,3,FALSE),0)","v":0},null,{"$f":"+REAL[[#This Row],[HORAS]]*REAL[[#This Row],[MULTP]]*REAL[[#This Row],[HORARIO EXTENDIDO]]","v":0}]
[null,null,null,null,null,null,null,null,null,{"$f":"+IFERROR(VLOOKUP(REAL[[#This Row],[PERFIL]],$H$11:$J$16,3,FALSE),0)","v":0},null,{"$f":"+REAL[[#This Row],[HORAS]]*REAL[[#This Row],[MULTP]]*REAL[[#This Row],[HORARIO EXTENDIDO]]","v":0}]
[null,null,null,null,null,null,null,null,null,{"$f":"+IFERROR(VLOOKUP(REAL[[#This Row],[PERFIL]],$H$11:$J$16,3,FALSE),0)","v":0},null,{"$f":"+REAL[[#This Row],[HORAS]]*REAL[[#This Row],[MULTP]]*REAL[[#This Row],[HORARIO EXTENDIDO]]","v":0}]
[null,null,null,null,null,null,null,null,null,{"$f":"+IFERROR(VLOOKUP(REAL[[#This Row],[PERFIL]],$H$11:$J$16,3,FALSE),0)","v":0},null,{"$f":"+REAL[[#This Row],[HORAS]]*REAL[[#This Row],[MULTP]]*REAL[[#This Row],[HORARIO EXTENDIDO]]","v":0}]
[null,null,null,null,null,null,null,null,null,{"$f":"+IFERROR(VLOOKUP(REAL[[#This Row],[PERFIL]],$H$11:$J$16,3,FALSE),0)","v":0},null,{"$f":"+REAL[[#This Row],[HORAS]]*REAL[[#This Row],[MULTP]]*REAL[[#This Row],[HORARIO EXTENDIDO]]","v":0}]
[null,null,null,null,null,null,null,null,null,{"$f":"+IFERROR(VLOOKUP(REAL[[#This Row],[PERFIL]],$H$11:$J$16,3,FALSE),0)","v":0},null,{"$f":"+REAL[[#This Row],[HORAS]]*REAL[[#This Row],[MULTP]]*REAL[[#This Row],[HORARIO EXTENDIDO]]","v":0}]
[null,null,null,null,null,null,null,null,null,{"$f":"+IFERROR(VLOOKUP(REAL[[#This Row],[PERFIL]],$H$11:$J$16,3,FALSE),0)","v":0},null,{"$f":"+REAL[[#This Row],[HORAS]]*REAL[[#This Row],[MULTP]]*REAL[[#This Row],[HORARIO EXTENDIDO]]","v":0}]
[null,null,null,null,null,null,null,null,null,{"$f":"+IFERROR(VLOOKUP(REAL[[#This Row],[PERFIL]],$H$11:$J$16,3,FALSE),0)","v":0},null,{"$f":"+REAL[[#This Row],[HORAS]]*REAL[[#This Row],[MULTP]]*REAL[[#This Row],[HORARIO EXTENDIDO]]","v":0}]
[null,null,null,null,null,null,null,null,null,{"$f":"+IFERROR(VLOOKUP(REAL[[#This Row],[PERFIL]],$H$11:$J$16,3,FALSE),0)","v":0},null,{"$f":"+REAL[[#This Row],[HORAS]]*REAL[[#This Row],[MULTP]]*REAL[[#This Row],[HORARIO EXTENDIDO]]","v":0}]
[null,null,null,null,null,null,null,null,null,{"$f":"+IFERROR(VLOOKUP(REAL[[#This Row],[PERFIL]],$H$11:$J$16,3,FALSE),0)","v":0},null,{"$f":"+REAL[[#This Row],[HORAS]]*REAL[[#This Row],[MULTP]]*REAL[[#This Row],[HORARIO EXTENDIDO]]","v":0}]
[null,null,null,null,null,null,null,null,null,{"$f":"+IFERROR(VLOOKUP(REAL[[#This Row],[PERFIL]],$H$11:$J$16,3,FALSE),0)","v":0},null,{"$f":"+REAL[[#This Row],[HORAS]]*REAL[[#This Row],[MULTP]]*REAL[[#This Row],[HORARIO EXTENDIDO]]","v":0}]
[null,null,null,null,null,null,null,null,null,{"$f":"+IFERROR(VLOOKUP(REAL[[#This Row],[PERFIL]],$H$11:$J$16,3,FALSE),0)","v":0},null,{"$f":"+REAL[[#This Row],[HORAS]]*REAL[[#This Row],[MULTP]]*REAL[[#This Row],[HORARIO EXTENDIDO]]","v":0}]
[null,null,null,null,null,null,null,null,null,{"$f":"+IFERROR(VLOOKUP(REAL[[#This Row],[PERFIL]],$H$11:$J$16,3,FALSE),0)","v":0},null,{"$f":"+REAL[[#This Row],[HORAS]]*REAL[[#This Row],[MULTP]]*REAL[[#This Row],[HORARIO EXTENDIDO]]","v":0}]
[null,null,null,null,null,null,null,null,null,{"$f":"+IFERROR(VLOOKUP(REAL[[#This Row],[PERFIL]],$H$11:$J$16,3,FALSE),0)","v":0},null,{"$f":"+REAL[[#This Row],[HORAS]]*REAL[[#This Row],[MULTP]]*REAL[[#This Row],[HORARIO EXTENDIDO]]","v":0}]
[null,null,null,null,null,null,null,null,null,{"$f":"+IFERROR(VLOOKUP(REAL[[#This Row],[PERFIL]],$H$11:$J$16,3,FALSE),0)","v":0},null,{"$f":"+REAL[[#This Row],[HORAS]]*REAL[[#This Row],[MULTP]]*REAL[[#This Row],[HORARIO EXTENDIDO]]","v":0}]
[null,null,null,null,null,null,null,null,null,{"$f":"+IFERROR(VLOOKUP(REAL[[#This Row],[PERFIL]],$H$11:$J$16,3,FALSE),0)","v":0},null,{"$f":"+REAL[[#This Row],[HORAS]]*REAL[[#This Row],[MULTP]]*REAL[[#This Row],[HORARIO EXTENDIDO]]","v":0}]
[null,null,null,null,null,null,null,null,null,{"$f":"+IFERROR(VLOOKUP(REAL[[#This Row],[PERFIL]],$H$11:$J$16,3,FALSE),0)","v":0},null,{"$f":"+REAL[[#This Row],[HORAS]]*REAL[[#This Row],[MULTP]]*REAL[[#This Row],[HORARIO EXTENDIDO]]","v":0}]
[null,null,null,null,null,null,null,null,null,{"$f":"+IFERROR(VLOOKUP(REAL[[#This Row],[PERFIL]],$H$11:$J$16,3,FALSE),0)","v":0},null,{"$f":"+REAL[[#This Row],[HORAS]]*REAL[[#This Row],[MULTP]]*REAL[[#This Row],[HORARIO EXTENDIDO]]","v":0}]
[null,null,null,null,null,null,null,null,null,{"$f":"+IFERROR(VLOOKUP(REAL[[#This Row],[PERFIL]],$H$11:$J$16,3,FALSE),0)","v":0},null,{"$f":"+REAL[[#This Row],[HORAS]]*REAL[[#This Row],[MULTP]]*REAL[[#This Row],[HORARIO EXTENDIDO]]","v":0}]
[null,null,null,null,null,null,null,null,null,{"$f":"+IFERROR(VLOOKUP(REAL[[#This Row],[PERFIL]],$H$11:$J$16,3,FALSE),0)","v":0},null,{"$f":"+REAL[[#This Row],[HORAS]]*REAL[[#This Row],[MULTP]]*REAL[[#This Row],[HORARIO EXTENDIDO]]","v":0}]
[null,null,null,null,null,null,null,null,null,{"$f":"+IFERROR(VLOOKUP(REAL[[#This Row],[PERFIL]],$H$11:$J$16,3,FALSE),0)","v":0},null,{"$f":"+REAL[[#This Row],[HORAS]]*REAL[[#This Row],[MULTP]]*REAL[[#This Row],[HORARIO EXTENDIDO]]","v":0}]
[null,null,null,null,null,null,null,null,null,{"$f":"+IFERROR(VLOOKUP(REAL[[#This Row],[PERFIL]],$H$11:$J$16,3,FALSE),0)","v":0},null,{"$f":"+REAL[[#This Row],[HORAS]]*REAL[[#This Row],[MULTP]]*REAL[[#This Row],[HORARIO EXTENDIDO]]","v":0}]
[null,null,null,null,null,null,null,null,null,{"$f":"+IFERROR(VLOOKUP(REAL[[#This Row],[PERFIL]],$H$11:$J$16,3,FALSE),0)","v":0},null,{"$f":"+REAL[[#This Row],[HORAS]]*REAL[[#This Row],[MULTP]]*REAL[[#This Row],[HORARIO EXTENDIDO]]","v":0}]
[null,null,null,null,null,null,null,null,null,{"$f":"+IFERROR(VLOOKUP(REAL[[#This Row],[PERFIL]],$H$11:$J$16,3,FALSE),0)","v":0},null,{"$f":"+REAL[[#This Row],[HORAS]]*REAL[[#This Row],[MULTP]]*REAL[[#This Row],[HORARIO EXTENDIDO]]","v":0}]
[null,null,null,null,null,null,null,null,null,{"$f":"+IFERROR(VLOOKUP(REAL[[#This Row],[PERFIL]],$H$11:$J$16,3,FALSE),0)","v":0},null,{"$f":"+REAL[[#This Row],[HORAS]]*REAL[[#This Row],[MULTP]]*REAL[[#This Row],[HORARIO EXTENDIDO]]","v":0}]
[null,null,null,null,null,null,null,null,null,{"$f":"+IFERROR(VLOOKUP(REAL[[#This Row],[PERFIL]],$H$11:$J$16,3,FALSE),0)","v":0},null,{"$f":"+REAL[[#This Row],[HORAS]]*REAL[[#This Row],[MULTP]]*REAL[[#This Row],[HORARIO EXTENDIDO]]","v":0}]
[null,null,null,null,null,null,null,null,null,{"$f":"+IFERROR(VLOOKUP(REAL[[#This Row],[PERFIL]],$H$11:$J$16,3,FALSE),0)","v":0},null,{"$f":"+REAL[[#This Row],[HORAS]]*REAL[[#This Row],[MULTP]]*REAL[[#This Row],[HORARIO EXTENDIDO]]","v":0}]
[null,null,null,null,null,null,null,null,null,{"$f":"+IFERROR(VLOOKUP(REAL[[#This Row],[PERFIL]],$H$11:$J$16,3,FALSE),0)","v":0},null,{"$f":"+REAL[[#This Row],[HORAS]]*REAL[[#This Row],[MULTP]]*REAL[[#This Row],[HORARIO EXTENDIDO]]","v":0}]
[null,null,null,null,null,null,null,null,null,{"$f":"+IFERROR(VLOOKUP(REAL[[#This Row],[PERFIL]],$H$11:$J$16,3,FALSE),0)","v":0},null,{"$f":"+REAL[[#This Row],[HORAS]]*REAL[[#This Row],[MULTP]]*REAL[[#This Row],[HORARIO EXTENDIDO]]","v":0}]
[null,null,null,null,null,null,null,null,null,{"$f":"+IFERROR(VLOOKUP(REAL[[#This Row],[PERFIL]],$H$11:$J$16,3,FALSE),0)","v":0},null,{"$f":"+REAL[[#This Row],[HORAS]]*REAL[[#This Row],[MULTP]]*REAL[[#This Row],[HORARIO EXTENDIDO]]","v":0}]
[null,null,null,null,null,null,null,null,null,{"$f":"+IFERROR(VLOOKUP(REAL[[#This Row],[PERFIL]],$H$11:$J$16,3,FALSE),0)","v":0},null,{"$f":"+REAL[[#This Row],[HORAS]]*REAL[[#This Row],[MULTP]]*REAL[[#This Row],[HORARIO EXTENDIDO]]","v":0}]
[null,null,null,null,null,null,null,null,null,{"$f":"+IFERROR(VLOOKUP(REAL[[#This Row],[PERFIL]],$H$11:$J$16,3,FALSE),0)","v":0},null,{"$f":"+REAL[[#This Row],[HORAS]]*REAL[[#This Row],[MULTP]]*REAL[[#This Row],[HORARIO EXTENDIDO]]","v":0}]
[null,null,null,null,null,null,null,null,null,{"$f":"+IFERROR(VLOOKUP(REAL[[#This Row],[PERFIL]],$H$11:$J$16,3,FALSE),0)","v":0},null,{"$f":"+REAL[[#This Row],[HORAS]]*REAL[[#This Row],[MULTP]]*REAL[[#This Row],[HORARIO EXTENDIDO]]","v":0}]
[null,null,null,null,null,null,null,null,null,{"$f":"+IFERROR(VLOOKUP(REAL[[#This Row],[PERFIL]],$H$11:$J$16,3,FALSE),0)","v":0},null,{"$f":"+REAL[[#This Row],[HORAS]]*REAL[[#This Row],[MULTP]]*REAL[[#This Row],[HORARIO EXTENDIDO]]","v":0}]
[null,null,null,null,null,null,null,null,null,{"$f":"+IFERROR(VLOOKUP(REAL[[#This Row],[PERFIL]],$H$11:$J$16,3,FALSE),0)","v":0},null,{"$f":"+REAL[[#This Row],[HORAS]]*REAL[[#This Row],[MULTP]]*REAL[[#This Row],[HORARIO EXTENDIDO]]","v":0}]
[null,null,null,null,null,null,null,null,null,{"$f":"+IFERROR(VLOOKUP(REAL[[#This Row],[PERFIL]],$H$11:$J$16,3,FALSE),0)","v":0},null,{"$f":"+REAL[[#This Row],[HORAS]]*REAL[[#This Row],[MULTP]]*REAL[[#This Row],[HORARIO EXTENDIDO]]","v":0}]
[null,null,null,null,null,null,null,null,null,{"$f":"+IFERROR(VLOOKUP(REAL[[#This Row],[PERFIL]],$H$11:$J$16,3,FALSE),0)","v":0},null,{"$f":"+REAL[[#This Row],[HORAS]]*REAL[[#This Row],[MULTP]]*REAL[[#This Row],[HORARIO EXTENDIDO]]","v":0}]
[null,null,null,null,null,null,null,null,null,{"$f":"+IFERROR(VLOOKUP(REAL[[#This Row],[PERFIL]],$H$11:$J$16,3,FALSE),0)","v":0},null,{"$f":"+REAL[[#This Row],[HORAS]]*REAL[[#This Row],[MULTP]]*REAL[[#This Row],[HORARIO EXTENDIDO]]","v":0}]
[null,null,null,null,null,null,null,null,null,{"$f":"+IFERROR(VLOOKUP(REAL[[#This Row],[PERFIL]],$H$11:$J$16,3,FALSE),0)","v":0},null,{"$f":"+REAL[[#This Row],[HORAS]]*REAL[[#This Row],[MULTP]]*REAL[[#This Row],[HORARIO EXTENDIDO]]","v":0}]
[null,null,null,null,null,null,null,null,null,{"$f":"+IFERROR(VLOOKUP(REAL[[#This Row],[PERFIL]],$H$11:$J$16,3,FALSE),0)","v":0},null,{"$f":"+REAL[[#This Row],[HORAS]]*REAL[[#This Row],[MULTP]]*REAL[[#This Row],[HORARIO EXTENDIDO]]","v":0}]
[null,null,null,null,null,null,null,null,null,{"$f":"+IFERROR(VLOOKUP(REAL[[#This Row],[PERFIL]],$H$11:$J$16,3,FALSE),0)","v":0},null,{"$f":"+REAL[[#This Row],[HORAS]]*REAL[[#This Row],[MULTP]]*REAL[[#This Row],[HORARIO EXTENDIDO]]","v":0}]
[null,null,null,null,null,null,null,null,null,{"$f":"+IFERROR(VLOOKUP(REAL[[#This Row],[PERFIL]],$H$11:$J$16,3,FALSE),0)","v":0},null,{"$f":"+REAL[[#This Row],[HORAS]]*REAL[[#This Row],[MULTP]]*REAL[[#This Row],[HORARIO EXTENDIDO]]","v":0}]
[null,null,null,null,null,null,null,null,null,{"$f":"+IFERROR(VLOOKUP(REAL[[#This Row],[PERFIL]],$H$11:$J$16,3,FALSE),0)","v":0},null,{"$f":"+REAL[[#This Row],[HORAS]]*REAL[[#This Row],[MULTP]]*REAL[[#This Row],[HORARIO EXTENDIDO]]","v":0}]
[null,null,null,null,null,null,null,null,null,{"$f":"+IFERROR(VLOOKUP(REAL[[#This Row],[PERFIL]],$H$11:$J$16,3,FALSE),0)","v":0},null,{"$f":"+REAL[[#This Row],[HORAS]]*REAL[[#This Row],[MULTP]]*REAL[[#This Row],[HORARIO EXTENDIDO]]","v":0}]
[null,null,null,null,null,null,null,null,null,{"$f":"+IFERROR(VLOOKUP(REAL[[#This Row],[PERFIL]],$H$11:$J$16,3,FALSE),0)","v":0},null,{"$f":"+REAL[[#This Row],[HORAS]]*REAL[[#This Row],[MULTP]]*REAL[[#This Row],[HORARIO EXTENDIDO]]","v":0}]
[null,null,null,null,null,null,null,null,null,{"$f":"+IFERROR(VLOOKUP(REAL[[#This Row],[PERFIL]],$H$11:$J$16,3,FALSE),0)","v":0},null,{"$f":"+REAL[[#This Row],[HORAS]]*REAL[[#This Row],[MULTP]]*REAL[[#This Row],[HORARIO EXTENDIDO]]","v":0}]
[null,null,null,null,null,null,null,null,null,{"$f":"+IFERROR(VLOOKUP(REAL[[#This Row],[PERFIL]],$H$11:$J$16,3,FALSE),0)","v":0},null,{"$f":"+REAL[[#This Row],[HORAS]]*REAL[[#This Row],[MULTP]]*REAL[[#This Row],[HORARIO EXTENDIDO]]","v":0}]
[null,null,null,null,null,null,null,null,null,{"$f":"+IFERROR(VLOOKUP(REAL[[#This Row],[PERFIL]],$H$11:$J$16,3,FALSE),0)","v":0},null,{"$f":"+REAL[[#This Row],[HORAS]]*REAL[[#This Row],[MULTP]]*REAL[[#This Row],[HORARIO EXTENDIDO]]","v":0}]
[null,null,null,null,null,null,null,null,null,{"$f":"+IFERROR(VLOOKUP(REAL[[#This Row],[PERFIL]],$H$11:$J$16,3,FALSE),0)","v":0},null,{"$f":"+REAL[[#This Row],[HORAS]]*REAL[[#This Row],[MULTP]]*REAL[[#This Row],[HORARIO EXTENDIDO]]","v":0}]
[null,null,null,null,null,null,null,null,null,{"$f":"+IFERROR(VLOOKUP(REAL[[#This Row],[PERFIL]],$H$11:$J$16,3,FALSE),0)","v":0},null,{"$f":"+REAL[[#This Row],[HORAS]]*REAL[[#This Row],[MULTP]]*REAL[[#This Row],[HORARIO EXTENDIDO]]","v":0}]
[null,null,null,null,null,null,null,null,null,{"$f":"+IFERROR(VLOOKUP(REAL[[#This Row],[PERFIL]],$H$11:$J$16,3,FALSE),0)","v":0},null,{"$f":"+REAL[[#This Row],[HORAS]]*REAL[[#This Row],[MULTP]]*REAL[[#This Row],[HORARIO EXTENDIDO]]","v":0}]
[null,null,null,null,null,null,null,null,null,{"$f":"+IFERROR(VLOOKUP(REAL[[#This Row],[PERFIL]],$H$11:$J$16,3,FALSE),0)","v":0},null,{"$f":"+REAL[[#This Row],[HORAS]]*REAL[[#This Row],[MULTP]]*REAL[[#This Row],[HORARIO EXTENDIDO]]","v":0}]
[null,null,null,null,null,null,null,null,null,{"$f":"+IFERROR(VLOOKUP(REAL[[#This Row],[PERFIL]],$H$11:$J$16,3,FALSE),0)","v":0},null,{"$f":"+REAL[[#This Row],[HORAS]]*REAL[[#This Row],[MULTP]]*REAL[[#This Row],[HORARIO EXTENDIDO]]","v":0}]
[null,null,null,null,null,null,null,null,null,{"$f":"+IFERROR(VLOOKUP(REAL[[#This Row],[PERFIL]],$H$11:$J$16,3,FALSE),0)","v":0},null,{"$f":"+REAL[[#This Row],[HORAS]]*REAL[[#This Row],[MULTP]]*REAL[[#This Row],[HORARIO EXTENDIDO]]","v":0}]
[null,null,null,null,null,null,null,null,null,{"$f":"+IFERROR(VLOOKUP(REAL[[#This Row],[PERFIL]],$H$11:$J$16,3,FALSE),0)","v":0},null,{"$f":"+REAL[[#This Row],[HORAS]]*REAL[[#This Row],[MULTP]]*REAL[[#This Row],[HORARIO EXTENDIDO]]","v":0}]
[null,null,null,null,null,null,null,null,null,{"$f":"+IFERROR(VLOOKUP(REAL[[#This Row],[PERFIL]],$H$11:$J$16,3,FALSE),0)","v":0},null,{"$f":"+REAL[[#This Row],[HORAS]]*REAL[[#This Row],[MULTP]]*REAL[[#This Row],[HORARIO EXTENDIDO]]","v":0}]
[null,null,null,null,null,null,null,null,null,{"$f":"+IFERROR(VLOOKUP(REAL[[#This Row],[PERFIL]],$H$11:$J$16,3,FALSE),0)","v":0},null,{"$f":"+REAL[[#This Row],[HORAS]]*REAL[[#This Row],[MULTP]]*REAL[[#This Row],[HORARIO EXTENDIDO]]","v":0}]
[null,null,null,null,null,null,null,null,null,{"$f":"+IFERROR(VLOOKUP(REAL[[#This Row],[PERFIL]],$H$11:$J$16,3,FALSE),0)","v":0},null,{"$f":"+REAL[[#This Row],[HORAS]]*REAL[[#This Row],[MULTP]]*REAL[[#This Row],[HORARIO EXTENDIDO]]","v":0}]
[null,null,null,null,null,null,null,null,null,{"$f":"+IFERROR(VLOOKUP(REAL[[#This Row],[PERFIL]],$H$11:$J$16,3,FALSE),0)","v":0},null,{"$f":"+REAL[[#This Row],[HORAS]]*REAL[[#This Row],[MULTP]]*REAL[[#This Row],[HORARIO EXTENDIDO]]","v":0}]
[null,null,null,null,null,null,null,null,null,{"$f":"+IFERROR(VLOOKUP(REAL[[#This Row],[PERFIL]],$H$11:$J$16,3,FALSE),0)","v":0},null,{"$f":"+REAL[[#This Row],[HORAS]]*REAL[[#This Row],[MULTP]]*REAL[[#This Row],[HORARIO EXTENDIDO]]","v":0}]
[null,null,null,null,null,null,null,null,null,{"$f":"+IFERROR(VLOOKUP(REAL[[#This Row],[PERFIL]],$H$11:$J$16,3,FALSE),0)","v":0},null,{"$f":"+REAL[[#This Row],[HORAS]]*REAL[[#This Row],[MULTP]]*REAL[[#This Row],[HORARIO EXTENDIDO]]","v":0}]
[null,null,null,null,null,null,null,null,null,{"$f":"+IFERROR(VLOOKUP(REAL[[#This Row],[PERFIL]],$H$11:$J$16,3,FALSE),0)","v":0},null,{"$f":"+REAL[[#This Row],[HORAS]]*REAL[[#This Row],[MULTP]]*REAL[[#This Row],[HORARIO EXTENDIDO]]","v":0}]
[null,null,null,null,null,null,null,null,null,{"$f":"+IFERROR(VLOOKUP(REAL[[#This Row],[PERFIL]],$H$11:$J$16,3,FALSE),0)","v":0},null,{"$f":"+REAL[[#This Row],[HORAS]]*REAL[[#This Row],[MULTP]]*REAL[[#This Row],[HORARIO EXTENDIDO]]","v":0}]

{"sheet":"ESTIMACION vs REAL","index":4,"n_rows":200,"n_cols":14,"rows_kept":200,"cut":false,"hidden":false,"merged":[[195,1,195,5],[195,10,195,16],[196,1,196,5],[196,10,196,16],[197,1,197,5],[197,10,197,16],[198,1,198,5],[198,10,198,16],[199,1,199,5],[199,10,199,16],[190,1,190,5],[190,10,190,16],[191,1,191,5],[191,10,191,16],[192,1,192,5],[192,10,192,16],[193,1,193,5],[193,10,193,16],[194,1,194,5],[194,10,194,16],[185,1,185,5],[185,10,185,16],[186,1,186,5],[186,10,186,16],[187,1,187,5],[187,10,187,16],[188,1,188,5],[188,10,188,16],[189,1,189,5],[189,10,189,16],[180,1,180,5],[180,10,180,16],[181,1,181,5],[181,10,181,16],[182,1,182,5],[182,10,182,16],[183,1,183,5],[183,10,183,16],[184,1,184,5],[184,10,184,16],[175,1,175,5],[175,10,175,16],[176,1,176,5],[176,10,176,16],[177,1,177,5],[177,10,177,16],[178,1,178,5],[178,10,178,16],[179,1,179,5],[179,10,179,16],[170,1,170,5],[170,10,170,16],[171,1,171,5],[171,10,171,16],[172,1,172,5],[172,10,172,16],[173,1,173,5],[173,10,173,16],[174,1,174,5],[174,10,174,16],[161,10,161,16],[162,10,162,16],[163,10,163,16],[164,10,164,16],[165,10,165,16],[166,10,166,16],[167,10,167,16],[168,10,168,16],[169,10,169,16],[152,10,152,16],[153,10,153,16],[154,10,154,16],[155,10,155,16],[156,10,156,16],[157,10,157,16],[158,10,158,16],[159,10,159,16],[160,10,160,16],[143,10,143,16],[144,10,144,16],[145,10,145,16],[146,10,146,16],[147,10,147,16],[148,10,148,16],[149,10,149,16],[150,10,150,16],[151,10,151,16],[134,10,134,16],[135,10,135,16],[136,10,136,16],[137,10,137,16],[138,10,138,16],[139,10,139,16],[140,10,140,16],[141,10,141,16],[142,10,142,16],[125,10,125,16],[126,10,126,16],[127,10,127,16],[128,10,128,16],[129,10,129,16],[130,10,130,16],[131,10,131,16],[132,10,132,16],[133,10,133,16],[116,10,116,16],[117,10,117,16],[118,10,118,16],[119,10,119,16],[120,10,120,16],[121,10,121,16],[122,10,122,16],[123,10,123,16],[124,10,124,16],[107,10,107,16],[108,10,108,16],[109,10,109,16],[110,10,110,16],[111,10,111,16],[112,10,112,16],[113,10,113,16],[114,10,114,16],[115,10,115,16],[98,10,98,16],[99,10,99,16],[100,10,100,16],[101,10,101,16],[102,10,102,16],[103,10,103,16],[104,10,104,16],[105,10,105,16],[106,10,106,16],[89,10,89,16],[90,10,90,16],[91,10,91,16],[92,10,92,16],[93,10,93,16],[94,10,94,16],[95,10,95,16],[96,10,96,16],[97,10,97,16],[80,10,80,16],[81,10,81,16],[82,10,82,16],[83,10,83,16],[84,10,84,16],[85,10,85,16],[86,10,86,16],[87,10,87,16],[88,10,88,16],[71,10,71,16],[72,10,72,16],[73,10,73,16],[74,10,74,16],[75,10,75,16],[76,10,76,16],[77,10,77,16],[78,10,78,16],[79,10,79,16],[62,10,62,16],[63,10,63,16],[64,10,64,16],[65,10,65,16],[66,10,66,16],[67,10,67,16],[68,10,68,16],[69,10,69,16],[70,10,70,16],[53,10,53,16],[54,10,54,16],[55,10,55,16],[56,10,56,16],[57,10,57,16],[58,10,58,16],[59,10,59,16],[60,10,60,16],[61,10,61,16],[44,10,44,16],[45,10,45,16],[46,10,46,16],[47,10,47,16],[48,10,48,16],[49,10,49,16],[50,10,50,16],[51,10,51,16],[52,10,52,16],[35,10,35,16],[36,10,36,16],[37,10,37,16],[38,10,38,16],[39,10,39,16],[40,10,40,16],[41,10,41,16],[42,10,42,16],[43,10,43,16],[29,10,29,16],[30,10,30,16],[31,10,31,16],[32,10,32,16],[33,10,33,16],[2,13,3,16],[4,13,18,16],[34,10,34,16],[23,1,23,5],[24,1,24,5],[25,1,25,5],[26,1,26,5],[27,1,27,5],[28,1,28,5],[23,10,23,16],[24,10,24,16],[25,10,25,16],[26,10,26,16],[27,10,27,16],[28,10,28,16],[35,1,35,5],[36,1,36,5],[37,1,37,5],[38,1,38,5],[39,1,39,5],[40,1,40,5],[29,1,29,5],[30,1,30,5],[31,1,31,5],[32,1,32,5],[33,1,33,5],[34,1,34,5],[47,1,47,5],[48,1,48,5],[49,1,49,5],[50,1,50,5],[51,1,51,5],[52,1,52,5],[41,1,41,5],[42,1,42,5],[43,1,43,5],[44,1,44,5],[45,1,45,5],[46,1,46,5],[59,1,59,5],[60,1,60,5],[61,1,61,5],[62,1,62,5],[63,1,63,5],[64,1,64,5],[53,1,53,5],[54,1,54,5],[55,1,55,5],[56,1,56,5],[57,1,57,5],[58,1,58,5],[71,1,71,5],[72,1,72,5],[73,1,73,5],[74,1,74,5],[75,1,75,5],[76,1,76,5],[65,1,65,5],[66,1,66,5],[67,1,67,5],[68,1,68,5],[69,1,69,5],[70,1,70,5],[83,1,83,5],[84,1,84,5],[85,1,85,5],[86,1,86,5],[87,1,87,5],[88,1,88,5],[77,1,77,5],[78,1,78,5],[79,1,79,5],[80,1,80,5],[81,1,81,5],[82,1,82,5],[95,1,95,5],[96,1,96,5],[97,1,97,5],[98,1,98,5],[99,1,99,5],[100,1,100,5],[89,1,89,5],[90,1,90,5],[91,1,91,5],[92,1,92,5],[93,1,93,5],[94,1,94,5],[107,1,107,5],[108,1,108,5],[109,1,109,5],[110,1,110,5],[111,1,111,5],[112,1,112,5],[101,1,101,5],[102,1,102,5],[103,1,103,5],[104,1,104,5],[105,1,105,5],[106,1,106,5],[119,1,119,5],[120,1,120,5],[121,1,121,5],[122,1,122,5],[123,1,123,5],[124,1,124,5],[113,1,113,5],[114,1,114,5],[115,1,115,5],[116,1,116,5],[117,1,117,5],[118,1,118,5],[131,1,131,5],[132,1,132,5],[133,1,133,5],[134,1,134,5],[135,1,135,5],[136,1,136,5],[125,1,125,5],[126,1,126,5],[127,1,127,5],[128,1,128,5],[129,1,129,5],[130,1,130,5],[143,1,143,5],[144,1,144,5],[145,1,145,5],[146,1,146,5],[147,1,147,5],[148,1,148,5],[137,1,137,5],[138,1,138,5],[139,1,139,5],[140,1,140,5],[141,1,141,5],[142,1,142,5],[155,1,155,5],[156,1,156,5],[157,1,157,5],[158,1,158,5],[159,1,159,5],[160,1,160,5],[149,1,149,5],[150,1,150,5],[151,1,151,5],[152,1,152,5],[153,1,153,5],[154,1,154,5],[167,1,167,5],[168,1,168,5],[169,1,169,5],[161,1,161,5],[162,1,162,5],[163,1,163,5],[164,1,164,5],[165,1,165,5],[166,1,166,5]]}
[]
[null,"COMPARATIVA DE HORAS POR PERFIL",null,null,null,null,null,"COMPARATIVA DE HBS POR PERFIL"]
[null,null,null,null,null,null,null,null,null,null,null,null,null,"JUSTIFICACIÓN DE LA DESVIACIÓN"]
[null,null,"ESTIMACION","REAL","DIFERENCIA","DESVIACION",null,null,"ESTIMACION","REAL","DIFERENCIA","DESVIACION"]
[null,"CO",{"$f":"+ESTIMACION!I11","v":72},{"$f":"+'REAL'!I11","v":123},{"$f":"+D5-C5","v":51},{"$f":"+IFERROR((D5-C5)/C5,0)","v":0.70833333333333337},null,"CO",{"$f":"+ESTIMACION!K11","v":144},{"$f":"+'REAL'!K11","v":246},{"$f":"+J5-I5","v":102},{"$f":"+IFERROR((J5-I5)/I5,0)*100","v":70.833333333333343}]
[null,"AF",{"$f":"+ESTIMACION!I12","v":80},{"$f":"+'REAL'!I12","v":68.25},{"$f":"+D6-C6","v":-11.75},{"$f":"+IFERROR((D6-C6)/C6,0)*100","v":-14.6875},null,"AF",{"$f":"+ESTIMACION!K12","v":140},{"$f":"+'REAL'!K12","v":119.4375},{"$f":"+J6-I6","v":-20.5625},{"$f":"+IFERROR((J6-I6)/I6,0)*100","v":-14.6875}]
[null,"AP",{"$f":"+ESTIMACION!I13","v":0},{"$f":"+'REAL'!I13","v":0},0,{"$f":"+IFERROR((D7-C7)/C7,0)","v":0},null,"AP",{"$f":"+ESTIMACION!K13","v":0},{"$f":"+'REAL'!K13","v":0},0,0]
[null,"PR",{"$f":"+ESTIMACION!I14","v":34},{"$f":"+'REAL'!I14","v":36},2,5.8823529411764705E-2,null,"PR",{"$f":"+ESTIMACION!K14","v":42.5},{"$f":"+'REAL'!K14","v":45},2.5,5.8823529411764701]
[null,"PJ",{"$f":"+ESTIMACION!I15","v":11},{"$f":"+'REAL'!I15","v":15},4,0.36363636363636365,null,"PJ",{"$f":"+ESTIMACION!K15","v":11},{"$f":"+'REAL'!K15","v":15},4,36.363636363636367]
[null,"TOTAL OT",{"$f":"SUM(C5:C9)","v":197},{"$f":"SUM(D5:D9)","v":242.25},{"$f":"SUM(E5:E9)","v":45.25},{"$f":"+IFERROR((D10-C10)/C10,0)","v":0.22969543147208121},null,"TOTAL OT",{"$f":"SUM(I5:I9)","v":337.5},{"$f":"SUM(J5:J9)","v":425.4375},{"$f":"SUM(K5:K9)","v":87.9375},26.055555555555554]
[]
[]
[null,"COMPARATIVA DE HORAS POR TIPO ACTIVIDAD",null,null,null,null,null,"COMPARATIVA DE HBS POR TIPO DE ACTIVIDAD"]
[]
[null,null,"HORAS","REAL","DIFERENCIA","DESVIACION",null,null,"HBS","REAL","DIFERENCIA","DESVIACION"]
[null,"PRODUCCION",{"$f":"+ESTIMACION!I20","v":114},{"$f":"+'REAL'!I20","v":116.75},{"$f":"+D16-C16","v":2.75},{"$f":"+IFERROR((D16-C16)/C16,0)*100","v":2.4122807017543857},null,"PRODUCCION",{"$f":"+ESTIMACION!J20","v":184.25},{"$f":"+'REAL'!J20","v":184.8125},{"$f":"+J16-I16","v":0.5625},{"$f":"+IFERROR((J16-I16)/I16,0)*100","v":0.30529172320217096}]
[null,"GESTION",{"$f":"+ESTIMACION!I21","v":22},{"$f":"+'REAL'!I21","v":18.5},{"$f":"+D17-C17","v":-3.5},{"$f":"+IFERROR((D17-C17)/C17,0)*100","v":-15.909090909090908},null,"GESTION",{"$f":"+ESTIMACION!J21","v":34},{"$f":"+'REAL'!J21","v":28.375},{"$f":"+J17-I17","v":-5.625},{"$f":"+IFERROR((J17-I17)/I17,0)*100","v":-16.544117647058822}]
[null,"REUNION",{"$f":"+ESTIMACION!I22","v":61},{"$f":"+'REAL'!I22","v":107},46,75.409836065573771,null,"REUNION",{"$f":"+ESTIMACION!J22","v":119.25},{"$f":"+'REAL'!J22","v":212.25},93,77.987421383647799]
[null,"TOTAL OT",{"$f":"SUM(C16:C18)","v":197},{"$f":"SUM(D14:D18)","v":242.25},{"$f":"SUM(E16:E18)","v":45.25},{"$f":"+IFERROR((D19-C19)/C19,0)","v":0.22969543147208121},null,"TOTAL OT",{"$f":"SUM(I14:I18)","v":337.5},{"$f":"SUM(J14:J18)","v":425.4375},{"$f":"SUM(K16:K18)","v":87.9375},{"$f":"+IFERROR((J19-I19)/I19,0)*100","v":26.055555555555554}]
[]
[]
[null,"COMPARATIVA DE HBS POR  ACTIVIDAD"]
[]
[null,"TAREA",null,null,null,null,"HBS","REAL","DIFERENCIA","DESVIACION","JUSTIFICACIÓN DE LA DESVIACIÓN"]
[null,{"$f":"+ESTIMACION!D26","v":"v3.1 Análisis y validación funcional en desa"},null,null,null,null,{"$f":"+ESTIMACION!L26","v":10.5},{"$f":"+'REAL'!L26","v":8.75},{"$f":"+H25-G25","v":-1.75},{"$f":"+IFERROR((H25-G25)/G25,0)*100","v":-16.666666666666664}]
[null,{"$f":"+ESTIMACION!D27","v":"CS- análisis  3.1 "},null,null,null,null,{"$f":"+ESTIMACION!L27","v":5.25},{"$f":"+'REAL'!L27","v":4.375},{"$f":"+H26-G26","v":-0.875},{"$f":"+IFERROR((H26-G26)/G26,0)*100","v":-16.666666666666664}]
[null,{"$f":"+ESTIMACION!D28","v":"v3.1 Análisis y validación funcional en desa"},null,null,null,null,{"$f":"+ESTIMACION!L28","v":8.75},{"$f":"+'REAL'!L28","v":12.25},3.5,40]
[null,{"$f":"+ESTIMACION!D29","v":"ClicSalud 3.1 - Mejoras EIDAS"},null,null,null,null,{"$f":"+ESTIMACION!L29","v":5},{"$f":"+'REAL'!L29","v":10},5,100]
[null,{"$f":"+ESTIMACION!D30","v":"ClicSalud 3.1 - Mejoras EIDAS"},null,null,null,null,{"$f":"+ESTIMACION!L30","v":11.25},{"$f":"+'REAL'!L30","v":10},-1.25,-11.111111111111111]
[null,{"$f":"+ESTIMACION!D31","v":"v3.1 Análisis y validación funcional en desa"},null,null,null,null,{"$f":"+ESTIMACION!L31","v":8.75},{"$f":"+'REAL'!L31","v":5.6875},-3.0625,-35]
[null,{"$f":"+ESTIMACION!D32","v":"ClicSalud 3.1 - Mejoras EIDAS"},null,null,null,null,{"$f":"+ESTIMACION!L32","v":3},{"$f":"+'REAL'!L32","v":3},0,0]
[null,{"$f":"+ESTIMACION!D33","v":"v3.1 Análisis y validación funcional en desa"},null,null,null,null,{"$f":"+ESTIMACION!L33","v":14},{"$f":"+'REAL'!L33","v":6.125},-7.875,-56.25]
[null,{"$f":"+ESTIMACION!D34","v":"CS- análisis  3.1 "},null,null,null,null,{"$f":"+ESTIMACION!L34","v":15.75},{"$f":"+'REAL'!L34","v":7.875},-7.875,-50]
[null,{"$f":"+ESTIMACION!D35","v":"ClicSalud 3.1 - Mejoras EIDAS"},null,null,null,null,{"$f":"+ESTIMACION!L35","v":3.75},{"$f":"+'REAL'!L35","v":6.25},2.5,66.666666666666657]
[null,{"$f":"+ESTIMACION!D36","v":"v3.1 Análisis y validación funcional en desa"},null,null,null,null,{"$f":"+ESTIMACION!L36","v":14},{"$f":"+'REAL'!L36","v":7.875},-6.125,-43.75]
[null,{"$f":"+ESTIMACION!D37","v":"CS- análisis  3.2.1"},null,null,null,null,{"$f":"+ESTIMACION!L37","v":12.25},{"$f":"+'REAL'!L37","v":4.375},-7.875,-64.285714285714292]
[null,{"$f":"+ESTIMACION!D38","v":"v3.2.1 Análisis y validación funcional en desa"},null,null,null,null,{"$f":"+ESTIMACION!L38","v":11.375},{"$f":"+'REAL'!L38","v":11.375},0,0]
[null,{"$f":"+ESTIMACION!D39","v":"CS 3.2.1 - Cambios en EIDAS"},null,null,null,null,{"$f":"+ESTIMACION!L39","v":5},{"$f":"+'REAL'!L39","v":9},4,80]
[null,{"$f":"+ESTIMACION!D40","v":"v3.2.1 Análisis y validación funcional en desa"},null,null,null,null,{"$f":"+ESTIMACION!L40","v":5.25},{"$f":"+'REAL'!L40","v":15.75},10.5,200]
[null,{"$f":"+ESTIMACION!D41","v":"ClicSalud 3.2.1 - Mejoras EIDAS"},null,null,null,null,{"$f":"+ESTIMACION!L41","v":6.25},{"$f":"+'REAL'!L41","v":3.75},-2.5,-40]
[null,{"$f":"+ESTIMACION!D42","v":"CLICSALUD v3.1.0.1 Instalaciones en Calidad y entrega a Cliente"},null,null,null,null,{"$f":"+ESTIMACION!L42","v":12},{"$f":"+'REAL'!L42","v":10},-2,-16.666666666666664]
[null,{"$f":"+ESTIMACION!D43","v":"CS 3.1 - Cambios en EIDAS"},null,null,null,null,{"$f":"+ESTIMACION!L43","v":10},{"$f":"+'REAL'!L43","v":11.25},1.25,12.5]
[null,{"$f":"+ESTIMACION!D44","v":"Gestión"},null,null,null,null,{"$f":"+ESTIMACION!L44","v":16},{"$f":"+'REAL'!L44","v":18},2,12.5]
[null,{"$f":"+ESTIMACION!D45","v":"Validación funcional CS+ v3.1 PRE"},null,null,null,null,{"$f":"+ESTIMACION!L45","v":7.875},{"$f":"+'REAL'!L45","v":6.125},-1.75,-22.222222222222221]
[null,{"$f":"+ESTIMACION!D46","v":"v3.1 Análisis y validación funcional en desa"},null,null,null,null,{"$f":"+ESTIMACION!L46","v":10.5},{"$f":"+'REAL'!L46","v":8.75},-1.75,-16.666666666666664]
[null,{"$f":"+ESTIMACION!D47","v":"v3.1 Cambios EIDAS Implantación PRO"},null,null,null,null,{"$f":"+ESTIMACION!L47","v":6.25},{"$f":"+'REAL'!L47","v":3.75},-2.5,-40]
[null,{"$f":"+ESTIMACION!D48","v":"Gestión"},null,null,null,null,{"$f":"+ESTIMACION!L48","v":16},{"$f":"+'REAL'!L48","v":18},2,12.5]
[null,{"$f":"+ESTIMACION!D49","v":"v3.1 Análisis y validación funcional en desa"},null,null,null,null,{"$f":"+ESTIMACION!L49","v":8.75},{"$f":"+'REAL'!L49","v":7.875},-0.875,-10]
[null,{"$f":"+ESTIMACION!D50","v":"v3.1 Análisis y validación funcional en desa"},null,null,null,null,{"$f":"+ESTIMACION!L50","v":3.5},{"$f":"+'REAL'!L50","v":5.25},1.75,50]
[null,{"$f":"+ESTIMACION!D51","v":"CS- análisis  3.1 "},null,null,null,null,{"$f":"+ESTIMACION!L51","v":3.5},{"$f":"+'REAL'!L51","v":7},3.5,100]
[null,{"$f":"+ESTIMACION!D52","v":"v3.1 Análisis y validación funcional en desa"},null,null,null,null,{"$f":"+ESTIMACION!L52","v":3},{"$f":"+'REAL'!L52","v":3},0,0]
[null,{"$f":"+ESTIMACION!D53","v":"v3.2 Análisis y validación funcional en desa"},null,null,null,null,{"$f":"+ESTIMACION!L53","v":100},{"$f":"+'REAL'!L53","v":200},100,100]
[null,{"$f":"+ESTIMACION!D54","v":0},null,null,null,null,{"$f":"+ESTIMACION!L54","v":0},{"$f":"+'REAL'!L54","v":0},0,0]
[null,{"$f":"+ESTIMACION!D55","v":0},null,null,null,null,{"$f":"+ESTIMACION!L55","v":0},{"$f":"+'REAL'!L55","v":0},0,0]
[null,{"$f":"+ESTIMACION!D56","v":0},null,null,null,null,{"$f":"+ESTIMACION!L56","v":0},{"$f":"+'REAL'!L56","v":0},0,0]
[null,{"$f":"+ESTIMACION!D57","v":0},null,null,null,null,{"$f":"+ESTIMACION!L57","v":0},{"$f":"+'REAL'!L57","v":0},0,0]
[null,{"$f":"+ESTIMACION!D58","v":0},null,null,null,null,{"$f":"+ESTIMACION!L58","v":0},{"$f":"+'REAL'!L58","v":0},0,0]
[null,{"$f":"+ESTIMACION!D59","v":0},null,null,null,null,{"$f":"+ESTIMACION!L59","v":0},{"$f":"+'REAL'!L59","v":0},0,0]
[null,{"$f":"+ESTIMACION!D60","v":0},null,null,null,null,{"$f":"+ESTIMACION!L60","v":0},{"$f":"+'REAL'!L60","v":0},0,0]
[null,{"$f":"+ESTIMACION!D61","v":0},null,null,null,null,{"$f":"+ESTIMACION!L61","v":0},{"$f":"+'REAL'!L61","v":0},0,0]
[null,{"$f":"+ESTIMACION!D62","v":0},null,null,null,null,{"$f":"+ESTIMACION!L62","v":0},{"$f":"+'REAL'!L62","v":0},0,0]
[null,{"$f":"+ESTIMACION!D63","v":0},null,null,null,null,{"$f":"+ESTIMACION!L63","v":0},{"$f":"+'REAL'!L63","v":0},0,0]
[null,{"$f":"+ESTIMACION!D64","v":0},null,null,null,null,{"$f":"+ESTIMACION!L64","v":0},{"$f":"+'REAL'!L64","v":0},0,0]
[null,{"$f":"+ESTIMACION!D65","v":0},null,null,null,null,{"$f":"+ESTIMACION!L65","v":0},{"$f":"+'REAL'!L65","v":0},0,0]
[null,{"$f":"+ESTIMACION!D66","v":0},null,null,null,null,{"$f":"+ESTIMACION!L66","v":0},{"$f":"+'REAL'!L66","v":0},0,0]
[null,{"$f":"+ESTIMACION!D67","v":0},null,null,null,null,{"$f":"+ESTIMACION!L67","v":0},{"$f":"+'REAL'!L67","v":0},0,0]
[null,{"$f":"+ESTIMACION!D68","v":0},null,null,null,null,{"$f":"+ESTIMACION!L68","v":0},{"$f":"+'REAL'!L68","v":0},0,0]
[null,{"$f":"+ESTIMACION!D69","v":0},null,null,null,null,{"$f":"+ESTIMACION!L69","v":0},{"$f":"+'REAL'!L69","v":0},0,0]
[null,{"$f":"+ESTIMACION!D70","v":0},null,null,null,null,{"$f":"+ESTIMACION!L70","v":0},{"$f":"+'REAL'!L70","v":0},0,0]
[null,{"$f":"+ESTIMACION!D71","v":0},null,null,null,null,{"$f":"+ESTIMACION!L71","v":0},{"$f":"+'REAL'!L71","v":0},0,0]
[null,{"$f":"+ESTIMACION!D72","v":0},null,null,null,null,{"$f":"+ESTIMACION!L72","v":0},{"$f":"+'REAL'!L72","v":0},0,0]
[null,{"$f":"+ESTIMACION!D73","v":0},null,null,null,null,{"$f":"+ESTIMACION!L73","v":0},{"$f":"+'REAL'!L73","v":0},0,0]
[null,{"$f":"+ESTIMACION!D74","v":0},null,null,null,null,{"$f":"+ESTIMACION!L74","v":0},{"$f":"+'REAL'!L74","v":0},0,0]
[null,{"$f":"+ESTIMACION!D75","v":0},null,null,null,null,{"$f":"+ESTIMACION!L75","v":0},{"$f":"+'REAL'!L75","v":0},0,0]
[null,{"$f":"+ESTIMACION!D76","v":0},null,null,null,null,{"$f":"+ESTIMACION!L76","v":0},{"$f":"+'REAL'!L76","v":0},0,0]
[null,{"$f":"+ESTIMACION!D77","v":0},null,null,null,null,{"$f":"+ESTIMACION!L77","v":0},{"$f":"+'REAL'!L77","v":0},0,0]
[null,{"$f":"+ESTIMACION!D78","v":0},null,null,null,null,{"$f":"+ESTIMACION!L78","v":0},{"$f":"+'REAL'!L78","v":0},0,0]
[null,{"$f":"+ESTIMACION!D79","v":0},null,null,null,null,{"$f":"+ESTIMACION!L79","v":0},{"$f":"+'REAL'!L79","v":0},0,0]
[null,{"$f":"+ESTIMACION!D80","v":0},null,null,null,null,{"$f":"+ESTIMACION!L80","v":0},{"$f":"+'REAL'!L80","v":0},0,0]
[null,{"$f":"+ESTIMACION!D81","v":0},null,null,null,null,{"$f":"+ESTIMACION!L81","v":0},{"$f":"+'REAL'!L81","v":0},0,0]
[null,{"$f":"+ESTIMACION!D82","v":0},null,null,null,null,{"$f":"+ESTIMACION!L82","v":0},{"$f":"+'REAL'!L82","v":0},0,0]
[null,{"$f":"+ESTIMACION!D83","v":0},null,null,null,null,{"$f":"+ESTIMACION!L83","v":0},{"$f":"+'REAL'!L83","v":0},0,0]
[null,{"$f":"+ESTIMACION!D84","v":0},null,null,null,null,{"$f":"+ESTIMACION!L84","v":0},{"$f":"+'REAL'!L84","v":0},0,0]
[null,{"$f":"+ESTIMACION!D85","v":0},null,null,null,null,{"$f":"+ESTIMACION!L85","v":0},{"$f":"+'REAL'!L85","v":0},0,0]
[null,{"$f":"+ESTIMACION!D86","v":0},null,null,null,null,{"$f":"+ESTIMACION!L86","v":0},{"$f":"+'REAL'!L86","v":0},0,0]
[null,{"$f":"+ESTIMACION!D87","v":0},null,null,null,null,{"$f":"+ESTIMACION!L87","v":0},{"$f":"+'REAL'!L87","v":0},0,0]
[null,{"$f":"+ESTIMACION!D88","v":0},null,null,null,null,{"$f":"+ESTIMACION!L88","v":0},{"$f":"+'REAL'!L88","v":0},0,0]
[null,{"$f":"+ESTIMACION!D89","v":0},null,null,null,null,{"$f":"+ESTIMACION!L89","v":0},{"$f":"+'REAL'!L89","v":0},0,0]
[null,{"$f":"+ESTIMACION!D90","v":0},null,null,null,null,{"$f":"+ESTIMACION!L90","v":0},{"$f":"+'REAL'!L90","v":0},0,0]
[null,{"$f":"+ESTIMACION!D91","v":0},null,null,null,null,{"$f":"+ESTIMACION!L91","v":0},{"$f":"+'REAL'!L91","v":0},{"$f":"+H90-G90","v":0},{"$f":"+IFERROR((H90-G90)/G90,0)*100","v":0}]
[null,{"$f":"+ESTIMACION!D92","v":0},null,null,null,null,{"$f":"+ESTIMACION!L92","v":0},{"$f":"+'REAL'!L92","v":0},0,0]
[null,{"$f":"+ESTIMACION!D93","v":0},null,null,null,null,{"$f":"+ESTIMACION!L93","v":0},{"$f":"+'REAL'!L93","v":0},0,0]
[null,{"$f":"+ESTIMACION!D94","v":0},null,null,null,null,{"$f":"+ESTIMACION!L94","v":0},{"$f":"+'REAL'!L94","v":0},0,0]
[null,{"$f":"+ESTIMACION!D95","v":0},null,null,null,null,{"$f":"+ESTIMACION!L95","v":0},{"$f":"+'REAL'!L95","v":0},0,0]
[null,{"$f":"+ESTIMACION!D96","v":0},null,null,null,null,{"$f":"+ESTIMACION!L96","v":0},{"$f":"+'REAL'!L96","v":0},0,0]
[null,{"$f":"+ESTIMACION!D97","v":0},null,null,null,null,{"$f":"+ESTIMACION!L97","v":0},{"$f":"+'REAL'!L97","v":0},0,0]
[null,{"$f":"+ESTIMACION!D98","v":0},null,null,null,null,{"$f":"+ESTIMACION!L98","v":0},{"$f":"+'REAL'!L98","v":0},0,0]
[null,{"$f":"+ESTIMACION!D99","v":0},null,null,null,null,{"$f":"+ESTIMACION!L99","v":0},{"$f":"+'REAL'!L99","v":0},0,0]
[null,{"$f":"+ESTIMACION!D100","v":0},null,null,null,null,{"$f":"+ESTIMACION!L100","v":0},{"$f":"+'REAL'!L100","v":0},0,0]
[null,{"$f":"+ESTIMACION!D101","v":0},null,null,null,null,{"$f":"+ESTIMACION!L101","v":0},{"$f":"+'REAL'!L101","v":0},0,0]
[null,{"$f":"+ESTIMACION!D102","v":0},null,null,null,null,{"$f":"+ESTIMACION!L102","v":0},{"$f":"+'REAL'!L102","v":0},0,0]
[null,{"$f":"+ESTIMACION!D103","v":0},null,null,null,null,{"$f":"+ESTIMACION!L103","v":0},{"$f":"+'REAL'!L103","v":0},0,0]
[null,{"$f":"+ESTIMACION!D104","v":0},null,null,null,null,{"$f":"+ESTIMACION!L104","v":0},{"$f":"+'REAL'!L104","v":0},0,0]
[null,{"$f":"+ESTIMACION!D105","v":0},null,null,null,null,{"$f":"+ESTIMACION!L105","v":0},{"$f":"+'REAL'!L105","v":0},0,0]
[null,{"$f":"+ESTIMACION!D106","v":0},null,null,null,null,{"$f":"+ESTIMACION!L106","v":0},{"$f":"+'REAL'!L106","v":0},0,0]
[null,{"$f":"+ESTIMACION!D107","v":0},null,null,null,null,{"$f":"+ESTIMACION!L107","v":0},{"$f":"+'REAL'!L107","v":0},0,0]
[null,{"$f":"+ESTIMACION!D108","v":0},null,null,null,null,{"$f":"+ESTIMACION!L108","v":0},{"$f":"+'REAL'!L108","v":0},0,0]
[null,{"$f":"+ESTIMACION!D109","v":0},null,null,null,null,{"$f":"+ESTIMACION!L109","v":0},{"$f":"+'REAL'!L109","v":0},0,0]
[null,{"$f":"+ESTIMACION!D110","v":0},null,null,null,null,{"$f":"+ESTIMACION!L110","v":0},{"$f":"+'REAL'!L110","v":0},0,0]
[null,{"$f":"+ESTIMACION!D111","v":0},null,null,null,null,{"$f":"+ESTIMACION!L111","v":0},{"$f":"+'REAL'!L111","v":0},0,0]
[null,{"$f":"+ESTIMACION!D112","v":0},null,null,null,null,{"$f":"+ESTIMACION!L112","v":0},{"$f":"+'REAL'!L112","v":0},0,0]
[null,{"$f":"+ESTIMACION!D113","v":0},null,null,null,null,{"$f":"+ESTIMACION!L113","v":0},{"$f":"+'REAL'!L113","v":0},0,0]
[null,{"$f":"+ESTIMACION!D114","v":0},null,null,null,null,{"$f":"+ESTIMACION!L114","v":0},{"$f":"+'REAL'!L114","v":0},0,0]
[null,{"$f":"+ESTIMACION!D115","v":0},null,null,null,null,{"$f":"+ESTIMACION!L115","v":0},{"$f":"+'REAL'!L115","v":0},0,0]
[null,{"$f":"+ESTIMACION!D116","v":0},null,null,null,null,{"$f":"+ESTIMACION!L116","v":0},{"$f":"+'REAL'!L116","v":0},0,0]
[null,{"$f":"+ESTIMACION!D117","v":0},null,null,null,null,{"$f":"+ESTIMACION!L117","v":0},{"$f":"+'REAL'!L117","v":0},0,0]
[null,{"$f":"+ESTIMACION!D118","v":0},null,null,null,null,{"$f":"+ESTIMACION!L118","v":0},{"$f":"+'REAL'!L118","v":0},0,0]
[null,{"$f":"+ESTIMACION!D119","v":0},null,null,null,null,{"$f":"+ESTIMACION!L119","v":0},{"$f":"+'REAL'!L119","v":0},0,0]
[null,{"$f":"+ESTIMACION!D120","v":0},null,null,null,null,{"$f":"+ESTIMACION!L120","v":0},{"$f":"+'REAL'!L120","v":0},0,0]
[null,{"$f":"+ESTIMACION!D121","v":0},null,null,null,null,{"$f":"+ESTIMACION!L121","v":0},{"$f":"+'REAL'!L121","v":0},0,0]
[null,{"$f":"+ESTIMACION!D122","v":0},null,null,null,null,{"$f":"+ESTIMACION!L122","v":0},{"$f":"+'REAL'!L122","v":0},0,0]
[null,{"$f":"+ESTIMACION!D123","v":0},null,null,null,null,{"$f":"+ESTIMACION!L123","v":0},{"$f":"+'REAL'!L123","v":0},0,0]
[null,{"$f":"+ESTIMACION!D124","v":0},null,null,null,null,{"$f":"+ESTIMACION!L124","v":0},{"$f":"+'REAL'!L124","v":0},0,0]
[null,{"$f":"+ESTIMACION!D125","v":0},null,null,null,null,{"$f":"+ESTIMACION!L125","v":0},{"$f":"+'REAL'!L125","v":0},0,0]
[null,{"$f":"+ESTIMACION!D126","v":0},null,null,null,null,{"$f":"+ESTIMACION!L126","v":0},{"$f":"+'REAL'!L126","v":0},0,0]
[null,{"$f":"+ESTIMACION!D127","v":0},null,null,null,null,{"$f":"+ESTIMACION!L127","v":0},{"$f":"+'REAL'!L127","v":0},0,0]
[null,{"$f":"+ESTIMACION!D128","v":0},null,null,null,null,{"$f":"+ESTIMACION!L128","v":0},{"$f":"+'REAL'!L128","v":0},0,0]
[null,{"$f":"+ESTIMACION!D129","v":0},null,null,null,null,{"$f":"+ESTIMACION!L129","v":0},{"$f":"+'REAL'!L129","v":0},0,0]
[null,{"$f":"+ESTIMACION!D130","v":0},null,null,null,null,{"$f":"+ESTIMACION!L130","v":0},{"$f":"+'REAL'!L130","v":0},0,0]
[null,{"$f":"+ESTIMACION!D131","v":0},null,null,null,null,{"$f":"+ESTIMACION!L131","v":0},{"$f":"+'REAL'!L131","v":0},0,0]
[null,{"$f":"+ESTIMACION!D132","v":0},null,null,null,null,{"$f":"+ESTIMACION!L132","v":0},{"$f":"+'REAL'!L132","v":0},0,0]
[null,{"$f":"+ESTIMACION!D133","v":0},null,null,null,null,{"$f":"+ESTIMACION!L133","v":0},{"$f":"+'REAL'!L133","v":0},0,0]
[null,{"$f":"+ESTIMACION!D134","v":0},null,null,null,null,{"$f":"+ESTIMACION!L134","v":0},{"$f":"+'REAL'!L134","v":0},0,0]
[null,{"$f":"+ESTIMACION!D135","v":0},null,null,null,null,{"$f":"+ESTIMACION!L135","v":0},{"$f":"+'REAL'!L135","v":0},0,0]
[null,{"$f":"+ESTIMACION!D136","v":0},null,null,null,null,{"$f":"+ESTIMACION!L136","v":0},{"$f":"+'REAL'!L136","v":0},0,0]
[null,{"$f":"+ESTIMACION!D137","v":0},null,null,null,null,{"$f":"+ESTIMACION!L137","v":0},{"$f":"+'REAL'!L137","v":0},0,0]
[null,{"$f":"+ESTIMACION!D138","v":0},null,null,null,null,{"$f":"+ESTIMACION!L138","v":0},{"$f":"+'REAL'!L138","v":0},0,0]
[null,{"$f":"+ESTIMACION!D139","v":0},null,null,null,null,{"$f":"+ESTIMACION!L139","v":0},{"$f":"+'REAL'!L139","v":0},0,0]
[null,{"$f":"+ESTIMACION!D140","v":0},null,null,null,null,{"$f":"+ESTIMACION!L140","v":0},{"$f":"+'REAL'!L140","v":0},0,0]
[null,{"$f":"+ESTIMACION!D141","v":0},null,null,null,null,{"$f":"+ESTIMACION!L141","v":0},{"$f":"+'REAL'!L141","v":0},0,0]
[null,{"$f":"+ESTIMACION!D142","v":0},null,null,null,null,{"$f":"+ESTIMACION!L142","v":0},{"$f":"+'REAL'!L142","v":0},0,0]
[null,{"$f":"+ESTIMACION!D143","v":0},null,null,null,null,{"$f":"+ESTIMACION!L143","v":0},{"$f":"+'REAL'!L143","v":0},0,0]
[null,{"$f":"+ESTIMACION!D144","v":0},null,null,null,null,{"$f":"+ESTIMACION!L144","v":0},{"$f":"+'REAL'!L144","v":0},0,0]
[null,{"$f":"+ESTIMACION!D145","v":0},null,null,null,null,{"$f":"+ESTIMACION!L145","v":0},{"$f":"+'REAL'!L145","v":0},0,0]
[null,{"$f":"+ESTIMACION!D146","v":0},null,null,null,null,{"$f":"+ESTIMACION!L146","v":0},{"$f":"+'REAL'!L146","v":0},0,0]
[null,{"$f":"+ESTIMACION!D147","v":0},null,null,null,null,{"$f":"+ESTIMACION!L147","v":0},{"$f":"+'REAL'!L147","v":0},0,0]
[null,{"$f":"+ESTIMACION!D148","v":0},null,null,null,null,{"$f":"+ESTIMACION!L148","v":0},{"$f":"+'REAL'!L148","v":0},0,0]
[null,{"$f":"+ESTIMACION!D149","v":0},null,null,null,null,{"$f":"+ESTIMACION!L149","v":0},{"$f":"+'REAL'!L149","v":0},0,0]
[null,{"$f":"+ESTIMACION!D150","v":0},null,null,null,null,{"$f":"+ESTIMACION!L150","v":0},{"$f":"+'REAL'!L150","v":0},0,0]
[null,{"$f":"+ESTIMACION!D151","v":0},null,null,null,null,{"$f":"+ESTIMACION!L151","v":0},{"$f":"+'REAL'!L151","v":0},0,0]
[null,{"$f":"+ESTIMACION!D152","v":0},null,null,null,null,{"$f":"+ESTIMACION!L152","v":0},{"$f":"+'REAL'!L152","v":0},0,0]
[null,{"$f":"+ESTIMACION!D153","v":0},null,null,null,null,{"$f":"+ESTIMACION!L153","v":0},{"$f":"+'REAL'!L153","v":0},0,0]
[null,{"$f":"+ESTIMACION!D154","v":0},null,null,null,null,{"$f":"+ESTIMACION!L154","v":0},{"$f":"+'REAL'!L154","v":0},0,0]
[null,{"$f":"+ESTIMACION!D155","v":0},null,null,null,null,{"$f":"+ESTIMACION!L155","v":0},{"$f":"+'REAL'!L155","v":0},{"$f":"+H154-G154","v":0},{"$f":"+IFERROR((H154-G154)/G154,0)*100","v":0}]
[null,{"$f":"+ESTIMACION!D156","v":0},null,null,null,null,{"$f":"+ESTIMACION!L156","v":0},{"$f":"+'REAL'!L156","v":0},0,0]
[null,{"$f":"+ESTIMACION!D157","v":0},null,null,null,null,{"$f":"+ESTIMACION!L157","v":0},{"$f":"+'REAL'!L157","v":0},0,0]
[null,{"$f":"+ESTIMACION!D158","v":0},null,null,null,null,{"$f":"+ESTIMACION!L158","v":0},{"$f":"+'REAL'!L158","v":0},0,0]
[null,{"$f":"+ESTIMACION!D159","v":0},null,null,null,null,{"$f":"+ESTIMACION!L159","v":0},{"$f":"+'REAL'!L159","v":0},0,0]
[null,{"$f":"+ESTIMACION!D160","v":0},null,null,null,null,{"$f":"+ESTIMACION!L160","v":0},{"$f":"+'REAL'!L160","v":0},0,0]
[null,{"$f":"+ESTIMACION!D161","v":0},null,null,null,null,{"$f":"+ESTIMACION!L161","v":0},{"$f":"+'REAL'!L161","v":0},0,0]
[null,{"$f":"+ESTIMACION!D162","v":0},null,null,null,null,{"$f":"+ESTIMACION!L162","v":0},{"$f":"+'REAL'!L162","v":0},0,0]
[null,{"$f":"+ESTIMACION!D163","v":0},null,null,null,null,{"$f":"+ESTIMACION!L163","v":0},{"$f":"+'REAL'!L163","v":0},0,0]
[null,{"$f":"+ESTIMACION!D164","v":0},null,null,null,null,{"$f":"+ESTIMACION!L164","v":0},{"$f":"+'REAL'!L164","v":0},0,0]
[null,{"$f":"+ESTIMACION!D165","v":0},null,null,null,null,{"$f":"+ESTIMACION!L165","v":0},{"$f":"+'REAL'!L165","v":0},0,0]
[null,{"$f":"+ESTIMACION!D166","v":0},null,null,null,null,{"$f":"+ESTIMACION!L166","v":0},{"$f":"+'REAL'!L166","v":0},0,0]
[null,{"$f":"+ESTIMACION!D167","v":0},null,null,null,null,{"$f":"+ESTIMACION!L167","v":0},{"$f":"+'REAL'!L167","v":0},0,0]
[null,{"$f":"+ESTIMACION!D168","v":0},null,null,null,null,{"$f":"+ESTIMACION!L168","v":0},{"$f":"+'REAL'!L168","v":0},0,0]
[null,{"$f":"+ESTIMACION!D169","v":0},null,null,null,null,{"$f":"+ESTIMACION!L169","v":0},{"$f":"+'REAL'!L169","v":0},0,0]
[null,{"$f":"+ESTIMACION!D170","v":0},null,null,null,null,{"$f":"+ESTIMACION!L170","v":0},{"$f":"+'REAL'!L170","v":0},0,0]
[null,{"$f":"+ESTIMACION!D171","v":0},null,null,null,null,{"$f":"+ESTIMACION!L171","v":0},{"$f":"+'REAL'!L171","v":0},0,0]
[null,{"$f":"+ESTIMACION!D172","v":0},null,null,null,null,{"$f":"+ESTIMACION!L172","v":0},{"$f":"+'REAL'!L172","v":0},0,0]
[null,{"$f":"+ESTIMACION!D173","v":0},null,null,null,null,{"$f":"+ESTIMACION!L173","v":0},{"$f":"+'REAL'!L173","v":0},0,0]
[null,{"$f":"+ESTIMACION!D174","v":0},null,null,null,null,{"$f":"+ESTIMACION!L174","v":0},{"$f":"+'REAL'!L174","v":0},0,0]
[null,{"$f":"+ESTIMACION!D175","v":0},null,null,null,null,{"$f":"+ESTIMACION!L175","v":0},{"$f":"+'REAL'!L175","v":0},0,0]
[null,{"$f":"+ESTIMACION!D176","v":0},null,null,null,null,{"$f":"+ESTIMACION!L176","v":0},{"$f":"+'REAL'!L176","v":0},0,0]
[null,{"$f":"+ESTIMACION!D177","v":0},null,null,null,null,{"$f":"+ESTIMACION!L177","v":0},{"$f":"+'REAL'!L177","v":0},0,0]
[null,{"$f":"+ESTIMACION!D178","v":0},null,null,null,null,{"$f":"+ESTIMACION!L178","v":0},{"$f":"+'REAL'!L178","v":0},0,0]
[null,{"$f":"+ESTIMACION!D179","v":0},null,null,null,null,{"$f":"+ESTIMACION!L179","v":0},{"$f":"+'REAL'!L179","v":0},0,0]
[null,{"$f":"+ESTIMACION!D180","v":0},null,null,null,null,{"$f":"+ESTIMACION!L180","v":0},{"$f":"+'REAL'!L180","v":0},0,0]
[null,{"$f":"+ESTIMACION!D181","v":0},null,null,null,null,{"$f":"+ESTIMACION!L181","v":0},{"$f":"+'REAL'!L181","v":0},0,0]
[null,{"$f":"+ESTIMACION!D182","v":0},null,null,null,null,{"$f":"+ESTIMACION!L182","v":0},{"$f":"+'REAL'!L182","v":0},0,0]
[null,{"$f":"+ESTIMACION!D183","v":0},null,null,null,null,{"$f":"+ESTIMACION!L183","v":0},{"$f":"+'REAL'!L183","v":0},0,0]
[null,{"$f":"+ESTIMACION!D184","v":0},null,null,null,null,{"$f":"+ESTIMACION!L184","v":0},{"$f":"+'REAL'!L184","v":0},0,0]
[null,{"$f":"+ESTIMACION!D185","v":0},null,null,null,null,{"$f":"+ESTIMACION!L185","v":0},{"$f":"+'REAL'!L185","v":0},0,0]
[null,{"$f":"+ESTIMACION!D186","v":0},null,null,null,null,{"$f":"+ESTIMACION!L186","v":0},{"$f":"+'REAL'!L186","v":0},0,0]
[null,{"$f":"+ESTIMACION!D187","v":0},null,null,null,null,{"$f":"+ESTIMACION!L187","v":0},{"$f":"+'REAL'!L187","v":0},0,0]
[null,{"$f":"+ESTIMACION!D188","v":0},null,null,null,null,{"$f":"+ESTIMACION!L188","v":0},{"$f":"+'REAL'!L188","v":0},0,0]
[null,{"$f":"+ESTIMACION!D189","v":0},null,null,null,null,{"$f":"+ESTIMACION!L189","v":0},{"$f":"+'REAL'!L189","v":0},0,0]
[null,{"$f":"+ESTIMACION!D190","v":0},null,null,null,null,{"$f":"+ESTIMACION!L190","v":0},{"$f":"+'REAL'!L190","v":0},0,0]
[null,{"$f":"+ESTIMACION!D191","v":0},null,null,null,null,{"$f":"+ESTIMACION!L191","v":0},{"$f":"+'REAL'!L191","v":0},0,0]
[null,{"$f":"+ESTIMACION!D192","v":0},null,null,null,null,{"$f":"+ESTIMACION!L192","v":0},{"$f":"+'REAL'!L192","v":0},0,0]
[null,{"$f":"+ESTIMACION!D193","v":0},null,null,null,null,{"$f":"+ESTIMACION!L193","v":0},{"$f":"+'REAL'!L193","v":0},0,0]
[null,{"$f":"+ESTIMACION!D194","v":0},null,null,null,null,{"$f":"+ESTIMACION!L194","v":0},{"$f":"+'REAL'!L194","v":0},0,0]
[null,{"$f":"+ESTIMACION!D195","v":0},null,null,null,null,{"$f":"+ESTIMACION!L195","v":0},{"$f":"+'REAL'!L195","v":0},0,0]
[null,{"$f":"+ESTIMACION!D196","v":0},null,null,null,null,{"$f":"+ESTIMACION!L196","v":0},{"$f":"+'REAL'!L196","v":0},0,0]
[null,{"$f":"+ESTIMACION!D197","v":0},null,null,null,null,{"$f":"+ESTIMACION!L197","v":0},{"$f":"+'REAL'!L197","v":0},0,0]
[null,{"$f":"+ESTIMACION!D198","v":0},null,null,null,null,{"$f":"+ESTIMACION!L198","v":0},{"$f":"+'REAL'!L198","v":0},0,0]
[null,{"$f":"+ESTIMACION!D199","v":0},null,null,null,null,{"$f":"+ESTIMACION!L199","v":0},{"$f":"+'REAL'!L199","v":0},0,0]
[null,{"$f":"+ESTIMACION!D200","v":0},null,null,null,null,{"$f":"+ESTIMACION!L200","v":0},{"$f":"+'REAL'!L200","v":0},0,0]
[null,{"$f":"+ESTIMACION!D201","v":0},null,null,null,null,{"$f":"+ESTIMACION!L201","v":0},{"$f":"+'REAL'!L201","v":0},0,0]

{"sheet":"CM OT-HORAS","index":5,"n_rows":17,"n_cols":29,"rows_kept":17,"cut":false,"hidden":false,"merged":[]}
[]
[null,null,null,null,null,null,null,null,null,null,null,null,null,null,null,null,null,null,null,null,null,"Etiquetas de fila","Cuenta de HORAS",null,"Etiquetas de fila","Cuenta de HORAS",null,"Etiquetas de fila","Cuenta de HORAS"]
[null,null,null,null,null,null,null,null,null,null,null,null,null,null,null,null,null,null,null,null,null,"(en blanco)",null,null,"(en blanco)",null,null,"(en blanco)"]
[null,null,null,null,null,null,null,null,null,null,null,null,null,null,null,null,null,null,null,null,null,"APLICATIVO_1 3.1",2,null,"MEJORA-1235",7,null,"v3.1 Análisis y validación funcional en desa",9]
[null,null,null,null,null,null,null,null,null,null,null,null,null,null,null,null,null,null,null,null,null,"CLICSALUD 3.1",20,null,"INCIDENCIA-1125",10,null,"CS- análisis  3.1 ",3]
[null,null,null,null,null,null,null,null,null,null,null,null,null,null,null,null,null,null,null,null,null,"CLICSALUD 3.2.1",5,null,"MEJORA-1426",2,null,"ClicSalud 3.1 - Mejoras EIDAS",4]
[null,null,null,null,null,null,null,null,null,null,null,null,null,null,null,null,null,null,null,null,null,"CLICSALUD 4.0",1,null,"INCI3ENCIALU-1125",3,null,"CS- análisis  3.2.1",1]
[null,null,null,null,null,null,null,null,null,null,null,null,null,null,null,null,null,null,null,null,null,"Total general",28,null,"MEJORA-2426",3,null,"v3.2.1 Análisis y validación funcional en desa",2]
[null,null,null,null,null,null,null,null,null,null,null,null,null,null,null,null,null,null,null,null,null,null,null,null,"MEJORALU-1426",3,null,"CS 3.2.1 - Cambios en EIDAS",1]
[null,null,null,null,null,null,null,null,null,null,null,null,null,null,null,null,null,null,null,null,null,null,null,null,"Total general",28,null,"ClicSalud 3.2.1 - Mejoras EIDAS",1]
[null,null,null,null,null,null,null,null,null,null,null,null,null,null,null,null,null,null,null,null,null,null,null,null,null,null,null,"CLICSALUD v3.1.0.1 Instalaciones en Calidad y entrega a Cliente",1]
[null,null,null,null,null,null,null,null,null,null,null,null,null,null,null,null,null,null,null,null,null,null,null,null,null,null,null,"CS 3.1 - Cambios en EIDAS",1]
[null,null,null,null,null,null,null,null,null,null,null,null,null,null,null,null,null,null,null,null,null,null,null,null,null,null,null,"Gestión",2]
[null,null,null,null,null,null,null,null,null,null,null,null,null,null,null,null,null,null,null,null,null,null,null,null,null,null,null,"Validación funcional CS+ v3.1 PRE",1]
[null,null,null,null,null,null,null,null,null,null,null,null,null,null,null,null,null,null,null,null,null,null,null,null,null,null,null,"v3.1 Cambios EIDAS Implantación PRO",1]
[null,null,null,null,null,null,null,null,null,null,null,null,null,null,null,null,null,null,null,null,null,null,null,null,null,null,null,"v3.2 Análisis y validación funcional en desa",1]
[null,null,null,null,null,null,null,null,null,null,null,null,null,null,null,null,null,null,null,null,null,null,null,null,null,null,null,"Total general",28]

{"sheet":"CM OT-HBS","index":6,"n_rows":17,"n_cols":29,"rows_kept":17,"cut":false,"hidden":false,"merged":[]}
[]
[null,null,null,null,null,null,null,null,null,null,null,null,null,null,null,null,null,null,null,null,null,"Etiquetas de fila","Suma de HBS",null,"Etiquetas de fila","Suma de HBS",null,"Etiquetas de fila","Suma de HBS"]
[null,null,null,null,null,null,null,null,null,null,null,null,null,null,null,null,null,null,null,null,null,"(en blanco)",0,null,"(en blanco)",0,null,"(en blanco)",0]
[null,null,null,null,null,null,null,null,null,null,null,null,null,null,null,null,null,null,null,null,null,"APLICATIVO_1 3.1",13.125,null,"MEJORA-1235",52,null,"v3.1 Análisis y validación funcional en desa",65.5625]
[null,null,null,null,null,null,null,null,null,null,null,null,null,null,null,null,null,null,null,null,null,"CLICSALUD 3.1",168.0625,null,"INCIDENCIA-1125",74.0625,null,"CS- análisis  3.1 ",19.25]
[null,null,null,null,null,null,null,null,null,null,null,null,null,null,null,null,null,null,null,null,null,"CLICSALUD 3.2.1",44.25,null,"MEJORA-1426",9.125,null,"ClicSalud 3.1 - Mejoras EIDAS",29.25]
[null,null,null,null,null,null,null,null,null,null,null,null,null,null,null,null,null,null,null,null,null,"CLICSALUD 4.0",200,null,"INCI3ENCIALU-1125",19.5,null,"CS- análisis  3.2.1",4.375]
[null,null,null,null,null,null,null,null,null,null,null,null,null,null,null,null,null,null,null,null,null,"Total general",425.4375,null,"MEJORA-2426",227,null,"v3.2.1 Análisis y validación funcional en desa",27.125]
[null,null,null,null,null,null,null,null,null,null,null,null,null,null,null,null,null,null,null,null,null,null,null,null,"MEJORALU-1426",43.75,null,"CS 3.2.1 - Cambios en EIDAS",9]
[null,null,null,null,null,null,null,null,null,null,null,null,null,null,null,null,null,null,null,null,null,null,null,null,"Total general",425.4375,null,"ClicSalud 3.2.1 - Mejoras EIDAS",3.75]
[null,null,null,null,null,null,null,null,null,null,null,null,null,null,null,null,null,null,null,null,null,null,null,null,null,null,null,"CLICSALUD v3.1.0.1 Instalaciones en Calidad y entrega a Cliente",10]
[null,null,null,null,null,null,null,null,null,null,null,null,null,null,null,null,null,null,null,null,null,null,null,null,null,null,null,"CS 3.1 - Cambios en EIDAS",11.25]
[null,null,null,null,null,null,null,null,null,null,null,null,null,null,null,null,null,null,null,null,null,null,null,null,null,null,null,"Gestión",36]
[null,null,null,null,null,null,null,null,null,null,null,null,null,null,null,null,null,null,null,null,null,null,null,null,null,null,null,"Validación funcional CS+ v3.1 PRE",6.125]
[null,null,null,null,null,null,null,null,null,null,null,null,null,null,null,null,null,null,null,null,null,null,null,null,null,null,null,"v3.1 Cambios EIDAS Implantación PRO",3.75]
[null,null,null,null,null,null,null,null,null,null,null,null,null,null,null,null,null,null,null,null,null,null,null,null,null,null,null,"v3.2 Análisis y validación funcional en desa",200]
[null,null,null,null,null,null,null,null,null,null,null,null,null,null,null,null,null,null,null,null,null,null,null,null,null,null,null,"Total general",425.4375]